Department Family,Entity,Date of Payment,Expense Type,Expense Area,Supplier,Voluntary & Community Sector,SME Class,Sole Trader,D-U-N-S Number,Transaction number,PSPES Level 2,Narrative,Postal Code, Amount in Sterling ,Grant?
"Housing, Communities & Local Government",DLUHC,03/07/2023,Capital Grants to Private Sect Non Profit,Levelling Up,Bell Inn Frisby Community Group Ltd,,Micro,,,2100326926,,Capital funding for the building works at The Bell,LE14 2NW,"19,995.27",Yes
"Housing, Communities & Local Government",DLUHC,03/07/2023,Capital Grants to Private Sect Non Profit,Levelling Up,St Luke's Thurnby Church,,Micro,,,2100326961,,COF 21 018 Thurnby Capital claim,LE7 9PN,"152,129.00",Yes
"Housing, Communities & Local Government",DLUHC,03/07/2023,Catering,"Union, Elections and Places",ALBERT COTTAGE(IOW)LTD,,Small,,,5106298763,,Meals at Albert Cottage Hotel May 2023,PO32 6BD,"1,251.21",
"Housing, Communities & Local Government",DLUHC,03/07/2023,Current (non AEF) Grants to Local Authorities,Local Govnmnt Resilience and Communities,ASHFORD BC,,,,229467071,3700221648,,Grant payable by the Exchequer,TN23 1PL,"177,250.00",Yes
"Housing, Communities & Local Government",DLUHC,03/07/2023,Current (non AEF) Grants to Local Authorities,Local Govnmnt Resilience and Communities,BIRMINGHAM CITY CNCL,,,,213780559,3700221654,,Grant payable by the Exchequer,B2 2AJ,"60,700.00",Yes
"Housing, Communities & Local Government",DLUHC,03/07/2023,Current (non AEF) Grants to Local Authorities,Local Govnmnt Resilience and Communities,CITY OF LONDON,,,,217471460,3700221652,,Grant payable by the Exchequer,EC2P 2EJ,"76,860.00",Yes
"Housing, Communities & Local Government",DLUHC,03/07/2023,Current (non AEF) Grants to Local Authorities,Local Govnmnt Resilience and Communities,HARROW LB,,,,,3700221653,,Grant payable by the Exchequer,SL1 0ZS,"132,635.00",Yes
"Housing, Communities & Local Government",DLUHC,03/07/2023,Current (non AEF) Grants to Local Authorities,Local Govnmnt Resilience and Communities,KINGS LYNN & WEST NORFOLK BC,,,,236417671,3700179332,,Surplus on account payable to the Exchequer,PE30 1EX,"-10,000.00",Yes
"Housing, Communities & Local Government",DLUHC,03/07/2023,Current (non AEF) Grants to Local Authorities,Local Govnmnt Resilience and Communities,SEVENOAKS DC,,,,236100913,3700221651,,Grant payable by the Exchequer,TN13 1HG,"106,592.00",Yes
"Housing, Communities & Local Government",DLUHC,03/07/2023,Current (non AEF) Grants to Local Authorities,Local Govnmnt Resilience and Communities,SOUTHAMPTON CITY CNCL,,,,216927475,3700221649,,Grant payable by the Exchequer,SO14 7LY,"9,271.00",Yes
"Housing, Communities & Local Government",DLUHC,03/07/2023,Current (non AEF) Grants to Local Authorities,Local Govnmnt Resilience and Communities,WESTMINSTER CITY CNCL,,,,229845706,3700221650,,Grant payable by the Exchequer,SW1E 6QP,"925,524.00",Yes
"Housing, Communities & Local Government",DLUHC,03/07/2023,Current (non AEF) Grants to Local Authorities,Regeneration,SOUTH YORKS PENSIONS AUTHORITY,,,,232568295,2100326962,,Grant payment to South Yorks Pension Authority,S71 1HG,"4,395.70",Yes
"Housing, Communities & Local Government",DLUHC,03/07/2023,Current Grants to Non Profit Bodies,Local Govnmnt Resilience and Communities,Derby City Mission,,Large,,,3700221643,,Grant payable by the Exchequer,DE1 2GW,"74,380.00",Yes
"Housing, Communities & Local Government",DLUHC,03/07/2023,Current Grants to Non Profit Bodies,Local Govnmnt Resilience and Communities,Harbour Place Grimsby,,Small,,,3700221645,,Grant payable by the Exchequer,DN32 7QL,"81,502.00",Yes
"Housing, Communities & Local Government",DLUHC,03/07/2023,Current Grants to Non Profit Bodies,Local Govnmnt Resilience and Communities,HIGHWAY OF HOLINESS,Yes,Small,,,3700221640,,Grant payable by the Exchequer,N15 4QL,"73,935.00",Yes
"Housing, Communities & Local Government",DLUHC,03/07/2023,Current Grants to Non Profit Bodies,Local Govnmnt Resilience and Communities,HOLOCAUST MEMORIAL DAY TRUST,Yes,Small,,,2100326969,,Support Holocaust Memorial Day,SE1 7SJ,"450,000.00",Yes
"Housing, Communities & Local Government",DLUHC,03/07/2023,Current Grants to Non Profit Bodies,Local Govnmnt Resilience and Communities,HOMELESS LINK,Yes,,,,3700221632,,Grant payable by the Exchequer,SE11 4AP,"271,529.00",Yes
"Housing, Communities & Local Government",DLUHC,03/07/2023,Current Grants to Non Profit Bodies,Local Govnmnt Resilience and Communities,Hope For Southall Street Homeless,,Micro,,,3700221639,,Grant payable by the Exchequer,UB2 4BE,"82,554.00",Yes
"Housing, Communities & Local Government",DLUHC,03/07/2023,Current Grants to Non Profit Bodies,Local Govnmnt Resilience and Communities,Housing Justice,,Small,,,3700221631,,Grant payable by the Exchequer,SE11 5RR,"56,233.00",Yes
"Housing, Communities & Local Government",DLUHC,03/07/2023,Current Grants to Non Profit Bodies,Local Govnmnt Resilience and Communities,It Takes A City (Cambridge),,Small,,,3700221638,,Grant payable by the Exchequer,CB2 3AR,"45,000.00",Yes
"Housing, Communities & Local Government",DLUHC,03/07/2023,Current Grants to Non Profit Bodies,Local Govnmnt Resilience and Communities,Kings Arms Project (Bedford),,Small,,,3700221641,,Grant payable by the Exchequer,MK42 9AZ,"36,451.00",Yes
"Housing, Communities & Local Government",DLUHC,03/07/2023,Current Grants to Non Profit Bodies,Local Govnmnt Resilience and Communities,Light Project Peterborough,,Small,,,3700221646,,Grant payable by the Exchequer,PE1 1YU,"57,283.00",Yes
"Housing, Communities & Local Government",DLUHC,03/07/2023,Current Grants to Non Profit Bodies,Local Govnmnt Resilience and Communities,NOAH ENTERPRISE,,Small,,525626388,3700221647,,Grant payable by the Exchequer,LU1 3HG,"99,000.00",Yes
"Housing, Communities & Local Government",DLUHC,03/07/2023,Current Grants to Non Profit Bodies,Local Govnmnt Resilience and Communities,SHELTER NAT CAMPAIGN HOMELESS,,Large,,,3700221630,,Grant payable by the Exchequer,EC1V 9HU,"209,022.00",Yes
"Housing, Communities & Local Government",DLUHC,03/07/2023,Current Grants to Non Profit Bodies,Local Govnmnt Resilience and Communities,SHELTER NAT CAMPAIGN HOMELESS,,Large,,,3700221633,,Grant payable by the Exchequer,EC1V 9HU,"252,462.00",Yes
"Housing, Communities & Local Government",DLUHC,03/07/2023,Current Grants to Non Profit Bodies,Local Govnmnt Resilience and Communities,St George's Crypt,,Small,,,3700221644,,Grant payable by the Exchequer,LS1 3BR,"100,000.00",Yes
"Housing, Communities & Local Government",DLUHC,03/07/2023,Current Grants to Non Profit Bodies,Local Govnmnt Resilience and Communities,St Petrocs,Yes,Small,,225508671,3700221642,,Grant payable by the Exchequer,TR1 2DP,"81,904.00",Yes
"Housing, Communities & Local Government",DLUHC,03/07/2023,ERDF Work in Progress � Capital,Regeneration,CAMBRIDGE UNIVERSITY,,,,226552610,7700014001,,ERDF grant payment,CB2 1QA,"158,549.39",Yes
"Housing, Communities & Local Government",DLUHC,03/07/2023,ERDF Work in Progress � Capital,Regeneration,"DEPT FOR BUS,ENERGY&IND STRATEGY",,Large,,,7700013998,,ERDF grant payment,SW1H 0ET,"20,000,000.00",Yes
"Housing, Communities & Local Government",DLUHC,03/07/2023,ERDF Work in Progress � Capital,Regeneration,EAST LONDON UNIVERSITY,,,,,7700014006,,ERDF grant payment,E16 2RD,"19,536.42",Yes
"Housing, Communities & Local Government",DLUHC,03/07/2023,ERDF Work in Progress � Capital,Regeneration,FOLKESTONE & HYTHE DC,,,,,7700014002,,ERDF grant payment,CT20 2QY,"37,672.56",Yes
"Housing, Communities & Local Government",DLUHC,03/07/2023,ERDF Work in Progress � Capital,Regeneration,LEEDS CITY COUNCIL,,Large,,,7700014008,,ERDF grant payment,LS2 8HD,"17,198.79",Yes
"Housing, Communities & Local Government",DLUHC,03/07/2023,ERDF Work in Progress � Capital,Regeneration,PENDLE BC,,Large,,,7700014003,,ERDF grant payment,BB9 7LG,"50,948.29",Yes
"Housing, Communities & Local Government",DLUHC,03/07/2023,ERDF Work in Progress � Capital,Regeneration,SUNDERLAND CITY COUNCIL,,,,,7700014005,,ERDF grant payment,SR2 7DN,"107,577.25",Yes
"Housing, Communities & Local Government",DLUHC,03/07/2023,ERDF Work in Progress � Capital,Regeneration,WORCESTERSHIRE COUNTY COUNCIL,,,,,7700014004,,ERDF grant payment,WR5 2NP,"71,348.83",Yes
"Housing, Communities & Local Government",DLUHC,03/07/2023,ERDF Work in Progress � Resource,Regeneration,CAMBRIDGE UNIVERSITY,,,,226552610,7700014001,,ERDF grant payment,CB2 1QA,"95,565.93",Yes
"Housing, Communities & Local Government",DLUHC,03/07/2023,ERDF Work in Progress � Resource,Regeneration,CITY OF BRADFORD MC,,,,,7700013997,,ERDF grant offset,BD1 1NN,-415.24,Yes
"Housing, Communities & Local Government",DLUHC,03/07/2023,ERDF Work in Progress � Resource,Regeneration,CITY OF BRADFORD MC,,,,,7700014007,,ERDF grant payment,BD1 1NN,"1,803.06",Yes
"Housing, Communities & Local Government",DLUHC,03/07/2023,ERDF Work in Progress � Resource,Regeneration,DURHAM COUNTY COUNCIL,,,,,7700014000,,ERDF grant payment,DH1 5UF,"100,041.98",Yes
"Housing, Communities & Local Government",DLUHC,03/07/2023,ERDF Work in Progress � Resource,Regeneration,EAST LONDON UNIVERSITY,,,,,7700014006,,ERDF grant payment,E16 2RD,"176,066.97",Yes
"Housing, Communities & Local Government",DLUHC,03/07/2023,ERDF Work in Progress � Resource,Regeneration,FOLKESTONE & HYTHE DC,,,,,7700014002,,ERDF grant payment,CT20 2QY,"49,883.49",Yes
"Housing, Communities & Local Government",DLUHC,03/07/2023,ERDF Work in Progress � Resource,Regeneration,LEEDS CITY COUNCIL,,Large,,,7700014008,,ERDF grant payment,LS2 8HD,"22,150.67",Yes
"Housing, Communities & Local Government",DLUHC,03/07/2023,ERDF Work in Progress � Resource,Regeneration,LIVERPOOL JOHN MOORES UNIVERSITY,,Large,,,7700013999,,ERDF grant payment,L1 2UA,"211,275.83",Yes
"Housing, Communities & Local Government",DLUHC,03/07/2023,ERDF Work in Progress � Resource,Regeneration,PENDLE BC,,Large,,,7700014003,,ERDF grant payment,BB9 7LG,"2,755.30",Yes
"Housing, Communities & Local Government",DLUHC,03/07/2023,ERDF Work in Progress � Resource,Regeneration,SUNDERLAND CITY COUNCIL,,,,,7700014005,,ERDF grant payment,SR2 7DN,"3,827.18",Yes
"Housing, Communities & Local Government",DLUHC,03/07/2023,ERDF Work in Progress � Resource,Regeneration,WORCESTERSHIRE COUNTY COUNCIL,,,,,7700014004,,ERDF grant payment,WR5 2NP,"15,061.73",Yes
"Housing, Communities & Local Government",DLUHC,03/07/2023,EXP � PURCHASE OF GOODS /SERVICES R & D,Safer and Greener Buildings,OFR CONSULTANTS LTD,,Medium,,,2100327087,,Real Fires Research Consultancy,M1 1JA,"-8,000.00",
"Housing, Communities & Local Government",DLUHC,03/07/2023,EXP � PURCHASE OF GOODS /SERVICES R & D,Safer and Greener Buildings,OFR CONSULTANTS LTD,,Medium,,,5106298772,,Real Fires Research Consultancy,M1 1JA,"8,000.00",
"Housing, Communities & Local Government",DLUHC,03/07/2023,IT - Service Contracts,CFO and Corporate,TPXimpact Limited,,Medium,,,5106298761,,OfLog Organisation Design Discov & Alpha,SE1 9RG,780,
"Housing, Communities & Local Government",DLUHC,03/07/2023,IT SUPPORT,Resettlements,MADE TECH LTD,,Medium,,,5106298759,IT Managed / Outsourced Services,Homes for Ukraine (Alpha Extension),EC2A 4NE,"39,764.29",
"Housing, Communities & Local Government",DLUHC,03/07/2023,Payroll Services,CFO and Corporate,CGI IT UK LIMITED,,Large,,239881618,5106298757,,Payroll Services 23-24,EC3M 3BY,402.89,
"Housing, Communities & Local Government",DLUHC,03/07/2023,Professional services,CFO and Corporate,Juicy Media Ltd,,Small,,,5106298780,,Movement of Gov PaaS to AWS (7 websites),M50 2ST,"39,000.00",
"Housing, Communities & Local Government",DLUHC,03/07/2023,Repayments of Private Sect Grant (Cap),Levelling Up,EBAC LIMITED,,,,,2300003571,,RGF Grant Recovery 1689c Grant Recovery 9th of 12,DL5 6SQ,"-48,184.89",
"Housing, Communities & Local Government",DLUHC,03/07/2023,Repayments of Private Sect Grant (Cap),Levelling Up,ERLSON PRECISION COMPONENTS LTD,,Medium,,,2300003569,,RGF Grant Recovery ref 1707C June 2023 instalment,WN8 9QB,"-2,618.42",
"Housing, Communities & Local Government",DLUHC,03/07/2023,Services provided by other Govt Orgs,Local Govnmnt Resilience and Communities,DEPARTMENT OF HEALTH,,Public Bodies,,,5106298775,Financial,DLUHC contribution to costs of Better Ca,LS2 7UE,"729,397.62",Yes
"Housing, Communities & Local Government",DLUHC,03/07/2023,Software Licences,CFO and Corporate,PHOENIX SOFTWARE LTD,,Large,,,5106298762,,Extended licence term/Atlassian Access,YO42 1NS,"22,985.11",
"Housing, Communities & Local Government",DLUHC,03/07/2023,Steady State Service Provision,Regeneration,LOCALITY,,Medium,,347998312,5106298779,,Technical Support - April 2023,N1 6DR,"30,224.50",
"Housing, Communities & Local Government",DLUHC,03/07/2023,Steady State Service Provision,Safer and Greener Buildings,Heads Resourcing Group Ltd,,Small,,218026480,5106298773,,Procurement Lead,SO50 9PD,"2,548.80",
"Housing, Communities & Local Government",DLUHC,03/07/2023,Web Services,CFO and Corporate,Juicy Media Ltd,,Small,,,5106298776,,Local Digital Campaign - Hosting 23/24,M50 2ST,"3,570.00",
"Housing, Communities & Local Government",DLUHC,04/07/2023,Cap Grants to Private Sector Companies,Safer and Greener Buildings,Rendall and Rittner,,,,,3700221844,,Grant payable by the Exchequer,SW8 2LE,"56,327.00",Yes
"Housing, Communities & Local Government",DLUHC,04/07/2023,Conferences and Meeting Facilities,Levelling Up,CALDER CONFERENCES  LTD,,Small,,,2100327131,Business Travel Accommodation,Conferences,LS16 6RF,"21,918.00",
"Housing, Communities & Local Government",DLUHC,04/07/2023,Conferences and Meeting Facilities,Safer and Greener Buildings,CALDER CONFERENCES  LTD,,Small,,,2100327131,Business Travel Accommodation,Conferences,LS16 6RF,"6,605.00",
"Housing, Communities & Local Government",DLUHC,04/07/2023,Conferences and Meeting Facilities,Safer and Greener Buildings,CALDER CONFERENCES  LTD,,Small,,,2100327131,Business Travel Accommodation,Conferences,LS16 6RF,"21,229.20",
"Housing, Communities & Local Government",DLUHC,04/07/2023,Consulting,Local Govnmnt Resilience and Communities,GATENBYSANDERSON LTD,,Medium,,,5106298815,,"Final stage fees, GatenbySanderson.",LS1 2HL,"24,832.50",
"Housing, Communities & Local Government",DLUHC,04/07/2023,ERDF Work in Progress � Capital,Regeneration,CHICHESTER UNIVERSITY,,,,,7700014016,,ERDF grant payment,PO19 6PE,"180,262.88",Yes
"Housing, Communities & Local Government",DLUHC,04/07/2023,ERDF Work in Progress � Capital,Regeneration,LIVERPOOL CITY REGION COMB AUTH,,,,,7700014017,,ERDF grant payment,L3 1FZ,"333,329.19",Yes
"Housing, Communities & Local Government",DLUHC,04/07/2023,ERDF Work in Progress � Capital,Regeneration,UNIVERSITY OF SALFORD,,,,,7700014014,,ERDF grant offset,M5 4WT,"-239,166.80",Yes
"Housing, Communities & Local Government",DLUHC,04/07/2023,ERDF Work in Progress � Capital,Regeneration,UNIVERSITY OF SALFORD,,,,,7700014018,,ERDF grant payment,M5 4WT,"252,055.34",Yes
"Housing, Communities & Local Government",DLUHC,04/07/2023,ERDF Work in Progress � Resource,Regeneration,CENTRE FOR PROCESS INNOVATION LTD,,Large,,,7700014012,,ERDF grant payment,TS10 4RF,"130,324.09",Yes
"Housing, Communities & Local Government",DLUHC,04/07/2023,ERDF Work in Progress � Resource,Regeneration,CHICHESTER UNIVERSITY,,,,,7700014016,,ERDF grant payment,PO19 6PE,"502,300.06",Yes
"Housing, Communities & Local Government",DLUHC,04/07/2023,ERDF Work in Progress � Resource,Regeneration,DURHAM COUNTY COUNCIL,,,,,7700014011,,ERDF grant payment,DH1 5UF,"197,225.03",Yes
"Housing, Communities & Local Government",DLUHC,04/07/2023,ERDF Work in Progress � Resource,Regeneration,GATESHEAD COUNCIL,,Large,,,7700014010,,ERDF grant payment,NE8 1HH,"59,244.05",Yes
"Housing, Communities & Local Government",DLUHC,04/07/2023,ERDF Work in Progress � Resource,Regeneration,LIVERPOOL CITY REGION COMB AUTH,,,,,7700014017,,ERDF grant payment,L3 1FZ,"112,990.73",Yes
"Housing, Communities & Local Government",DLUHC,04/07/2023,ERDF Work in Progress � Resource,Regeneration,LIVERPOOL UNIVERSITY,,,,,7700014013,,ERDF grant payment,L69 3BX,"269,911.23",Yes
"Housing, Communities & Local Government",DLUHC,04/07/2023,ERDF Work in Progress � Resource,Regeneration,UNIVERSITY OF BIRMINGHAM,,Large,,,7700014015,,ERDF grant payment,B15 2TT,"564,551.84",Yes
"Housing, Communities & Local Government",DLUHC,04/07/2023,ERDF Work in Progress � Resource,Regeneration,UNIVERSITY OF NOTTINGHAM,,,,,7700014009,,ERDF grant payment,NG7 2TU,"72,905.08",Yes
"Housing, Communities & Local Government",DLUHC,04/07/2023,ERDF Work in Progress � Resource,Regeneration,UNIVERSITY OF SALFORD,,,,,7700014014,,ERDF grant offset,M5 4WT,"-5,768.33",Yes
"Housing, Communities & Local Government",DLUHC,04/07/2023,ERDF Work in Progress � Resource,Regeneration,UNIVERSITY OF SALFORD,,,,,7700014018,,ERDF grant payment,M5 4WT,"79,139.37",Yes
"Housing, Communities & Local Government",DLUHC,04/07/2023,EXP � PURCHASE OF GOODS /SERVICES R & D,Regeneration,KANTAR PUBLIC UK LTD,Yes,Large,,228340905,5106298819,,2021-26 Affordable Homes Programme evalu,SW1P 3JA,"81,710.00",
"Housing, Communities & Local Government",DLUHC,04/07/2023,IT - Service Contracts,CFO and Corporate,Itm Communications Limited,,Medium,,,2100327142,,2MS Lan Works,MK13 9HA,"-15,817.50",
"Housing, Communities & Local Government",DLUHC,04/07/2023,IT - Service Contracts,CFO and Corporate,Itm Communications Limited,,Medium,,,5106298885,,2MS Lan Works,MK13 9HA,"15,817.50",
"Housing, Communities & Local Government",DLUHC,04/07/2023,IT - Service Contracts,Levelling Up,Juicy Media Ltd,,Small,,,5106298817,,Hosting - High Streets Task Force,M50 2ST,"2,220.00",
"Housing, Communities & Local Government",DLUHC,04/07/2023,IT SUPPORT,"Union, Elections and Places",SOFTWIRE TECHNOLOGY LTD,,Medium,,,5106298816,,IERDS Support & Maintenance,NW5 1TL,"1,500.00",
"Housing, Communities & Local Government",DLUHC,04/07/2023,Legal Fees,Local Govnmnt Resilience and Communities,PINSENT MASONS LLP,,Large,,215580626,5106298774,,Legal Advice,EC2A 4ES,"2,400.00",
"Housing, Communities & Local Government",DLUHC,04/07/2023,Professional services,Safer and Greener Buildings,GOVT ACTUARYS DEPARTMENT,,Public Bodies,,217789766,5106298585,Financial,Buildings Insurance Actuarial Services,EC4A 1AB,849.57,
"Housing, Communities & Local Government",DLUHC,04/07/2023,Services provided by other Govt Orgs,Regeneration,HER MAJESTYS COURTS & TRIBUNAL SERV,,Public Bodies,,212437904,5106298821,,Private Rented Sector tribunal costs ,NP10 8FZ,"495,602.00",Yes
"Housing, Communities & Local Government",DLUHC,04/07/2023,Services provided by other Govt Orgs,Regeneration,HER MAJESTYS COURTS & TRIBUNAL SERV,,Public Bodies,,212437904,5106298821,,Private Rented Sector tribunal costs ,NP10 8FZ,"17,533.00",Yes
"Housing, Communities & Local Government",DLUHC,04/07/2023,Training,CFO and Corporate,CIPD ENTERPRISES LTD,,Large,,737237628,5106298802,,Civil Service Training,SW19 1JQ,"1,765.00",
"Housing, Communities & Local Government",DLUHC,04/07/2023,Training,CFO and Corporate,ECONOMICSENSE LTD,,Micro,,,5106298789,,Civil Service Training,KT6 5PW,275,
"Housing, Communities & Local Government",DLUHC,04/07/2023,Training,CFO and Corporate,ERNST & YOUNG LLP,,Large,,221768935,5106298784,,Civil Service Training,SE1 2AF,532,
"Housing, Communities & Local Government",DLUHC,04/07/2023,Training,CFO and Corporate,ERNST & YOUNG LLP,,Large,,221768935,5106298785,,Civil Service Training,SE1 2AF,589,
"Housing, Communities & Local Government",DLUHC,04/07/2023,Training,CFO and Corporate,Living Presence,,Micro,,,5106298814,,Civil Service Training,CB4 1TX,750,
"Housing, Communities & Local Government",DLUHC,04/07/2023,Web Services,Safer and Greener Buildings,Juicy Media Ltd,,Small,,,5106298820,,Migration to GOV.UK hosting platform,M50 2ST,"3,210.00",
"Housing, Communities & Local Government",DLUHC,05/07/2023,Cap Grants to Private Sector Companies,Safer and Greener Buildings,Y & Y MANAGEMENT,,,,,3700201123,,Surplus on account payable to the Exchequer,N16 6DB,"-80,224.00",Yes
"Housing, Communities & Local Government",DLUHC,05/07/2023,Courier Services,CFO and Corporate,POSTURITE LTD,,Medium,,216832621,5106298855,,Delivery & Set Up,BN26 6SZ,101.94,
"Housing, Communities & Local Government",DLUHC,05/07/2023,Current (non AEF) Grants to Local Authorities,Local Govnmnt Resilience and Communities,North Northamptonshire UA,,,,,3700184134,,Surplus on account payable to the Exchequer,NN16 8TL,"-13,075.00",Yes
"Housing, Communities & Local Government",DLUHC,05/07/2023,EXP � PURCHASE OF GOODS /SERVICES R & D,CFO and Corporate,NATIONAL CENTRE FOR SOCIAL RESEARCH,,Large,,424047426,5106298869,,Social Research,EC1V 0AX,"529,376.36",
"Housing, Communities & Local Government",DLUHC,05/07/2023,EXP � PURCHASE OF GOODS /SERVICES R & D,CFO and Corporate,NATIONAL CENTRE FOR SOCIAL RESEARCH,,Large,,424047426,5106298873,,Social Research,EC1V 0AX,"10,026.00",
"Housing, Communities & Local Government",DLUHC,05/07/2023,EXP � PURCHASE OF GOODS /SERVICES R & D,CFO and Corporate,NATIONAL CENTRE FOR SOCIAL RESEARCH,,Large,,424047426,5106298875,,Social Research,EC1V 0AX,"27,187.92",
"Housing, Communities & Local Government",DLUHC,05/07/2023,EXP � PURCHASE OF GOODS /SERVICES R & D,CFO and Corporate,NATIONAL CENTRE FOR SOCIAL RESEARCH,,Large,,424047426,5106298877,,Social Research,EC1V 0AX,"48,304.91",
"Housing, Communities & Local Government",DLUHC,05/07/2023,EXP � PURCHASE OF GOODS /SERVICES R & D,Local Govnmnt Resilience and Communities,Home Connections Lettings Limited,,Small,,345657030,5106298854,,Streetlink,N7 9DP,"196,305.60",
"Housing, Communities & Local Government",DLUHC,05/07/2023,EXP � PURCHASE OF GOODS /SERVICES R & D,Regeneration,LANDMARK CHAMBERS,,Medium,,732521732,5106298849,,Climate Change Mitigation- Advice,EC4A 2HG,390,
"Housing, Communities & Local Government",DLUHC,05/07/2023,EXP � PURCHASE OF GOODS /SERVICES R & D,Regeneration,STEER DAVIES & GLEAVE T/A STEER,,Large,,,5106298837,,Procurement of feasibility study and eva,SE1 9PD,"5,284.80",
"Housing, Communities & Local Government",DLUHC,05/07/2023,"Furniture, Fittings and carpets",CFO and Corporate,POSTURITE LTD,,Medium,,216832621,5106298855,,Sit stand desk,BN26 6SZ,589.14,
"Housing, Communities & Local Government",DLUHC,05/07/2023,IT - Service Contracts,CFO and Corporate,DAISY CORPORATE SERVICES TRADING LT,,Large,,,5106298866,IT Managed / Outsourced Services,Hardware/Capital costs including WiFi Re,BB9 5SR,"1,266.00",
"Housing, Communities & Local Government",DLUHC,05/07/2023,IT - Service Contracts,CFO and Corporate,LITTLE FISH(UK)T/A LITTLE FISH,,Medium,,,5106298867,IT Managed / Outsourced Services,Servicedesk 8 mths FY23/24,NG1 1LS,"104,027.07",
"Housing, Communities & Local Government",DLUHC,05/07/2023,IT - Service Contracts,CFO and Corporate,LUMEN TECHNOLOGIES UK LTD,,Large,,,5106298880,,PSN AWS Connection Variation 1,EC4M 7RB,"1,367.00",
"Housing, Communities & Local Government",DLUHC,05/07/2023,IT - Service Contracts,CFO and Corporate,X M A LTD,,Large,,298484148,5106298876,,6 month extension Hardware Support Servi,NG11 7EP,"12,203.72",
"Housing, Communities & Local Government",DLUHC,05/07/2023,IT - Service Contracts,Safer and Greener Buildings,MADE TECH LTD,,Medium,,,5106298684,,Supply Chain & Remediation Discovery,EC2A 4NE,"40,518.00",
"Housing, Communities & Local Government",DLUHC,05/07/2023,IT - Service Contracts,"Union, Elections and Places",Democracy Counts Ltd,,Small,,216310585,5106298848,,Electoral Management System,WA5 1DF,"150,336.00",
"Housing, Communities & Local Government",DLUHC,05/07/2023,IT - Software Maintenance,CFO and Corporate,ARCH CONSULTING LTD,,Small,,543735104,5106298825,,SAP S4 Migration & Fiori Finance Impleme,W4 1PF,"50,895.00",
"Housing, Communities & Local Government",DLUHC,05/07/2023,IT - Software Maintenance,CFO and Corporate,ARCH CONSULTING LTD,,Small,,543735104,5106298834,,SAP eForms Maintenance & Development 2 y,W4 1PF,"3,330.00",
"Housing, Communities & Local Government",DLUHC,05/07/2023,IT Consultancy,CFO and Corporate,Version 1 Solutions Ltd,,Large,,536340334,5106298844,,FSD development costs for April - Novemb,B97 4DL,"41,304.00",
"Housing, Communities & Local Government",DLUHC,05/07/2023,Payroll Services,CFO and Corporate,CGI IT UK LIMITED,,Large,,239881618,5106298861,,Payroll Services 23-24,EC3M 3BY,"20,195.59",
"Housing, Communities & Local Government",DLUHC,05/07/2023,Printing,"Union, Elections and Places",HH Associates Limited,,Large,,770639193,5106298811,,Voter Card Print Contract,KT22 9DF,468.23,
"Housing, Communities & Local Government",DLUHC,05/07/2023,Printing,"Union, Elections and Places",HH Associates Limited,,Large,,770639193,5106298812,,Voter Card Print Contract,KT22 9DF,435.58,
"Housing, Communities & Local Government",DLUHC,05/07/2023,Printing,"Union, Elections and Places",HH Associates Limited,,Large,,770639193,5106298823,,Voter Card Print Contract,KT22 9DF,445.59,
"Housing, Communities & Local Government",DLUHC,05/07/2023,Printing,"Union, Elections and Places",HH Associates Limited,,Large,,770639193,5106298871,,Voter Card Print Contract,KT22 9DF,"12,080.02",
"Housing, Communities & Local Government",DLUHC,05/07/2023,Printing,"Union, Elections and Places",HH Associates Limited,,Large,,770639193,5106298872,,Voter Card Print Contract,KT22 9DF,"3,694.33",
"Housing, Communities & Local Government",DLUHC,05/07/2023,Printing,"Union, Elections and Places",HH Associates Limited,,Large,,770639193,5106298874,,Voter Card Print Contract,KT22 9DF,391.72,
"Housing, Communities & Local Government",DLUHC,05/07/2023,Printing,"Union, Elections and Places",HH Associates Limited,,Large,,770639193,5106298878,,Voter Card Print Contract,KT22 9DF,"9,525.65",
"Housing, Communities & Local Government",DLUHC,05/07/2023,Professional services,Local Govnmnt Resilience and Communities,Home Connections Lettings Limited,,Small,,345657030,5106298852,,Streetlink,N7 9DP,"231,120.00",
"Housing, Communities & Local Government",DLUHC,05/07/2023,Professional services,Regeneration,KANTAR PUBLIC UK LTD,Yes,Large,,228340905,5106298859,,Planning Reform Evaluation Scoping Study,SW1P 3JA,"89,198.00",
"Housing, Communities & Local Government",DLUHC,05/07/2023,Professional services,"Union, Elections and Places",Zaizi Limited,,Micro,,,5106298895,,EIP Business Analyst Uplift,W6 7JP,"10,875.60",
"Housing, Communities & Local Government",DLUHC,05/07/2023,Publishing,CFO and Corporate,Allied Publicity Services(Mancheste,,Micro,,212228001,5106298686,,levelling Up logo,SK3 02P,665.6,
"Housing, Communities & Local Government",DLUHC,05/07/2023,Rates,CFO and Corporate,GOVERNMENT PROPERTY AGENCY,,Medium,,,5106298826,,RCC Rates for 23/24,B2 5LS,"64,640.00",
"Housing, Communities & Local Government",DLUHC,05/07/2023,Rates,CFO and Corporate,GOVERNMENT PROPERTY AGENCY,,Medium,,,5106298827,,RCC Rates for 23/24,B2 5LS,"15,360.00",
"Housing, Communities & Local Government",DLUHC,05/07/2023,Rates,CFO and Corporate,GOVERNMENT PROPERTY AGENCY,,Medium,,,5106298862,,RCC Rates for 23/24,B2 5LS,"41,920.00",
"Housing, Communities & Local Government",DLUHC,05/07/2023,Rates,CFO and Corporate,GOVERNMENT PROPERTY AGENCY,,Medium,,,5106298863,,RCC Rates for 23/24,B2 5LS,"14,208.00",
"Housing, Communities & Local Government",DLUHC,05/07/2023,Rates,CFO and Corporate,GOVERNMENT PROPERTY AGENCY,,Medium,,,5106298864,,RCC Rates for 23/24,B2 5LS,"64,640.00",
"Housing, Communities & Local Government",DLUHC,05/07/2023,Rates,CFO and Corporate,GOVERNMENT PROPERTY AGENCY,,Medium,,,5106298868,,RCC Rates for 23/24,B2 5LS,"43,520.00",
"Housing, Communities & Local Government",DLUHC,05/07/2023,Rates,CFO and Corporate,GOVERNMENT PROPERTY AGENCY,,Medium,,,5106298870,,RCC Rates for 23/24,B2 5LS,"14,080.00",
"Housing, Communities & Local Government",DLUHC,05/07/2023,Software Licences,CFO and Corporate,PHOENIX SOFTWARE LTD,,Large,,,5106298841,,Assistive Software (RA),YO42 1NS,564,
"Housing, Communities & Local Government",DLUHC,05/07/2023,Steady State Service Provision,CFO and Corporate,GOVERNMENT PROPERTY AGENCY,,Medium,,,5106298826,,RCC Management fee for 23/24,B2 5LS,"1,487.50",
"Housing, Communities & Local Government",DLUHC,05/07/2023,Steady State Service Provision,CFO and Corporate,GOVERNMENT PROPERTY AGENCY,,Medium,,,5106298826,,RCC Rents for 23/24,B2 5LS,"443,515.46",
"Housing, Communities & Local Government",DLUHC,05/07/2023,Steady State Service Provision,CFO and Corporate,GOVERNMENT PROPERTY AGENCY,,Medium,,,5106298827,,RCC Management fee for 23/24,B2 5LS,"1,487.50",
"Housing, Communities & Local Government",DLUHC,05/07/2023,Steady State Service Provision,CFO and Corporate,GOVERNMENT PROPERTY AGENCY,,Medium,,,5106298827,,RCC Rents for 23/24,B2 5LS,"462,135.96",
"Housing, Communities & Local Government",DLUHC,05/07/2023,Steady State Service Provision,CFO and Corporate,GOVERNMENT PROPERTY AGENCY,,Medium,,,5106298862,,RCC Management fee for 23/24,B2 5LS,"1,487.50",
"Housing, Communities & Local Government",DLUHC,05/07/2023,Steady State Service Provision,CFO and Corporate,GOVERNMENT PROPERTY AGENCY,,Medium,,,5106298862,,RCC Rents for 23/24,B2 5LS,"448,363.63",
"Housing, Communities & Local Government",DLUHC,05/07/2023,Steady State Service Provision,CFO and Corporate,GOVERNMENT PROPERTY AGENCY,,Medium,,,5106298863,,RCC Management fee for 23/24,B2 5LS,"1,487.50",
"Housing, Communities & Local Government",DLUHC,05/07/2023,Steady State Service Provision,CFO and Corporate,GOVERNMENT PROPERTY AGENCY,,Medium,,,5106298863,,RCC Rents for 23/24,B2 5LS,"493,100.64",
"Housing, Communities & Local Government",DLUHC,05/07/2023,Steady State Service Provision,CFO and Corporate,GOVERNMENT PROPERTY AGENCY,,Medium,,,5106298864,,RCC Management fee for 23/24,B2 5LS,"1,487.50",
"Housing, Communities & Local Government",DLUHC,05/07/2023,Steady State Service Provision,CFO and Corporate,GOVERNMENT PROPERTY AGENCY,,Medium,,,5106298864,,RCC Rents for 23/24,B2 5LS,"443,515.46",
"Housing, Communities & Local Government",DLUHC,05/07/2023,Steady State Service Provision,CFO and Corporate,GOVERNMENT PROPERTY AGENCY,,Medium,,,5106298868,,RCC Management fee for 23/24,B2 5LS,"3,755.00",
"Housing, Communities & Local Government",DLUHC,05/07/2023,Steady State Service Provision,CFO and Corporate,GOVERNMENT PROPERTY AGENCY,,Medium,,,5106298868,,RCC Rents for 23/24,B2 5LS,"447,354.90",
"Housing, Communities & Local Government",DLUHC,05/07/2023,Steady State Service Provision,CFO and Corporate,GOVERNMENT PROPERTY AGENCY,,Medium,,,5106298870,,RCC Management fee for 23/24,B2 5LS,"1,487.50",
"Housing, Communities & Local Government",DLUHC,05/07/2023,Steady State Service Provision,CFO and Corporate,GOVERNMENT PROPERTY AGENCY,,Medium,,,5106298870,,RCC Rents for 23/24,B2 5LS,"502,507.42",
"Housing, Communities & Local Government",DLUHC,05/07/2023,Training,CFO and Corporate,ERNST & YOUNG LLP,,Large,,221768935,5106298768,,Civil Service Training,SE1 2AF,"4,808.62",
"Housing, Communities & Local Government",DLUHC,05/07/2023,Training,CFO and Corporate,Political Engagement Limited,,Medium,,,5106298879,,Civil Service Training,SW1P 4QP,295,
"Housing, Communities & Local Government",DLUHC,05/07/2023,Web Services,CFO and Corporate,Juicy Media Ltd,,Small,,,5106298865,,Local Digital Campaign - Hosting 23/24,M50 2ST,"3,570.00",
"Housing, Communities & Local Government",DLUHC,05/07/2023,Web Services,Safer and Greener Buildings,Juicy Media Ltd,,Small,,,5106298891,,Hosting,M50 2ST,"3,210.00",
"Housing, Communities & Local Government",DLUHC,06/07/2023,Conferences and Meeting Facilities,Local Govnmnt Resilience and Communities,ONE HOUSING GROUP LIMITED,,Large,,232075135,5106298909,,Room hire & refreshments,NW1 8EH,"1,050.00",
"Housing, Communities & Local Government",DLUHC,06/07/2023,Courier Services,Safer and Greener Buildings,Jhb Adventures Ltd T/A Jogpost,,Small,,,5106298916,,Distribution of GTMC leaflets - Jogpost,UB3 1BQ,462,
"Housing, Communities & Local Government",DLUHC,06/07/2023,ERDF Work in Progress � Capital,Regeneration,OXFORD INNOVATION SERVICES LTD(MGP2,,,,,7700014029,,ERDF grant payment,OX1 1BY,"40,572.19",Yes
"Housing, Communities & Local Government",DLUHC,06/07/2023,ERDF Work in Progress � Capital,Regeneration,PETROC,,,,,7700014028,,ERDF grant payment,EX31 2BQ,"52,344.18",Yes
"Housing, Communities & Local Government",DLUHC,06/07/2023,ERDF Work in Progress � Resource,Regeneration,OXFORD INNOVATION SERVICES LTD(MGP2,,,,,7700014029,,ERDF grant payment,OX1 1BY,"361,665.63",Yes
"Housing, Communities & Local Government",DLUHC,06/07/2023,EXP � PURCHASE OF GOODS /SERVICES R & D,CFO and Corporate,BLOOMBERG FINANCE L.P,,Large,,,5106298928,Research,Bloomberg Subscription,10022,"5,476.33",
"Housing, Communities & Local Government",DLUHC,06/07/2023,EXP � PURCHASE OF GOODS /SERVICES R & D,CFO and Corporate,ORDNANCE SURVEY,,Public Bodies,,211631592,5106294657,Research,Ordnance Survey Data,SO16 0AS,"30,000.00",
"Housing, Communities & Local Government",DLUHC,06/07/2023,EXP � PURCHASE OF GOODS /SERVICES R & D,Levelling Up,Wavehill Ltd,,Small,,216339024,5106298924,,CRF Evaluation,SA46 0DB,"99,330.00",
"Housing, Communities & Local Government",DLUHC,06/07/2023,"IT - PC, Network & Hardware",CFO and Corporate,X M A LTD,,Large,,298484148,5106298929,,Beyond Whitehall Estates moves,NG11 7EP,252,
"Housing, Communities & Local Government",DLUHC,06/07/2023,"IT - PC, Network & Hardware",CFO and Corporate,X M A LTD,,Large,,298484148,5106298931,,Beyond Whitehall Estates moves,NG11 7EP,960,
"Housing, Communities & Local Government",DLUHC,06/07/2023,IT - Service Contracts,CFO and Corporate,X M A LTD,,Large,,298484148,5106298930,IT Managed / Outsourced Services,6 month extension Hardware Support Servi,NG11 7EP,325,
"Housing, Communities & Local Government",DLUHC,06/07/2023,IT - Software Maintenance,Safer and Greener Buildings,Juicy Media Ltd,,Small,,,5106298898,,Monthly upload to leaseholder portal fro,M50 2ST,357,
"Housing, Communities & Local Government",DLUHC,06/07/2023,Printing,"Union, Elections and Places",HH Associates Limited,,Large,,770639193,5106298910,,Print Management Services (22/23),KT22 9DF,"29,959.85",
"Housing, Communities & Local Government",DLUHC,06/07/2023,Professional services,CFO and Corporate,Itm Communications Limited,,Medium,,,5106298907,IT Managed / Outsourced Services,2MS Refurbishment 2023-24,MK13 9HA,"18,981.00",
"Housing, Communities & Local Government",DLUHC,06/07/2023,Professional services,CFO and Corporate,Itm Communications Limited,,Medium,,,5106298912,IT Managed / Outsourced Services,2MS Refurbishment 2023-24,MK13 9HA,"-7,182.00",
"Housing, Communities & Local Government",DLUHC,06/07/2023,Professional services,Safer and Greener Buildings,RIDGE & PARTNERS LLP,,Large,,739927452,5106298833,,Client-Side Servie Provider,OX20 1QR,"65,817.90",
"Housing, Communities & Local Government",DLUHC,06/07/2023,Publishing,Safer and Greener Buildings,SOCIAL SPIDER COMMUNITY INTEREST CO,,Small,,,5106298919,,Grenfell Tower Memorial Commission s fin,E17 7HA,"8,299.20",
"Housing, Communities & Local Government",DLUHC,06/07/2023,Rates,CFO and Corporate,GOVERNMENT PROPERTY AGENCY,,Medium,,,5106298918,,2MS rates 23/24,B2 5LS,"774,383.54",
"Housing, Communities & Local Government",DLUHC,06/07/2023,Rent,CFO and Corporate,GOVERNMENT PROPERTY AGENCY,,Medium,,,5106298918,,2MS rent 23/24,B2 5LS,"2,545,583.62",
"Housing, Communities & Local Government",DLUHC,06/07/2023,Rent,CFO and Corporate,GOVERNMENT PROPERTY AGENCY,,Medium,,,5106298923,,2MS rent 23/24,B2 5LS,"-69,416.49",
"Housing, Communities & Local Government",DLUHC,06/07/2023,Software Licences,CFO and Corporate,Juicy Media Ltd,,Small,,,5106298794,,Social Research,M50 2ST,800,
"Housing, Communities & Local Government",DLUHC,06/07/2023,Steady State Service Provision,CFO and Corporate,EDENRED (UK GROUP) LTD,,Large,,210186342,5106298922,,EPS Vouchers 23/24,SW1V 2RS,"12,130.00",
"Housing, Communities & Local Government",DLUHC,06/07/2023,Steady State Service Provision,CFO and Corporate,GOVERNMENT PROPERTY AGENCY,,Medium,,,5106298918,,2MS management charge,B2 5LS,"51,695.51",
"Housing, Communities & Local Government",DLUHC,06/07/2023,Training,CFO and Corporate,LSR TRAINING AND DEVELOPMENT LTD,,Micro,,,5106298899,,Civil Service Training,YO42 4RE,745,
"Housing, Communities & Local Government",DLUHC,06/07/2023,Web Services,Local Govnmnt Resilience and Communities,Juicy Media Ltd,,Small,,,5106298793,,Hosting Charges (6 months),M50 2ST,"1,500.00",
"Housing, Communities & Local Government",DLUHC,07/07/2023,Agency Staff,CFO and Corporate,ALEXANDER MANN SOLUTIONS LTD,,Large,,,5106298976,,Agency Staff,EC2N 3AQ,"8,622.96",
"Housing, Communities & Local Government",DLUHC,07/07/2023,Agency Staff,CFO and Corporate,ALEXANDER MANN SOLUTIONS LTD,,Large,,,5106298979,,Agency Staff,EC2N 3AQ,"8,862.72",
"Housing, Communities & Local Government",DLUHC,07/07/2023,Agency Staff,CFO and Corporate,ALEXANDER MANN SOLUTIONS LTD,,Large,,,5106298980,,Agency Staff,EC2N 3AQ,"4,157.52",
"Housing, Communities & Local Government",DLUHC,07/07/2023,Agency Staff,CFO and Corporate,ALEXANDER MANN SOLUTIONS LTD,,Large,,,5106298984,,Agency Staff,EC2N 3AQ,"9,239.04",
"Housing, Communities & Local Government",DLUHC,07/07/2023,Agency Staff,CFO and Corporate,ALEXANDER MANN SOLUTIONS LTD,,Large,,,5106298986,,Agency Staff,EC2N 3AQ,"8,292.96",
"Housing, Communities & Local Government",DLUHC,07/07/2023,Agency Staff,CFO and Corporate,ALEXANDER MANN SOLUTIONS LTD,,Large,,,5106298987,,Agency Staff,EC2N 3AQ,"8,007.12",
"Housing, Communities & Local Government",DLUHC,07/07/2023,Agency Staff,CFO and Corporate,ALEXANDER MANN SOLUTIONS LTD,,Large,,,5106298989,,Agency Staff,EC2N 3AQ,"4,465.50",
"Housing, Communities & Local Government",DLUHC,07/07/2023,Agency Staff,CFO and Corporate,ALEXANDER MANN SOLUTIONS LTD,,Large,,,5106298991,,Agency Staff,EC2N 3AQ,"3,465.30",
"Housing, Communities & Local Government",DLUHC,07/07/2023,Agency Staff,CFO and Corporate,ALEXANDER MANN SOLUTIONS LTD,,Large,,,5106298995,,Agency Staff,EC2N 3AQ,"5,605.15",
"Housing, Communities & Local Government",DLUHC,07/07/2023,Agency Staff,CFO and Corporate,ALEXANDER MANN SOLUTIONS LTD,,Large,,,5106298996,,Agency Staff,EC2N 3AQ,"4,095.36",
"Housing, Communities & Local Government",DLUHC,07/07/2023,Agency Staff,CFO and Corporate,ALEXANDER MANN SOLUTIONS LTD,,Large,,,5106298998,,Agency Staff,EC2N 3AQ,"9,680.76",
"Housing, Communities & Local Government",DLUHC,07/07/2023,Agency Staff,CFO and Corporate,ALEXANDER MANN SOLUTIONS LTD,,Large,,,5106299004,,Agency Staff,EC2N 3AQ,"3,980.88",
"Housing, Communities & Local Government",DLUHC,07/07/2023,Agency Staff,CFO and Corporate,ALEXANDER MANN SOLUTIONS LTD,,Large,,,5106299005,,Agency Staff,EC2N 3AQ,"3,465.30",
"Housing, Communities & Local Government",DLUHC,07/07/2023,Agency Staff,CFO and Corporate,ALEXANDER MANN SOLUTIONS LTD,,Large,,,5106299006,,Agency Staff,EC2N 3AQ,"8,349.00",
"Housing, Communities & Local Government",DLUHC,07/07/2023,Agency Staff,CFO and Corporate,ALEXANDER MANN SOLUTIONS LTD,,Large,,,5106299010,,Agency Staff,EC2N 3AQ,"8,007.12",
"Housing, Communities & Local Government",DLUHC,07/07/2023,Agency Staff,CFO and Corporate,ALEXANDER MANN SOLUTIONS LTD,,Large,,,5106299013,,Agency Staff,EC2N 3AQ,"9,239.04",
"Housing, Communities & Local Government",DLUHC,07/07/2023,Agency Staff,Local Govnmnt Resilience and Communities,ALEXANDER MANN SOLUTIONS LTD,,Large,,,5106298981,,Agency Staff,EC2N 3AQ,"1,761.46",
"Housing, Communities & Local Government",DLUHC,07/07/2023,Agency Staff,Local Govnmnt Resilience and Communities,ALEXANDER MANN SOLUTIONS LTD,,Large,,,5106298983,,Agency Staff,EC2N 3AQ,"3,141.25",
"Housing, Communities & Local Government",DLUHC,07/07/2023,Agency Staff,Local Govnmnt Resilience and Communities,ALEXANDER MANN SOLUTIONS LTD,,Large,,,5106298997,,Agency Staff,EC2N 3AQ,"2,311.56",
"Housing, Communities & Local Government",DLUHC,07/07/2023,Agency Staff,Local Govnmnt Resilience and Communities,ALEXANDER MANN SOLUTIONS LTD,,Large,,,5106299000,,Agency Staff,EC2N 3AQ,"3,465.30",
"Housing, Communities & Local Government",DLUHC,07/07/2023,Agency Staff,Local Govnmnt Resilience and Communities,ALEXANDER MANN SOLUTIONS LTD,,Large,,,5106299007,,Agency Staff,EC2N 3AQ,"3,465.30",
"Housing, Communities & Local Government",DLUHC,07/07/2023,Agency Staff,Local Govnmnt Resilience and Communities,ALEXANDER MANN SOLUTIONS LTD,,Large,,,5106299008,,Agency Staff,EC2N 3AQ,"3,465.30",
"Housing, Communities & Local Government",DLUHC,07/07/2023,Agency Staff,Local Govnmnt Resilience and Communities,ALEXANDER MANN SOLUTIONS LTD,,Large,,,5106299012,,Agency Staff,EC2N 3AQ,"1,097.82",
"Housing, Communities & Local Government",DLUHC,07/07/2023,Agency Staff,Local Govnmnt Resilience and Communities,Zaizi Limited,,Micro,,,5106299016,,Ministerial Dashboard Support,W6 7JP,"1,754.83",
"Housing, Communities & Local Government",DLUHC,07/07/2023,Agency Staff,Local Govnmnt Resilience and Communities,Zaizi Limited,,Micro,,,5106299016,,Ministerial Dashboard Support (Ext),W6 7JP,"13,362.24",
"Housing, Communities & Local Government",DLUHC,07/07/2023,Agency Staff,Regeneration,ALEXANDER MANN SOLUTIONS LTD,,Large,,,5106298993,,Agency Staff,EC2N 3AQ,"8,505.72",
"Housing, Communities & Local Government",DLUHC,07/07/2023,Agency Staff,Safer and Greener Buildings,ALEXANDER MANN SOLUTIONS LTD,,Large,,,5106298982,,Agency Staff,EC2N 3AQ,"3,465.30",
"Housing, Communities & Local Government",DLUHC,07/07/2023,Agency Staff,Safer and Greener Buildings,ALEXANDER MANN SOLUTIONS LTD,,Large,,,5106298985,,Agency Staff,EC2N 3AQ,"4,989.01",
"Housing, Communities & Local Government",DLUHC,07/07/2023,Agency Staff,Safer and Greener Buildings,ALEXANDER MANN SOLUTIONS LTD,,Large,,,5106298994,,Agency Staff,EC2N 3AQ,"3,780.36",
"Housing, Communities & Local Government",DLUHC,07/07/2023,Agency Staff,Safer and Greener Buildings,ALEXANDER MANN SOLUTIONS LTD,,Large,,,5106299001,,Agency Staff,EC2N 3AQ,"3,150.30",
"Housing, Communities & Local Government",DLUHC,07/07/2023,Agency Staff,Safer and Greener Buildings,ALEXANDER MANN SOLUTIONS LTD,,Large,,,5106299003,,Agency Staff,EC2N 3AQ,"8,402.96",
"Housing, Communities & Local Government",DLUHC,07/07/2023,Agency Staff,"Union, Elections and Places",ALEXANDER MANN SOLUTIONS LTD,,Large,,,5106298999,Contingent Labour,Agency Staff,EC2N 3AQ,"4,804.27",
"Housing, Communities & Local Government",DLUHC,07/07/2023,Agency Staff,"Union, Elections and Places",ALEXANDER MANN SOLUTIONS LTD,,Large,,,5106299002,,Agency Staff,EC2N 3AQ,"1,552.54",
"Housing, Communities & Local Government",DLUHC,07/07/2023,Cap Grants to Local Authorities (DEL),Levelling Up,Aberdeenshire Council,,,,,3700222030,,Grant payable by the Exchequer,AB16 5GB,"247,584.00",Yes
"Housing, Communities & Local Government",DLUHC,07/07/2023,Cap Grants to Local Authorities (DEL),Levelling Up,Angus Council,,,,,3700222087,,Grant payable by the Exchequer,DD8 1AN,"435,431.00",Yes
"Housing, Communities & Local Government",DLUHC,07/07/2023,Cap Grants to Local Authorities (DEL),Levelling Up,ARUN DC,,,,211217668,3700221998,,Grant payable by the Exchequer,BN17 5LF,"75,000.00",Yes
"Housing, Communities & Local Government",DLUHC,07/07/2023,Cap Grants to Local Authorities (DEL),Levelling Up,ASHFIELD DC,,,,235415296,3700221902,,Grant payable by the Exchequer,NG17 8DA,"167,000.00",Yes
"Housing, Communities & Local Government",DLUHC,07/07/2023,Cap Grants to Local Authorities (DEL),Levelling Up,ASHFORD BC,,,,229467071,3700221894,,Grant payable by the Exchequer,TN23 1PL,"67,979.00",Yes
"Housing, Communities & Local Government",DLUHC,07/07/2023,Cap Grants to Local Authorities (DEL),Levelling Up,ASHFORD BC,,,,229467071,3700222237,,Grant payable by the Exchequer,TN23 1PL,"148,378.00",Yes
"Housing, Communities & Local Government",DLUHC,07/07/2023,Cap Grants to Local Authorities (DEL),Levelling Up,BASILDON BC,,,,,3700221951,,Grant payable by the Exchequer,SS14 0DF,"40,448.00",Yes
"Housing, Communities & Local Government",DLUHC,07/07/2023,Cap Grants to Local Authorities (DEL),Levelling Up,BASINGSTOKE & DEANE BC,,,,228328506,3700221940,,Grant payable by the Exchequer,RG21 2AJ,"19,610.00",Yes
"Housing, Communities & Local Government",DLUHC,07/07/2023,Cap Grants to Local Authorities (DEL),Levelling Up,BASINGSTOKE & DEANE BC,,,,228328506,3700222225,,Grant payable by the Exchequer,RG21 2AJ,"109,892.00",Yes
"Housing, Communities & Local Government",DLUHC,07/07/2023,Cap Grants to Local Authorities (DEL),Levelling Up,BCP Council,,,,,3700222143,,Grant payable by the Exchequer,BH2 6DY,"135,000.00",Yes
"Housing, Communities & Local Government",DLUHC,07/07/2023,Cap Grants to Local Authorities (DEL),Levelling Up,BRAINTREE DC,,,,226941730,3700221847,,Grant payable by the Exchequer,CM7 6HB,"32,705.00",Yes
"Housing, Communities & Local Government",DLUHC,07/07/2023,Cap Grants to Local Authorities (DEL),Levelling Up,BRAINTREE DC,,,,226941730,3700222205,,Grant payable by the Exchequer,CM7 6HB,"147,298.00",Yes
"Housing, Communities & Local Government",DLUHC,07/07/2023,Cap Grants to Local Authorities (DEL),Levelling Up,BRIGHTON & HOVE CITY COUNCIL,,Large,,228455218,3700221891,,Grant payable by the Exchequer,BN1 3JE,"142,598.00",Yes
"Housing, Communities & Local Government",DLUHC,07/07/2023,Cap Grants to Local Authorities (DEL),Levelling Up,BROADLAND DC,,Large,,219737785,3700222149,,Grant payable by the Exchequer,NR7 0DU,"41,427.00",Yes
"Housing, Communities & Local Government",DLUHC,07/07/2023,Cap Grants to Local Authorities (DEL),Levelling Up,BROADLAND DC,,Large,,219737785,3700222175,,Grant payable by the Exchequer,NR7 0DU,"142,388.00",Yes
"Housing, Communities & Local Government",DLUHC,07/07/2023,Cap Grants to Local Authorities (DEL),Levelling Up,BROMSGROVE DC,,,,236654745,3700221945,,Grant payable by the Exchequer,B60 1AA,"237,490.00",Yes
"Housing, Communities & Local Government",DLUHC,07/07/2023,Cap Grants to Local Authorities (DEL),Levelling Up,BROXBOURNE BC,,Public Bodies,,239931918,3700221934,,Grant payable by the Exchequer,EN8 9XG,"40,560.00",Yes
"Housing, Communities & Local Government",DLUHC,07/07/2023,Cap Grants to Local Authorities (DEL),Levelling Up,BROXTOWE BC,,,,239877640,3700222088,,Grant payable by the Exchequer,NG9 1AB,"87,600.00",Yes
"Housing, Communities & Local Government",DLUHC,07/07/2023,Cap Grants to Local Authorities (DEL),Levelling Up,BUCKINGHAMSHIRE COUNCIL,,,,,3700221969,,Grant payable by the Exchequer,HP19 8FF,"462,575.00",Yes
"Housing, Communities & Local Government",DLUHC,07/07/2023,Cap Grants to Local Authorities (DEL),Levelling Up,BUCKINGHAMSHIRE COUNCIL,,,,,3700222193,,Grant payable by the Exchequer,HP19 8FF,"457,174.00",Yes
"Housing, Communities & Local Government",DLUHC,07/07/2023,Cap Grants to Local Authorities (DEL),Levelling Up,BURNLEY BC,,,,229413281,3700221987,,Grant payable by the Exchequer,BB11 1JA,"145,600.00",Yes
"Housing, Communities & Local Government",DLUHC,07/07/2023,Cap Grants to Local Authorities (DEL),Levelling Up,CANNOCK CHASE DC,,,,215064770,3700222001,,Grant payable by the Exchequer,WS11 1BG,"357,954.00",Yes
"Housing, Communities & Local Government",DLUHC,07/07/2023,Cap Grants to Local Authorities (DEL),Levelling Up,CANTERBURY CITY CNCL,,,,,3700221876,,Grant payable by the Exchequer,CT1 1YW,"39,000.00",Yes
"Housing, Communities & Local Government",DLUHC,07/07/2023,Cap Grants to Local Authorities (DEL),Levelling Up,CASTLE POINT BC,,Public Bodies,,228217931,3700222104,,Grant payable by the Exchequer,SS7 1TF,"46,294.00",Yes
"Housing, Communities & Local Government",DLUHC,07/07/2023,Cap Grants to Local Authorities (DEL),Levelling Up,CENTRAL BEDFORDSHIRE COUNCIL,,,,232624882,3700221933,,Grant payable by the Exchequer,SG17 5TQ,"122,583.00",Yes
"Housing, Communities & Local Government",DLUHC,07/07/2023,Cap Grants to Local Authorities (DEL),Levelling Up,CENTRAL BEDFORDSHIRE COUNCIL,,,,232624882,3700222223,,Grant payable by the Exchequer,SG17 5TQ,"265,464.00",Yes
"Housing, Communities & Local Government",DLUHC,07/07/2023,Cap Grants to Local Authorities (DEL),Levelling Up,Ceredigion County Council,,,,,3700222130,,Grant payable by the Exchequer,SY23 3UE,"2,124,403.00",Yes
"Housing, Communities & Local Government",DLUHC,07/07/2023,Cap Grants to Local Authorities (DEL),Levelling Up,CHARNWOOD BC,,,,,3700221859,,Grant payable by the Exchequer,LE11 2TU,"682,570.00",Yes
"Housing, Communities & Local Government",DLUHC,07/07/2023,Cap Grants to Local Authorities (DEL),Levelling Up,CHELMSFORD BC,,,,,3700221851,,Grant payable by the Exchequer,CM1 1JE,"49,777.00",Yes
"Housing, Communities & Local Government",DLUHC,07/07/2023,Cap Grants to Local Authorities (DEL),Levelling Up,CHELMSFORD BC,,,,,3700222236,,Grant payable by the Exchequer,CM1 1JE,"100,000.00",Yes
"Housing, Communities & Local Government",DLUHC,07/07/2023,Cap Grants to Local Authorities (DEL),Levelling Up,CHELTENHAM BC,,,,,3700221927,,Grant payable by the Exchequer,GL50 1PW,"64,494.00",Yes
"Housing, Communities & Local Government",DLUHC,07/07/2023,Cap Grants to Local Authorities (DEL),Levelling Up,CHERWELL DC,,,,,3700222052,,Grant payable by the Exchequer,OX15 4AA,"117,000.00",Yes
"Housing, Communities & Local Government",DLUHC,07/07/2023,Cap Grants to Local Authorities (DEL),Levelling Up,CHERWELL DC,,,,,3700222221,,Grant payable by the Exchequer,OX15 4AA,"131,708.00",Yes
"Housing, Communities & Local Government",DLUHC,07/07/2023,Cap Grants to Local Authorities (DEL),Levelling Up,CHESHIRE WEST & CHESTER UA,,Large,,215584383,3700221898,,Grant payable by the Exchequer,CH1 2NP,"351,663.00",Yes
"Housing, Communities & Local Government",DLUHC,07/07/2023,Cap Grants to Local Authorities (DEL),Levelling Up,CHESHIRE WEST & CHESTER UA,,Large,,215584383,3700222212,,Grant payable by the Exchequer,CH1 2NP,"370,101.00",Yes
"Housing, Communities & Local Government",DLUHC,07/07/2023,Cap Grants to Local Authorities (DEL),Levelling Up,CHESTERFIELD BC,,,,232102301,3700222134,,Grant payable by the Exchequer,S40 1LP,"142,000.00",Yes
"Housing, Communities & Local Government",DLUHC,07/07/2023,Cap Grants to Local Authorities (DEL),Levelling Up,CHICHESTER DC,,,,739800998,3700222128,,Grant payable by the Exchequer,PO19 1TY,"27,502.00",Yes
"Housing, Communities & Local Government",DLUHC,07/07/2023,Cap Grants to Local Authorities (DEL),Levelling Up,CHICHESTER DC,,,,739800998,3700222216,,Grant payable by the Exchequer,PO19 1TY,"179,618.00",Yes
"Housing, Communities & Local Government",DLUHC,07/07/2023,Cap Grants to Local Authorities (DEL),Levelling Up,CHORLEY DC,,,,236415576,3700221970,,Grant payable by the Exchequer,PR7 1DP,"223,155.00",Yes
"Housing, Communities & Local Government",DLUHC,07/07/2023,Cap Grants to Local Authorities (DEL),Levelling Up,CHORLEY DC,,,,236415576,3700222203,,Grant payable by the Exchequer,PR7 1DP,"100,000.00",Yes
"Housing, Communities & Local Government",DLUHC,07/07/2023,Cap Grants to Local Authorities (DEL),Levelling Up,CITY OF LINCOLN COUNCIL,,,,,3700221869,,Grant payable by the Exchequer,LN1 1DB,"88,690.00",Yes
"Housing, Communities & Local Government",DLUHC,07/07/2023,Cap Grants to Local Authorities (DEL),Levelling Up,CITY OF SUNDERLAND,,,,215599312,3700222112,,Grant payable by the Exchequer,SR2 7DN,"656,025.00",Yes
"Housing, Communities & Local Government",DLUHC,07/07/2023,Cap Grants to Local Authorities (DEL),Levelling Up,Clackmannanshire Council,,,,,3700222097,,Grant payable by the Exchequer,FK10 1EB,"60,000.00",Yes
"Housing, Communities & Local Government",DLUHC,07/07/2023,Cap Grants to Local Authorities (DEL),Levelling Up,COLCHESTER BC,,,,,3700221994,,Grant payable by the Exchequer,CO3 3WG,"43,079.00",Yes
"Housing, Communities & Local Government",DLUHC,07/07/2023,Cap Grants to Local Authorities (DEL),Levelling Up,COLCHESTER BC,,,,,3700222210,,Grant payable by the Exchequer,CO3 3WG,"133,048.00",Yes
"Housing, Communities & Local Government",DLUHC,07/07/2023,Cap Grants to Local Authorities (DEL),Levelling Up,Comhairle nan Eilean Siar,,,,,3700221901,,Grant payable by the Exchequer,HS1 2BW,"81,362.00",Yes
"Housing, Communities & Local Government",DLUHC,07/07/2023,Cap Grants to Local Authorities (DEL),Levelling Up,COTSWOLD DC,,,,232462085,3700221942,,Grant payable by the Exchequer,GL7 1PX,"28,487.00",Yes
"Housing, Communities & Local Government",DLUHC,07/07/2023,Cap Grants to Local Authorities (DEL),Levelling Up,COTSWOLD DC,,,,232462085,3700222179,,Grant payable by the Exchequer,GL7 1PX,"191,073.00",Yes
"Housing, Communities & Local Government",DLUHC,07/07/2023,Cap Grants to Local Authorities (DEL),Levelling Up,DACORUM BC,,,,236448643,3700222123,,Grant payable by the Exchequer,HP1 1DN,"55,700.00",Yes
"Housing, Communities & Local Government",DLUHC,07/07/2023,Cap Grants to Local Authorities (DEL),Levelling Up,DARTFORD BC,,,,225694942,3700221952,,Grant payable by the Exchequer,DA1 1DR,"40,000.00",Yes
"Housing, Communities & Local Government",DLUHC,07/07/2023,Cap Grants to Local Authorities (DEL),Levelling Up,DERBY CITY CNCL,,,,229641378,3700222013,,Grant payable by the Exchequer,DE1 2FS,"202,648.00",Yes
"Housing, Communities & Local Government",DLUHC,07/07/2023,Cap Grants to Local Authorities (DEL),Levelling Up,DERBYSHIRE COUNTY COUNCIL,,Large,,,2100326441,,East Midlands Doemstic Retrofit,DE4 3AG,"9,920,000.00",Yes
"Housing, Communities & Local Government",DLUHC,07/07/2023,Cap Grants to Local Authorities (DEL),Levelling Up,DERBYSHIRE DALES DC,,,,,3700221864,,Grant payable by the Exchequer,DE4 3NN,"190,500.00",Yes
"Housing, Communities & Local Government",DLUHC,07/07/2023,Cap Grants to Local Authorities (DEL),Levelling Up,DERBYSHIRE DALES DC,,,,,3700222232,,Grant payable by the Exchequer,DE4 3NN,"378,333.00",Yes
"Housing, Communities & Local Government",DLUHC,07/07/2023,Cap Grants to Local Authorities (DEL),Levelling Up,DORSET COUNCIL,,,,,3700222135,,Grant payable by the Exchequer,DT1 1XJ,"139,965.00",Yes
"Housing, Communities & Local Government",DLUHC,07/07/2023,Cap Grants to Local Authorities (DEL),Levelling Up,DORSET COUNCIL,,,,,3700222197,,Grant payable by the Exchequer,DT1 1XJ,"826,767.00",Yes
"Housing, Communities & Local Government",DLUHC,07/07/2023,Cap Grants to Local Authorities (DEL),Levelling Up,DOVER DC,,,,,3700222102,,Grant payable by the Exchequer,CT16 3PD,"25,814.00",Yes
"Housing, Communities & Local Government",DLUHC,07/07/2023,Cap Grants to Local Authorities (DEL),Levelling Up,DOVER DC,,,,,3700222181,,Grant payable by the Exchequer,CT16 3PD,"100,000.00",Yes
"Housing, Communities & Local Government",DLUHC,07/07/2023,Cap Grants to Local Authorities (DEL),Levelling Up,Dundee City Council,,,,,3700222058,,Grant payable by the Exchequer,DD1 1NZ,"179,786.00",Yes
"Housing, Communities & Local Government",DLUHC,07/07/2023,Cap Grants to Local Authorities (DEL),Levelling Up,East Ayrshire Council,,,,,3700221896,,Grant payable by the Exchequer,KA3 7BU,"153,185.00",Yes
"Housing, Communities & Local Government",DLUHC,07/07/2023,Cap Grants to Local Authorities (DEL),Levelling Up,EAST DEVON DC,,,,,3700221935,,Grant payable by the Exchequer,EX14 1EJ,"82,045.00",Yes
"Housing, Communities & Local Government",DLUHC,07/07/2023,Cap Grants to Local Authorities (DEL),Levelling Up,EAST DEVON DC,,,,,3700222204,,Grant payable by the Exchequer,EX14 1EJ,"213,574.00",Yes
"Housing, Communities & Local Government",DLUHC,07/07/2023,Cap Grants to Local Authorities (DEL),Levelling Up,EAST HAMPSHIRE DC,,,,,3700221960,,Grant payable by the Exchequer,GU31 4EX,"19,701.00",Yes
"Housing, Communities & Local Government",DLUHC,07/07/2023,Cap Grants to Local Authorities (DEL),Levelling Up,EAST HAMPSHIRE DC,,,,,3700222180,,Grant payable by the Exchequer,GU31 4EX,"196,248.00",Yes
"Housing, Communities & Local Government",DLUHC,07/07/2023,Cap Grants to Local Authorities (DEL),Levelling Up,East Lothian Council,,,,,3700222020,,Grant payable by the Exchequer,EH41 3HA,"123,657.00",Yes
"Housing, Communities & Local Government",DLUHC,07/07/2023,Cap Grants to Local Authorities (DEL),Levelling Up,EAST STAFFORDSHIRE BC,,,,226778033,3700221906,,Grant payable by the Exchequer,DE14 2EB,"218,400.00",Yes
"Housing, Communities & Local Government",DLUHC,07/07/2023,Cap Grants to Local Authorities (DEL),Levelling Up,EAST SUFFOLK COUNCIL,,,,,3700222068,,Grant payable by the Exchequer,IP12 1RT,"186,896.00",Yes
"Housing, Communities & Local Government",DLUHC,07/07/2023,Cap Grants to Local Authorities (DEL),Levelling Up,EAST SUFFOLK COUNCIL,,,,,3700222214,,Grant payable by the Exchequer,IP12 1RT,"282,470.00",Yes
"Housing, Communities & Local Government",DLUHC,07/07/2023,Cap Grants to Local Authorities (DEL),Levelling Up,EASTBOURNE BC,,,,229896428,3700222077,,Grant payable by the Exchequer,BN21 4TW,"50,180.00",Yes
"Housing, Communities & Local Government",DLUHC,07/07/2023,Cap Grants to Local Authorities (DEL),Levelling Up,EPPING FOREST DC,,,,775876360,3700222023,,Grant payable by the Exchequer,CM16 4BZ,"82,500.00",Yes
"Housing, Communities & Local Government",DLUHC,07/07/2023,Cap Grants to Local Authorities (DEL),Levelling Up,EPPING FOREST DC,,,,775876360,3700222222,,Grant payable by the Exchequer,CM16 4BZ,"109,284.00",Yes
"Housing, Communities & Local Government",DLUHC,07/07/2023,Cap Grants to Local Authorities (DEL),Levelling Up,EPSOM & EWELL BC,,,,225423094,3700222079,,Grant payable by the Exchequer,KT18 5BY,"15,000.00",Yes
"Housing, Communities & Local Government",DLUHC,07/07/2023,Cap Grants to Local Authorities (DEL),Levelling Up,EREWASH BC,,,,211209762,3700221860,,Grant payable by the Exchequer,DE7 5RP,"166,740.00",Yes
"Housing, Communities & Local Government",DLUHC,07/07/2023,Cap Grants to Local Authorities (DEL),Levelling Up,EXETER CITY COUNCIL,,,,,3700222003,,Grant payable by the Exchequer,EX1 1JW,"63,540.00",Yes
"Housing, Communities & Local Government",DLUHC,07/07/2023,Cap Grants to Local Authorities (DEL),Levelling Up,Falkirk Council,,,,,3700222033,,Grant payable by the Exchequer,FK1 5RS,"155,212.00",Yes
"Housing, Communities & Local Government",DLUHC,07/07/2023,Cap Grants to Local Authorities (DEL),Levelling Up,Fife Council,,,,,3700222034,,Grant payable by the Exchequer,KY7 5LT,"483,184.00",Yes
"Housing, Communities & Local Government",DLUHC,07/07/2023,Cap Grants to Local Authorities (DEL),Levelling Up,FOREST OF DEAN DC,,,,211278890,3700221965,,Grant payable by the Exchequer,GL16 8HG,"31,561.00",Yes
"Housing, Communities & Local Government",DLUHC,07/07/2023,Cap Grants to Local Authorities (DEL),Levelling Up,FOREST OF DEAN DC,,,,211278890,3700222219,,Grant payable by the Exchequer,GL16 8HG,"153,611.00",Yes
"Housing, Communities & Local Government",DLUHC,07/07/2023,Cap Grants to Local Authorities (DEL),Levelling Up,GATESHEAD MBC,,,,216116041,3700221959,,Grant payable by the Exchequer,NE8 1HH,"608,993.00",Yes
"Housing, Communities & Local Government",DLUHC,07/07/2023,Cap Grants to Local Authorities (DEL),Levelling Up,GEDLING BC,,,,236180337,3700222025,,Grant payable by the Exchequer,NG5 6LU,"125,700.00",Yes
"Housing, Communities & Local Government",DLUHC,07/07/2023,Cap Grants to Local Authorities (DEL),Levelling Up,GREAT YARMOUTH BC,,,,292697372,3700221922,,Grant payable by the Exchequer,NR30 2QG,"39,762.00",Yes
"Housing, Communities & Local Government",DLUHC,07/07/2023,Cap Grants to Local Authorities (DEL),Levelling Up,GREATER LONDON AUTHORITY,,,,,3700221939,,Grant payable by the Exchequer,SE10 1AJ,"4,557,730.00",Yes
"Housing, Communities & Local Government",DLUHC,07/07/2023,Cap Grants to Local Authorities (DEL),Levelling Up,GUILDFORD BC,,,,236663720,3700221872,,Grant payable by the Exchequer,GU2 5BB,"18,200.00",Yes
"Housing, Communities & Local Government",DLUHC,07/07/2023,Cap Grants to Local Authorities (DEL),Levelling Up,GUILDFORD BC,,,,236663720,3700222170,,Grant payable by the Exchequer,GU2 5BB,"100,000.00",Yes
"Housing, Communities & Local Government",DLUHC,07/07/2023,Cap Grants to Local Authorities (DEL),Levelling Up,HARLOW DC,,Large,,239999055,3700222066,,Grant payable by the Exchequer,CM20 1WG,"19,316.00",Yes
"Housing, Communities & Local Government",DLUHC,07/07/2023,Cap Grants to Local Authorities (DEL),Levelling Up,HAVANT BC,,,,211047543,3700222041,,Grant payable by the Exchequer,PO9 2AX,"80,000.00",Yes
"Housing, Communities & Local Government",DLUHC,07/07/2023,Cap Grants to Local Authorities (DEL),Levelling Up,HERTSMERE BC,,,,237549253,3700221966,,Grant payable by the Exchequer,WD6 1WA,"36,229.00",Yes
"Housing, Communities & Local Government",DLUHC,07/07/2023,Cap Grants to Local Authorities (DEL),Levelling Up,HIGH PEAK BC,,,,239967771,3700221996,,Grant payable by the Exchequer,SK17 6EL,"253,616.00",Yes
"Housing, Communities & Local Government",DLUHC,07/07/2023,Cap Grants to Local Authorities (DEL),Levelling Up,HIGH PEAK BC,,,,239967771,3700222217,,Grant payable by the Exchequer,SK17 6EL,"100,000.00",Yes
"Housing, Communities & Local Government",DLUHC,07/07/2023,Cap Grants to Local Authorities (DEL),Levelling Up,Highland Council,,,,,3700221880,,Grant payable by the Exchequer,IV3 5NX,"510,000.00",Yes
"Housing, Communities & Local Government",DLUHC,07/07/2023,Cap Grants to Local Authorities (DEL),Levelling Up,HINCKLEY & BOSWORTH BC,,,,211176144,3700222146,,Grant payable by the Exchequer,LE10 1BZ,"125,000.00",Yes
"Housing, Communities & Local Government",DLUHC,07/07/2023,Cap Grants to Local Authorities (DEL),Levelling Up,HINCKLEY & BOSWORTH BC,,,,211176144,3700222177,,Grant payable by the Exchequer,LE10 1BZ,"100,000.00",Yes
"Housing, Communities & Local Government",DLUHC,07/07/2023,Cap Grants to Local Authorities (DEL),Levelling Up,HORSHAM DC,,,,229776588,3700222138,,Grant payable by the Exchequer,RH12 1RL,"173,545.00",Yes
"Housing, Communities & Local Government",DLUHC,07/07/2023,Cap Grants to Local Authorities (DEL),Levelling Up,HORSHAM DC,,,,229776588,3700222233,,Grant payable by the Exchequer,RH12 1RL,"217,933.00",Yes
"Housing, Communities & Local Government",DLUHC,07/07/2023,Cap Grants to Local Authorities (DEL),Levelling Up,HULL CITY CNCL,,,,217460984,3700221911,,Grant payable by the Exchequer,HU1 3DT,"362,771.00",Yes
"Housing, Communities & Local Government",DLUHC,07/07/2023,Cap Grants to Local Authorities (DEL),Levelling Up,HYNDBURN BC,,,,,3700221958,,Grant payable by the Exchequer,BB5 1EZ,"192,879.00",Yes
"Housing, Communities & Local Government",DLUHC,07/07/2023,Cap Grants to Local Authorities (DEL),Levelling Up,ISLE OF WIGHT CNCL,,,,236431730,3700221946,,Grant payable by the Exchequer,PO30 1UD,"33,561.00",Yes
"Housing, Communities & Local Government",DLUHC,07/07/2023,Cap Grants to Local Authorities (DEL),Levelling Up,ISLE OF WIGHT CNCL,,,,236431730,3700222182,,Grant payable by the Exchequer,PO30 1UD,"75,000.00",Yes
"Housing, Communities & Local Government",DLUHC,07/07/2023,Cap Grants to Local Authorities (DEL),Levelling Up,LANCASTER CITY COUNCIL,,,,228669990,3700221924,,Grant payable by the Exchequer,LA1 1PJ,"458,638.00",Yes
"Housing, Communities & Local Government",DLUHC,07/07/2023,Cap Grants to Local Authorities (DEL),Levelling Up,LANCASTER CITY COUNCIL,,,,228669990,3700222187,,Grant payable by the Exchequer,LA1 1PJ,"125,019.00",Yes
"Housing, Communities & Local Government",DLUHC,07/07/2023,Cap Grants to Local Authorities (DEL),Levelling Up,LEICESTER CITY CNCL,,,,228219960,3700221989,,Grant payable by the Exchequer,LE1 1FZ,"290,074.00",Yes
"Housing, Communities & Local Government",DLUHC,07/07/2023,Cap Grants to Local Authorities (DEL),Levelling Up,LICHFIELD DC,,,,236780086,3700222113,,Grant payable by the Exchequer,WS13 6YX,"550,000.00",Yes
"Housing, Communities & Local Government",DLUHC,07/07/2023,Cap Grants to Local Authorities (DEL),Levelling Up,LICHFIELD DC,,,,236780086,3700222196,,Grant payable by the Exchequer,WS13 6YX,"100,000.00",Yes
"Housing, Communities & Local Government",DLUHC,07/07/2023,Cap Grants to Local Authorities (DEL),Levelling Up,LIVERPOOL CITY REGION COMB AUT,,Large,,,3700222153,,Grant payable by the Exchequer,L3 1BP,"1,425,000.00",Yes
"Housing, Communities & Local Government",DLUHC,07/07/2023,Cap Grants to Local Authorities (DEL),Levelling Up,LUTON BC,,,,365112155,3700221979,,Grant payable by the Exchequer,LU1 2BQ,"376,390.00",Yes
"Housing, Communities & Local Government",DLUHC,07/07/2023,Cap Grants to Local Authorities (DEL),Levelling Up,MALVERN HILLS DC,,,,227470424,3700221971,,Grant payable by the Exchequer,WR14 3AF,"106,760.00",Yes
"Housing, Communities & Local Government",DLUHC,07/07/2023,Cap Grants to Local Authorities (DEL),Levelling Up,MALVERN HILLS DC,,,,227470424,3700222215,,Grant payable by the Exchequer,WR14 3AF,"125,000.00",Yes
"Housing, Communities & Local Government",DLUHC,07/07/2023,Cap Grants to Local Authorities (DEL),Levelling Up,MANSFIELD DC,,,,237922968,3700221904,,Grant payable by the Exchequer,NG19 7BH,"183,800.00",Yes
"Housing, Communities & Local Government",DLUHC,07/07/2023,Cap Grants to Local Authorities (DEL),Levelling Up,MELTON BC,,,,346268340,3700222053,,Grant payable by the Exchequer,LE13 0UL,"56,366.00",Yes
"Housing, Communities & Local Government",DLUHC,07/07/2023,Cap Grants to Local Authorities (DEL),Levelling Up,MELTON BC,,,,346268340,3700222172,,Grant payable by the Exchequer,LE13 0UL,"240,000.00",Yes
"Housing, Communities & Local Government",DLUHC,07/07/2023,Cap Grants to Local Authorities (DEL),Levelling Up,MID DEVON DC,,,,213241137,3700222093,,Grant payable by the Exchequer,EX16 6PP,"75,519.00",Yes
"Housing, Communities & Local Government",DLUHC,07/07/2023,Cap Grants to Local Authorities (DEL),Levelling Up,MID DEVON DC,,,,213241137,3700222183,,Grant payable by the Exchequer,EX16 6PP,"204,168.00",Yes
"Housing, Communities & Local Government",DLUHC,07/07/2023,Cap Grants to Local Authorities (DEL),Levelling Up,MID SUFFOLK DC,,,,232618405,3700221976,,Grant payable by the Exchequer,IP1 2BX,"32,000.00",Yes
"Housing, Communities & Local Government",DLUHC,07/07/2023,Cap Grants to Local Authorities (DEL),Levelling Up,MID SUFFOLK DC,,,,232618405,3700222208,,Grant payable by the Exchequer,IP1 2BX,"155,342.00",Yes
"Housing, Communities & Local Government",DLUHC,07/07/2023,Cap Grants to Local Authorities (DEL),Levelling Up,MID SUFFOLK DC,,,,223387239,3700221909,,Grant payable by the Exchequer,IP1 2BX,"37,000.00",Yes
"Housing, Communities & Local Government",DLUHC,07/07/2023,Cap Grants to Local Authorities (DEL),Levelling Up,MID SUFFOLK DC,,,,223387239,3700222220,,Grant payable by the Exchequer,IP1 2BX,"205,415.00",Yes
"Housing, Communities & Local Government",DLUHC,07/07/2023,Cap Grants to Local Authorities (DEL),Levelling Up,MID SUSSEX DC,,,,236675989,3700222096,,Grant payable by the Exchequer,RH16 1SS,"159,603.00",Yes
"Housing, Communities & Local Government",DLUHC,07/07/2023,Cap Grants to Local Authorities (DEL),Levelling Up,MILTON KEYNES BC,,,,,3700221862,,Grant payable by the Exchequer,MK9 3WJ,"233,459.00",Yes
"Housing, Communities & Local Government",DLUHC,07/07/2023,Cap Grants to Local Authorities (DEL),Levelling Up,MOLE VALLEY DC,,,,225385772,3700221879,,Grant payable by the Exchequer,RH4 1SJ,"13,219.00",Yes
"Housing, Communities & Local Government",DLUHC,07/07/2023,Cap Grants to Local Authorities (DEL),Levelling Up,Moray Council,,,,,3700221984,,Grant payable by the Exchequer,IV30 1BX,"108,316.00",Yes
"Housing, Communities & Local Government",DLUHC,07/07/2023,Cap Grants to Local Authorities (DEL),Levelling Up,NEW FOREST DC,,Public Bodies,,,3700222091,,Grant payable by the Exchequer,SO43 7PA,"42,470.00",Yes
"Housing, Communities & Local Government",DLUHC,07/07/2023,Cap Grants to Local Authorities (DEL),Levelling Up,NEW FOREST DC,,Public Bodies,,,3700222189,,Grant payable by the Exchequer,SO43 7PA,"212,035.00",Yes
"Housing, Communities & Local Government",DLUHC,07/07/2023,Cap Grants to Local Authorities (DEL),Levelling Up,NEWARK & SHERWOOD DC,,,,236186755,3700222029,,Grant payable by the Exchequer,NG23 5QX,"150,064.00",Yes
"Housing, Communities & Local Government",DLUHC,07/07/2023,Cap Grants to Local Authorities (DEL),Levelling Up,NEWARK & SHERWOOD DC,,,,236186755,3700222218,,Grant payable by the Exchequer,NG23 5QX,"445,709.00",Yes
"Housing, Communities & Local Government",DLUHC,07/07/2023,Cap Grants to Local Authorities (DEL),Levelling Up,NEWCASTLE UNDER LYME BC,,,,229894373,3700221961,,Grant payable by the Exchequer,ST5 2AG,"333,940.00",Yes
"Housing, Communities & Local Government",DLUHC,07/07/2023,Cap Grants to Local Authorities (DEL),Levelling Up,North Ayrshire Council,,,,,3700221905,,Grant payable by the Exchequer,KA12 8EE,"202,330.00",Yes
"Housing, Communities & Local Government",DLUHC,07/07/2023,Cap Grants to Local Authorities (DEL),Levelling Up,NORTH DEVON DC,,,,,3700221852,,Grant payable by the Exchequer,EX32 2GR,"41,478.00",Yes
"Housing, Communities & Local Government",DLUHC,07/07/2023,Cap Grants to Local Authorities (DEL),Levelling Up,NORTH DEVON DC,,,,,3700222207,,Grant payable by the Exchequer,EX32 2GR,"692,259.00",Yes
"Housing, Communities & Local Government",DLUHC,07/07/2023,Cap Grants to Local Authorities (DEL),Levelling Up,NORTH EAST DERBYSHIRE DC,,,,238879308,3700221848,,Grant payable by the Exchequer,S42 6NG,"291,486.00",Yes
"Housing, Communities & Local Government",DLUHC,07/07/2023,Cap Grants to Local Authorities (DEL),Levelling Up,NORTH HERTS DC (HOUSING),,,,233593917,3700222116,,Grant payable by the Exchequer,SG6 3JF,"120,000.00",Yes
"Housing, Communities & Local Government",DLUHC,07/07/2023,Cap Grants to Local Authorities (DEL),Levelling Up,North Northamptonshire UA,,,,,3700221949,,Grant payable by the Exchequer,NN16 8TL,"190,000.00",Yes
"Housing, Communities & Local Government",DLUHC,07/07/2023,Cap Grants to Local Authorities (DEL),Levelling Up,North Northamptonshire UA,,,,,3700222211,,Grant payable by the Exchequer,NN16 8TL,"290,453.00",Yes
"Housing, Communities & Local Government",DLUHC,07/07/2023,Cap Grants to Local Authorities (DEL),Levelling Up,NORTH SOMERSET COUNCIL,,Large,,,3700222083,,Grant payable by the Exchequer,BS23 1UJ,"79,415.00",Yes
"Housing, Communities & Local Government",DLUHC,07/07/2023,Cap Grants to Local Authorities (DEL),Levelling Up,NORTH SOMERSET COUNCIL,,Large,,,3700222174,,Grant payable by the Exchequer,BS23 1UJ,"177,046.00",Yes
"Housing, Communities & Local Government",DLUHC,07/07/2023,Cap Grants to Local Authorities (DEL),Levelling Up,NORTH WARWICKSHIRE BC,,Large,,,3700221956,,Grant payable by the Exchequer,CV9 1DE,"187,500.00",Yes
"Housing, Communities & Local Government",DLUHC,07/07/2023,Cap Grants to Local Authorities (DEL),Levelling Up,NORTH WARWICKSHIRE BC,,Large,,,3700222176,,Grant payable by the Exchequer,CV9 1DE,"280,000.00",Yes
"Housing, Communities & Local Government",DLUHC,07/07/2023,Cap Grants to Local Authorities (DEL),Levelling Up,NORTH WEST LEICESTERSHIRE DC,,,,232605782,3700222032,,Grant payable by the Exchequer,LE67 9SH,"90,000.00",Yes
"Housing, Communities & Local Government",DLUHC,07/07/2023,Cap Grants to Local Authorities (DEL),Levelling Up,NORTH WEST LEICESTERSHIRE DC,,,,232605782,3700222235,,Grant payable by the Exchequer,LE67 9SH,"117,272.00",Yes
"Housing, Communities & Local Government",DLUHC,07/07/2023,Cap Grants to Local Authorities (DEL),Levelling Up,NORWICH CITY CNCL,,,,235981297,3700221892,,Grant payable by the Exchequer,NR2 1NH,"50,061.00",Yes
"Housing, Communities & Local Government",DLUHC,07/07/2023,Cap Grants to Local Authorities (DEL),Levelling Up,NOTTINGHAM CITY COUNCIL,,,,214495447,3700222017,,Grant payable by the Exchequer,NG2 3NG,"271,428.00",Yes
"Housing, Communities & Local Government",DLUHC,07/07/2023,Cap Grants to Local Authorities (DEL),Levelling Up,OADBY & WIGSTON BC,,,,239831878,3700222035,,Grant payable by the Exchequer,LE8 2DR,"42,500.00",Yes
"Housing, Communities & Local Government",DLUHC,07/07/2023,Cap Grants to Local Authorities (DEL),Levelling Up,OXFORD CITY COUNCIL,,,,212437417,3700222004,,Grant payable by the Exchequer,OX1 1DS,"120,000.00",Yes
"Housing, Communities & Local Government",DLUHC,07/07/2023,Cap Grants to Local Authorities (DEL),Levelling Up,PENDLE BC,,,,548605328,3700221931,,Grant payable by the Exchequer,BB9 7LG,"161,179.00",Yes
"Housing, Communities & Local Government",DLUHC,07/07/2023,Cap Grants to Local Authorities (DEL),Levelling Up,PORTSMOUTH CITY COUNCIL,,Large,,211183082,3700221990,,Grant payable by the Exchequer,PO1 2AR,"57,600.00",Yes
"Housing, Communities & Local Government",DLUHC,07/07/2023,Cap Grants to Local Authorities (DEL),Levelling Up,PRESTON BC,,,,232604124,3700222031,,Grant payable by the Exchequer,PR1 2RL,"200,956.00",Yes
"Housing, Communities & Local Government",DLUHC,07/07/2023,Cap Grants to Local Authorities (DEL),Levelling Up,REDDITCH BC,,,,231421491,3700222076,,Grant payable by the Exchequer,B98 8AH,"298,550.00",Yes
"Housing, Communities & Local Government",DLUHC,07/07/2023,Cap Grants to Local Authorities (DEL),Levelling Up,REIGATE & BANSTEAD BC,,,,211313515,3700221982,,Grant payable by the Exchequer,RH2 0SH,"30,000.00",Yes
"Housing, Communities & Local Government",DLUHC,07/07/2023,Cap Grants to Local Authorities (DEL),Levelling Up,RIBBLE VALLEY BC,,,,232617894,3700221853,,Grant payable by the Exchequer,BB7 2RA,"361,000.00",Yes
"Housing, Communities & Local Government",DLUHC,07/07/2023,Cap Grants to Local Authorities (DEL),Levelling Up,RIBBLE VALLEY BC,,,,232617894,3700222199,,Grant payable by the Exchequer,BB7 2RA,"75,000.00",Yes
"Housing, Communities & Local Government",DLUHC,07/07/2023,Cap Grants to Local Authorities (DEL),Levelling Up,ROCHFORD DISTRICT COUNCIL,,,,387828767,3700221943,,Grant payable by the Exchequer,SS4 1BW,"19,617.00",Yes
"Housing, Communities & Local Government",DLUHC,07/07/2023,Cap Grants to Local Authorities (DEL),Levelling Up,ROSSENDALE BC,,,,237654020,3700221947,,Grant payable by the Exchequer,OL13 0BB,"85,000.00",Yes
"Housing, Communities & Local Government",DLUHC,07/07/2023,Cap Grants to Local Authorities (DEL),Levelling Up,ROTHER DC,,,,,3700221948,,Grant payable by the Exchequer,TN39 3JX,"23,000.00",Yes
"Housing, Communities & Local Government",DLUHC,07/07/2023,Cap Grants to Local Authorities (DEL),Levelling Up,ROTHER DC,,,,,3700222224,,Grant payable by the Exchequer,TN39 3JX,"230,000.00",Yes
"Housing, Communities & Local Government",DLUHC,07/07/2023,Cap Grants to Local Authorities (DEL),Levelling Up,RUNNYMEDE BOROUGH COUNCIL,,,,232225722,3700222062,,Grant payable by the Exchequer,KT15 2AH,"10,000.00",Yes
"Housing, Communities & Local Government",DLUHC,07/07/2023,Cap Grants to Local Authorities (DEL),Levelling Up,RUSHCLIFFE BOROUGH COUNCIL,,,,,3700222060,,Grant payable by the Exchequer,NG2 5FE,"194,141.00",Yes
"Housing, Communities & Local Government",DLUHC,07/07/2023,Cap Grants to Local Authorities (DEL),Levelling Up,RUSHCLIFFE BOROUGH COUNCIL,,,,,3700222192,,Grant payable by the Exchequer,NG2 5FE,"149,048.00",Yes
"Housing, Communities & Local Government",DLUHC,07/07/2023,Cap Grants to Local Authorities (DEL),Levelling Up,RUSHMOOR BC,,,,232607606,3700222043,,Grant payable by the Exchequer,GU14 7JU,"9,209.00",Yes
"Housing, Communities & Local Government",DLUHC,07/07/2023,Cap Grants to Local Authorities (DEL),Levelling Up,RUTLAND CC,,,,,3700222098,,Grant payable by the Exchequer,LE15 6HP,"15,255.00",Yes
"Housing, Communities & Local Government",DLUHC,07/07/2023,Cap Grants to Local Authorities (DEL),Levelling Up,RUTLAND CC,,,,,3700222206,,Grant payable by the Exchequer,LE15 6HP,"100,000.00",Yes
"Housing, Communities & Local Government",DLUHC,07/07/2023,Cap Grants to Local Authorities (DEL),Levelling Up,Scottish Borders Council,,,,,3700221850,,Grant payable by the Exchequer,TD6 0SA,"161,746.00",Yes
"Housing, Communities & Local Government",DLUHC,07/07/2023,Cap Grants to Local Authorities (DEL),Levelling Up,SHROPSHIRE UNITARY AUTHORITY,,,,217036490,3700222086,,Grant payable by the Exchequer,SY2 6ND,"352,717.00",Yes
"Housing, Communities & Local Government",DLUHC,07/07/2023,Cap Grants to Local Authorities (DEL),Levelling Up,SHROPSHIRE UNITARY AUTHORITY,,,,217036490,3700222191,,Grant payable by the Exchequer,SY2 6ND,"906,326.00",Yes
"Housing, Communities & Local Government",DLUHC,07/07/2023,Cap Grants to Local Authorities (DEL),Levelling Up,SLOUGH BOROUGH COUNCIL,,,,211027123,3700221849,,Grant payable by the Exchequer,SL1 3UF,"24,850.00",Yes
"Housing, Communities & Local Government",DLUHC,07/07/2023,Cap Grants to Local Authorities (DEL),Levelling Up,Somerset Council (UA),,,,,3700222092,,Grant payable by the Exchequer,TA1 4DY,"229,197.00",Yes
"Housing, Communities & Local Government",DLUHC,07/07/2023,Cap Grants to Local Authorities (DEL),Levelling Up,Somerset Council (UA),,,,,3700222230,,Grant payable by the Exchequer,TA1 4DY,"856,686.00",Yes
"Housing, Communities & Local Government",DLUHC,07/07/2023,Cap Grants to Local Authorities (DEL),Levelling Up,SOUTH OXFORDSHIRE DC,,,,212296766,3700222119,,Grant payable by the Exchequer,OX14 3JE,"65,000.00",Yes
"Housing, Communities & Local Government",DLUHC,07/07/2023,Cap Grants to Local Authorities (DEL),Levelling Up,SOUTH OXFORDSHIRE DC,,,,212296766,3700222234,,Grant payable by the Exchequer,OX14 3JE,"183,310.00",Yes
"Housing, Communities & Local Government",DLUHC,07/07/2023,Cap Grants to Local Authorities (DEL),Levelling Up,SOUTH TYNESIDE MBC,,,,345736438,3700221875,,Grant payable by the Exchequer,NE33 2RL,"279,836.00",Yes
"Housing, Communities & Local Government",DLUHC,07/07/2023,Cap Grants to Local Authorities (DEL),Levelling Up,SOUTHEND ON SEA BC,,,,217067263,3700221897,,Grant payable by the Exchequer,SS2 6EP,"42,243.00",Yes
"Housing, Communities & Local Government",DLUHC,07/07/2023,Cap Grants to Local Authorities (DEL),Levelling Up,SPELTHORNE BOROUGH COUNCIL,,,,211177332,3700222039,,Grant payable by the Exchequer,TW18 1XB,"21,900.00",Yes
"Housing, Communities & Local Government",DLUHC,07/07/2023,Cap Grants to Local Authorities (DEL),Levelling Up,ST ALBANS CITY COUNCIL,,,,218692510,3700221957,,Grant payable by the Exchequer,AL1 3JE,"165,000.00",Yes
"Housing, Communities & Local Government",DLUHC,07/07/2023,Cap Grants to Local Authorities (DEL),Levelling Up,STAFFORD BC,,,,227476934,3700221963,,Grant payable by the Exchequer,ST16 3AQ,"625,538.00",Yes
"Housing, Communities & Local Government",DLUHC,07/07/2023,Cap Grants to Local Authorities (DEL),Levelling Up,STAFFORD BC,,,,227476934,3700222209,,Grant payable by the Exchequer,ST16 3AQ,"121,984.00",Yes
"Housing, Communities & Local Government",DLUHC,07/07/2023,Cap Grants to Local Authorities (DEL),Levelling Up,STAFFORDSHIRE MOORLANDS DC,,,,232749775,3700222141,,Grant payable by the Exchequer,ST13 6HQ,"415,549.00",Yes
"Housing, Communities & Local Government",DLUHC,07/07/2023,Cap Grants to Local Authorities (DEL),Levelling Up,STAFFORDSHIRE MOORLANDS DC,,,,232749775,3700222213,,Grant payable by the Exchequer,ST13 6HQ,"102,589.00",Yes
"Housing, Communities & Local Government",DLUHC,07/07/2023,Cap Grants to Local Authorities (DEL),Levelling Up,STEVENAGE BC,,,,236440186,3700221886,,Grant payable by the Exchequer,SG1 1HN,"29,765.00",Yes
"Housing, Communities & Local Government",DLUHC,07/07/2023,Cap Grants to Local Authorities (DEL),Levelling Up,Stirling Council,,,,,3700222089,,Grant payable by the Exchequer,FK8 2ET,"111,525.00",Yes
"Housing, Communities & Local Government",DLUHC,07/07/2023,Cap Grants to Local Authorities (DEL),Levelling Up,STOKE ON TRENT CITY COUNCIL,,,,216037890,3700221882,,Grant payable by the Exchequer,ST4 1HH,"298,111.00",Yes
"Housing, Communities & Local Government",DLUHC,07/07/2023,Cap Grants to Local Authorities (DEL),Levelling Up,SURREY HEATH BC,,,,236445441,3700221907,,Grant payable by the Exchequer,GU15 3HD,"13,500.00",Yes
"Housing, Communities & Local Government",DLUHC,07/07/2023,Cap Grants to Local Authorities (DEL),Levelling Up,SWALE BC,,,,239842768,3700221997,,Grant payable by the Exchequer,ME10 3HT,"60,000.00",Yes
"Housing, Communities & Local Government",DLUHC,07/07/2023,Cap Grants to Local Authorities (DEL),Levelling Up,SWALE BC,,,,239842768,3700222173,,Grant payable by the Exchequer,ME10 3HT,"125,750.00",Yes
"Housing, Communities & Local Government",DLUHC,07/07/2023,Cap Grants to Local Authorities (DEL),Levelling Up,TAMWORTH BOROUGH COUNCIL,,,,232612457,3700222136,,Grant payable by the Exchequer,B79 7BZ,"73,464.00",Yes
"Housing, Communities & Local Government",DLUHC,07/07/2023,Cap Grants to Local Authorities (DEL),Levelling Up,TEES VALLEY COMBINED AUTHORITY,,,,,3700222095,,Grant payable by the Exchequer,TS17 6QY,"1,348,141.00",Yes
"Housing, Communities & Local Government",DLUHC,07/07/2023,Cap Grants to Local Authorities (DEL),Levelling Up,TEES VALLEY COMBINED AUTHORITY,,,,,3700222231,,Grant payable by the Exchequer,TS17 6QY,"156,227.00",Yes
"Housing, Communities & Local Government",DLUHC,07/07/2023,Cap Grants to Local Authorities (DEL),Levelling Up,TENDRING DC,,,,,3700221983,,Grant payable by the Exchequer,CO15 1SE,"40,000.00",Yes
"Housing, Communities & Local Government",DLUHC,07/07/2023,Cap Grants to Local Authorities (DEL),Levelling Up,TENDRING DC,,,,,3700222184,,Grant payable by the Exchequer,CO15 1SE,"164,834.00",Yes
"Housing, Communities & Local Government",DLUHC,07/07/2023,Cap Grants to Local Authorities (DEL),Levelling Up,THANET DC,,,,232309369,3700222150,,Grant payable by the Exchequer,CT8 1XZ,"50,000.00",Yes
"Housing, Communities & Local Government",DLUHC,07/07/2023,Cap Grants to Local Authorities (DEL),Levelling Up,THREE RIVERS DC,,,,,3700222074,,Grant payable by the Exchequer,WD3 1RL,"30,000.00",Yes
"Housing, Communities & Local Government",DLUHC,07/07/2023,Cap Grants to Local Authorities (DEL),Levelling Up,THURROCK BC,,,,,3700221921,,Grant payable by the Exchequer,RM17 6SL,"38,855.00",Yes
"Housing, Communities & Local Government",DLUHC,07/07/2023,Cap Grants to Local Authorities (DEL),Levelling Up,TONBRIDGE & MALLING BC,,,,,3700221910,,Grant payable by the Exchequer,ME19 6LZ,"90,000.00",Yes
"Housing, Communities & Local Government",DLUHC,07/07/2023,Cap Grants to Local Authorities (DEL),Levelling Up,TONBRIDGE & MALLING BC,,,,,3700222195,,Grant payable by the Exchequer,ME19 6LZ,"111,863.00",Yes
"Housing, Communities & Local Government",DLUHC,07/07/2023,Cap Grants to Local Authorities (DEL),Levelling Up,TORRIDGE DC,,,,,3700222147,,Grant payable by the Exchequer,EX39 2QG,"29,000.00",Yes
"Housing, Communities & Local Government",DLUHC,07/07/2023,Cap Grants to Local Authorities (DEL),Levelling Up,TORRIDGE DC,,,,,3700222228,,Grant payable by the Exchequer,EX39 2QG,"745,347.00",Yes
"Housing, Communities & Local Government",DLUHC,07/07/2023,Cap Grants to Local Authorities (DEL),Levelling Up,TUNBRIDGE WELLS BC,,,,775221013,3700222038,,Grant payable by the Exchequer,TN1 1RS,"35,000.00",Yes
"Housing, Communities & Local Government",DLUHC,07/07/2023,Cap Grants to Local Authorities (DEL),Levelling Up,TUNBRIDGE WELLS BC,,,,775221013,3700222178,,Grant payable by the Exchequer,TN1 1RS,"110,901.00",Yes
"Housing, Communities & Local Government",DLUHC,07/07/2023,Cap Grants to Local Authorities (DEL),Levelling Up,UTTLESFORD DC,,,,424423242,3700222131,,Grant payable by the Exchequer,CB11 4ER,"59,000.00",Yes
"Housing, Communities & Local Government",DLUHC,07/07/2023,Cap Grants to Local Authorities (DEL),Levelling Up,UTTLESFORD DC,,,,424423242,3700222227,,Grant payable by the Exchequer,CB11 4ER,"203,372.00",Yes
"Housing, Communities & Local Government",DLUHC,07/07/2023,Cap Grants to Local Authorities (DEL),Levelling Up,VALE OF WHITE HORSE DC,,,,,3700222145,,Grant payable by the Exchequer,OX14 3JE,"63,750.00",Yes
"Housing, Communities & Local Government",DLUHC,07/07/2023,Cap Grants to Local Authorities (DEL),Levelling Up,VALE OF WHITE HORSE DC,,,,,3700222200,,Grant payable by the Exchequer,OX14 3JE,"132,008.00",Yes
"Housing, Communities & Local Government",DLUHC,07/07/2023,Cap Grants to Local Authorities (DEL),Levelling Up,WARRINGTON BC,,,,,3700222005,,Grant payable by the Exchequer,WA1 1BN,"208,086.00",Yes
"Housing, Communities & Local Government",DLUHC,07/07/2023,Cap Grants to Local Authorities (DEL),Levelling Up,WARWICK,,,,,3700221920,,Grant payable by the Exchequer,CV32 4NW,"265,732.00",Yes
"Housing, Communities & Local Government",DLUHC,07/07/2023,Cap Grants to Local Authorities (DEL),Levelling Up,WAVERLEY BC V177,,,,,3700221893,,Grant payable by the Exchequer,GU7 1HR,"18,978.00",Yes
"Housing, Communities & Local Government",DLUHC,07/07/2023,Cap Grants to Local Authorities (DEL),Levelling Up,WAVERLEY BC V177,,,,,3700222194,,Grant payable by the Exchequer,GU7 1HR,"100,000.00",Yes
"Housing, Communities & Local Government",DLUHC,07/07/2023,Cap Grants to Local Authorities (DEL),Levelling Up,WEALDEN DC,,,,232688697,3700221991,,Grant payable by the Exchequer,BN22 9LN,"100,000.00",Yes
"Housing, Communities & Local Government",DLUHC,07/07/2023,Cap Grants to Local Authorities (DEL),Levelling Up,WEALDEN DC,,,,232688697,3700222190,,Grant payable by the Exchequer,BN22 9LN,"209,530.00",Yes
"Housing, Communities & Local Government",DLUHC,07/07/2023,Cap Grants to Local Authorities (DEL),Levelling Up,WEST BERKSHIRE COUNCIL,,,,364809181,3700221985,,Grant payable by the Exchequer,RG14 5LD,"92,500.00",Yes
"Housing, Communities & Local Government",DLUHC,07/07/2023,Cap Grants to Local Authorities (DEL),Levelling Up,WEST BERKSHIRE COUNCIL,,,,364809181,3700222171,,Grant payable by the Exchequer,RG14 5LD,"149,498.00",Yes
"Housing, Communities & Local Government",DLUHC,07/07/2023,Cap Grants to Local Authorities (DEL),Levelling Up,WEST LINDSEY DC,,,,227471026,3700222090,,Grant payable by the Exchequer,DN21 2NA,"94,595.00",Yes
"Housing, Communities & Local Government",DLUHC,07/07/2023,Cap Grants to Local Authorities (DEL),Levelling Up,WEST LINDSEY DC,,,,227471026,3700222226,,Grant payable by the Exchequer,DN21 2NA,"318,327.00",Yes
"Housing, Communities & Local Government",DLUHC,07/07/2023,Cap Grants to Local Authorities (DEL),Levelling Up,WEST NORTHAMPTONSHIRE COUNCIL,,,,,3700222100,,Grant payable by the Exchequer,NN1 1ED,"209,466.00",Yes
"Housing, Communities & Local Government",DLUHC,07/07/2023,Cap Grants to Local Authorities (DEL),Levelling Up,WEST NORTHAMPTONSHIRE COUNCIL,,,,,3700222201,,Grant payable by the Exchequer,NN1 1ED,"341,988.00",Yes
"Housing, Communities & Local Government",DLUHC,07/07/2023,Cap Grants to Local Authorities (DEL),Levelling Up,WEST OF ENGLAND COMBINED AUTHORITY,,,,,3700222125,,Grant payable by the Exchequer,BS1 6EW,"358,333.00",Yes
"Housing, Communities & Local Government",DLUHC,07/07/2023,Cap Grants to Local Authorities (DEL),Levelling Up,WEST OF ENGLAND COMBINED AUTHORITY,,,,,3700222188,,Grant payable by the Exchequer,BS1 6EW,"206,986.00",Yes
"Housing, Communities & Local Government",DLUHC,07/07/2023,Cap Grants to Local Authorities (DEL),Levelling Up,WEST SUFFOLK DC,,,,,3700222044,,Grant payable by the Exchequer,IP33 3YU,"77,209.00",Yes
"Housing, Communities & Local Government",DLUHC,07/07/2023,Cap Grants to Local Authorities (DEL),Levelling Up,WEST SUFFOLK DC,,,,,3700222185,,Grant payable by the Exchequer,IP33 3YU,"188,000.00",Yes
"Housing, Communities & Local Government",DLUHC,07/07/2023,Cap Grants to Local Authorities (DEL),Levelling Up,Westmorland & Furness Council,,,,,3700221929,,Grant payable by the Exchequer,LA9 4UF,"581,058.00",Yes
"Housing, Communities & Local Government",DLUHC,07/07/2023,Cap Grants to Local Authorities (DEL),Levelling Up,Westmorland & Furness Council,,,,,3700222186,,Grant payable by the Exchequer,LA9 4UF,"547,413.00",Yes
"Housing, Communities & Local Government",DLUHC,07/07/2023,Cap Grants to Local Authorities (DEL),Levelling Up,WINCHESTER CITY CNCL,,,,228838280,3700222140,,Grant payable by the Exchequer,SO23 9LJ,"28,681.00",Yes
"Housing, Communities & Local Government",DLUHC,07/07/2023,Cap Grants to Local Authorities (DEL),Levelling Up,WINCHESTER CITY CNCL,,,,228838280,3700222229,,Grant payable by the Exchequer,SO23 9LJ,"186,274.00",Yes
"Housing, Communities & Local Government",DLUHC,07/07/2023,Cap Grants to Local Authorities (DEL),Levelling Up,WORTHING BC,,,,236429734,3700221967,,Grant payable by the Exchequer,BN11 1HA,"40,000.00",Yes
"Housing, Communities & Local Government",DLUHC,07/07/2023,Cap Grants to Local Authorities (DEL),Levelling Up,WYCHAVON DISTRICT COUNCIL,,,,232257139,3700221888,,Grant payable by the Exchequer,WR10 1PT,"383,200.00",Yes
"Housing, Communities & Local Government",DLUHC,07/07/2023,Cap Grants to Local Authorities (DEL),Levelling Up,WYCHAVON DISTRICT COUNCIL,,,,232257139,3700222202,,Grant payable by the Exchequer,WR10 1PT,"204,822.00",Yes
"Housing, Communities & Local Government",DLUHC,07/07/2023,Cap Grants to Local Authorities (DEL),Levelling Up,YORK CITY CNCL,,,,,3700221895,,Grant payable by the Exchequer,YO1 0EG,"161,160.00",Yes
"Housing, Communities & Local Government",DLUHC,07/07/2023,Cap Grants to Local Authorities (DEL),Levelling Up,YORK CITY CNCL,,,,,3700222198,,Grant payable by the Exchequer,YO1 0EG,"100,000.00",Yes
"Housing, Communities & Local Government",DLUHC,07/07/2023,Capital Grants to Private Sect Non Profit,Levelling Up,Black Horse Community Group Ltd,,Micro,,,2100327237,,COF 22 11 Capital payment,LE14 3BZ,"32,750.00",Yes
"Housing, Communities & Local Government",DLUHC,07/07/2023,Capital Grants to Private Sect Non Profit,Levelling Up,Fishers Arms Horncliffe Com Pub Ltd,,,,,2100327186,,COF 23 024 The Fishers Amrs COF Capital claim,TD15 2XN,"65,000.00",Yes
"Housing, Communities & Local Government",DLUHC,07/07/2023,Capital Grants to Private Sect Non Profit,Levelling Up,Heart of Newhaven Community SCIO,Yes,Micro,,,2100327184,,COF 22 16 Heart of Newhaven Capital claim,EH6 4HY,"111,463.77",Yes
"Housing, Communities & Local Government",DLUHC,07/07/2023,Consulting,Local Govnmnt Resilience and Communities,ALEXANDER MANN SOLUTIONS LTD,,Large,,,5106298977,,Agency Staff,EC2N 3AQ,"3,024.29",
"Housing, Communities & Local Government",DLUHC,07/07/2023,Current (non AEF) Grants to Local Authorities,Levelling Up,Aberdeenshire Council,,,,,3700222132,,Grant payable by the Exchequer,AB16 5GB,"1,418,620.00",Yes
"Housing, Communities & Local Government",DLUHC,07/07/2023,Current (non AEF) Grants to Local Authorities,Levelling Up,Aberdeenshire Council,,,,,3700222160,,Grant payable by the Exchequer,AB16 5GB,"499,862.00",Yes
"Housing, Communities & Local Government",DLUHC,07/07/2023,Current (non AEF) Grants to Local Authorities,Levelling Up,Angus Council,,,,,3700221883,,Grant payable by the Exchequer,DD8 1AN,"552,351.00",Yes
"Housing, Communities & Local Government",DLUHC,07/07/2023,Current (non AEF) Grants to Local Authorities,Levelling Up,Angus Council,,,,,3700222164,,Grant payable by the Exchequer,DD8 1AN,"296,335.00",Yes
"Housing, Communities & Local Government",DLUHC,07/07/2023,Current (non AEF) Grants to Local Authorities,Levelling Up,ARUN DC,,,,211217668,3700221941,,Grant payable by the Exchequer,BN17 5LF,"187,961.00",Yes
"Housing, Communities & Local Government",DLUHC,07/07/2023,Current (non AEF) Grants to Local Authorities,Levelling Up,ASHFIELD DC,,,,235415296,3700221845,,Grant payable by the Exchequer,NG17 8DA,"607,791.00",Yes
"Housing, Communities & Local Government",DLUHC,07/07/2023,Current (non AEF) Grants to Local Authorities,Levelling Up,ASHFORD BC,,,,229467071,3700222022,,Grant payable by the Exchequer,TN23 1PL,"178,747.00",Yes
"Housing, Communities & Local Government",DLUHC,07/07/2023,Current (non AEF) Grants to Local Authorities,Levelling Up,BASILDON BC,,,,,3700222081,,Grant payable by the Exchequer,SS14 0DF,"270,687.00",Yes
"Housing, Communities & Local Government",DLUHC,07/07/2023,Current (non AEF) Grants to Local Authorities,Levelling Up,BASINGSTOKE & DEANE BC,,,,228328506,3700221988,,Grant payable by the Exchequer,RG21 2AJ,"131,234.00",Yes
"Housing, Communities & Local Government",DLUHC,07/07/2023,Current (non AEF) Grants to Local Authorities,Levelling Up,BCP Council,,,,,3700222084,,Grant payable by the Exchequer,BH2 6DY,"883,308.00",Yes
"Housing, Communities & Local Government",DLUHC,07/07/2023,Current (non AEF) Grants to Local Authorities,Levelling Up,BRAINTREE DC,,,,226941730,3700221950,,Grant payable by the Exchequer,CM7 6HB,"218,869.00",Yes
"Housing, Communities & Local Government",DLUHC,07/07/2023,Current (non AEF) Grants to Local Authorities,Levelling Up,BRIGHTON & HOVE CITY COUNCIL,,Large,,228455218,3700221917,,Grant payable by the Exchequer,BN1 3JE,"286,061.00",Yes
"Housing, Communities & Local Government",DLUHC,07/07/2023,Current (non AEF) Grants to Local Authorities,Levelling Up,BROADLAND DC,,Large,,219737785,3700221855,,Grant payable by the Exchequer,NR7 0DU,"277,246.00",Yes
"Housing, Communities & Local Government",DLUHC,07/07/2023,Current (non AEF) Grants to Local Authorities,Levelling Up,BROMSGROVE DC,,,,236654745,3700221857,,Grant payable by the Exchequer,B60 1AA,"443,508.00",Yes
"Housing, Communities & Local Government",DLUHC,07/07/2023,Current (non AEF) Grants to Local Authorities,Levelling Up,BROXBOURNE BC,,Public Bodies,,239931918,3700222109,,Grant payable by the Exchequer,EN8 9XG,"240,071.00",Yes
"Housing, Communities & Local Government",DLUHC,07/07/2023,Current (non AEF) Grants to Local Authorities,Levelling Up,BROXTOWE BC,,,,239877640,3700221964,,Grant payable by the Exchequer,NG9 1AB,"539,700.00",Yes
"Housing, Communities & Local Government",DLUHC,07/07/2023,Current (non AEF) Grants to Local Authorities,Levelling Up,BUCKINGHAMSHIRE COUNCIL,,,,,3700221962,,Grant payable by the Exchequer,HP19 8FF,"937,574.00",Yes
"Housing, Communities & Local Government",DLUHC,07/07/2023,Current (non AEF) Grants to Local Authorities,Levelling Up,BURNLEY BC,,,,229413281,3700221918,,Grant payable by the Exchequer,BB11 1JA,"701,027.00",Yes
"Housing, Communities & Local Government",DLUHC,07/07/2023,Current (non AEF) Grants to Local Authorities,Levelling Up,CANNOCK CHASE DC,,,,215064770,3700222026,,Grant payable by the Exchequer,WS11 1BG,"375,495.00",Yes
"Housing, Communities & Local Government",DLUHC,07/07/2023,Current (non AEF) Grants to Local Authorities,Levelling Up,CANTERBURY CITY CNCL,,,,,3700221972,,Grant payable by the Exchequer,CT1 1YW,"257,985.00",Yes
"Housing, Communities & Local Government",DLUHC,07/07/2023,Current (non AEF) Grants to Local Authorities,Levelling Up,CASTLE POINT BC,,Public Bodies,,228217931,3700222010,,Grant payable by the Exchequer,SS7 1TF,"112,320.00",Yes
"Housing, Communities & Local Government",DLUHC,07/07/2023,Current (non AEF) Grants to Local Authorities,Levelling Up,CENTRAL BEDFORDSHIRE COUNCIL,,,,232624882,3700221885,,Grant payable by the Exchequer,SG17 5TQ,"741,329.00",Yes
"Housing, Communities & Local Government",DLUHC,07/07/2023,Current (non AEF) Grants to Local Authorities,Levelling Up,Ceredigion County Council,,,,,3700222126,,Grant payable by the Exchequer,SY23 3UE,"7,497,585.00",Yes
"Housing, Communities & Local Government",DLUHC,07/07/2023,Current (non AEF) Grants to Local Authorities,Levelling Up,Ceredigion County Council,,,,,3700222167,,Grant payable by the Exchequer,SY23 3UE,"2,554,510.00",Yes
"Housing, Communities & Local Government",DLUHC,07/07/2023,Current (non AEF) Grants to Local Authorities,Levelling Up,CHARNWOOD BC,,,,,3700221867,,Grant payable by the Exchequer,LE11 2TU,"295,134.00",Yes
"Housing, Communities & Local Government",DLUHC,07/07/2023,Current (non AEF) Grants to Local Authorities,Levelling Up,CHELMSFORD BC,,,,,3700222071,,Grant payable by the Exchequer,CM1 1JE,"235,000.00",Yes
"Housing, Communities & Local Government",DLUHC,07/07/2023,Current (non AEF) Grants to Local Authorities,Levelling Up,CHELTENHAM BC,,,,,3700222124,,Grant payable by the Exchequer,GL50 1PW,"221,437.00",Yes
"Housing, Communities & Local Government",DLUHC,07/07/2023,Current (non AEF) Grants to Local Authorities,Levelling Up,CHERWELL DC,,,,,3700221975,,Grant payable by the Exchequer,OX15 4AA,"187,841.00",Yes
"Housing, Communities & Local Government",DLUHC,07/07/2023,Current (non AEF) Grants to Local Authorities,Levelling Up,CHESHIRE WEST & CHESTER UA,,Large,,215584383,3700222048,,Grant payable by the Exchequer,CH1 2NP,"2,353,436.00",Yes
"Housing, Communities & Local Government",DLUHC,07/07/2023,Current (non AEF) Grants to Local Authorities,Levelling Up,CHESTERFIELD BC,,,,232102301,3700221932,,Grant payable by the Exchequer,S40 1LP,"511,703.00",Yes
"Housing, Communities & Local Government",DLUHC,07/07/2023,Current (non AEF) Grants to Local Authorities,Levelling Up,CHICHESTER DC,,,,739800998,3700221914,,Grant payable by the Exchequer,PO19 1TY,"183,998.00",Yes
"Housing, Communities & Local Government",DLUHC,07/07/2023,Current (non AEF) Grants to Local Authorities,Levelling Up,CHORLEY DC,,,,236415576,3700221871,,Grant payable by the Exchequer,PR7 1DP,"799,393.00",Yes
"Housing, Communities & Local Government",DLUHC,07/07/2023,Current (non AEF) Grants to Local Authorities,Levelling Up,CITY OF LINCOLN COUNCIL,,,,,3700221854,,Grant payable by the Exchequer,LN1 1DB,"593,535.00",Yes
"Housing, Communities & Local Government",DLUHC,07/07/2023,Current (non AEF) Grants to Local Authorities,Levelling Up,CITY OF SUNDERLAND,,,,215599312,3700221846,,Grant payable by the Exchequer,SR2 7DN,"2,969,257.00",Yes
"Housing, Communities & Local Government",DLUHC,07/07/2023,Current (non AEF) Grants to Local Authorities,Levelling Up,Clackmannanshire Council,,,,,3700222108,,Grant payable by the Exchequer,FK10 1EB,"364,800.00",Yes
"Housing, Communities & Local Government",DLUHC,07/07/2023,Current (non AEF) Grants to Local Authorities,Levelling Up,Clackmannanshire Council,,,,,3700222158,,Grant payable by the Exchequer,FK10 1EB,"127,440.00",Yes
"Housing, Communities & Local Government",DLUHC,07/07/2023,Current (non AEF) Grants to Local Authorities,Levelling Up,COLCHESTER BC,,,,,3700222040,,Grant payable by the Exchequer,CO3 3WG,"287,544.00",Yes
"Housing, Communities & Local Government",DLUHC,07/07/2023,Current (non AEF) Grants to Local Authorities,Levelling Up,Comhairle nan Eilean Siar,,,,,3700222055,,Grant payable by the Exchequer,HS1 2BW,"369,534.00",Yes
"Housing, Communities & Local Government",DLUHC,07/07/2023,Current (non AEF) Grants to Local Authorities,Levelling Up,Comhairle nan Eilean Siar,,,,,3700222168,,Grant payable by the Exchequer,HS1 2BW,"135,269.00",Yes
"Housing, Communities & Local Government",DLUHC,07/07/2023,Current (non AEF) Grants to Local Authorities,Levelling Up,COTSWOLD DC,,,,232462085,3700221884,,Grant payable by the Exchequer,GL7 1PX,"190,640.00",Yes
"Housing, Communities & Local Government",DLUHC,07/07/2023,Current (non AEF) Grants to Local Authorities,Levelling Up,DACORUM BC,,,,236448643,3700222011,,Grant payable by the Exchequer,HP1 1DN,"372,308.00",Yes
"Housing, Communities & Local Government",DLUHC,07/07/2023,Current (non AEF) Grants to Local Authorities,Levelling Up,DARTFORD BC,,,,225694942,3700221877,,Grant payable by the Exchequer,DA1 1DR,"133,153.00",Yes
"Housing, Communities & Local Government",DLUHC,07/07/2023,Current (non AEF) Grants to Local Authorities,Levelling Up,DERBY CITY CNCL,,,,229641378,3700221865,,Grant payable by the Exchequer,DE1 2FS,"1,288,656.00",Yes
"Housing, Communities & Local Government",DLUHC,07/07/2023,Current (non AEF) Grants to Local Authorities,Levelling Up,DERBYSHIRE DALES DC,,,,,3700221899,,Grant payable by the Exchequer,DE4 3NN,"283,954.00",Yes
"Housing, Communities & Local Government",DLUHC,07/07/2023,Current (non AEF) Grants to Local Authorities,Levelling Up,DORSET COUNCIL,,,,,3700221913,,Grant payable by the Exchequer,DT1 1XJ,"936,688.00",Yes
"Housing, Communities & Local Government",DLUHC,07/07/2023,Current (non AEF) Grants to Local Authorities,Levelling Up,DOVER DC,,,,,3700221878,,Grant payable by the Exchequer,CT16 3PD,"172,757.00",Yes
"Housing, Communities & Local Government",DLUHC,07/07/2023,Current (non AEF) Grants to Local Authorities,Levelling Up,Dundee City Council,,,,,3700221873,,Grant payable by the Exchequer,DD1 1NZ,"946,512.00",Yes
"Housing, Communities & Local Government",DLUHC,07/07/2023,Current (non AEF) Grants to Local Authorities,Levelling Up,Dundee City Council,,,,,3700222166,,Grant payable by the Exchequer,DD1 1NZ,"337,889.00",Yes
"Housing, Communities & Local Government",DLUHC,07/07/2023,Current (non AEF) Grants to Local Authorities,Levelling Up,East Ayrshire Council,,,,,3700221953,,Grant payable by the Exchequer,KA3 7BU,"1,072,299.00",Yes
"Housing, Communities & Local Government",DLUHC,07/07/2023,Current (non AEF) Grants to Local Authorities,Levelling Up,East Ayrshire Council,,,,,3700222156,,Grant payable by the Exchequer,KA3 7BU,"367,645.00",Yes
"Housing, Communities & Local Government",DLUHC,07/07/2023,Current (non AEF) Grants to Local Authorities,Levelling Up,EAST DEVON DC,,,,,3700221863,,Grant payable by the Exchequer,EX14 1EJ,"353,966.00",Yes
"Housing, Communities & Local Government",DLUHC,07/07/2023,Current (non AEF) Grants to Local Authorities,Levelling Up,EAST HAMPSHIRE DC,,,,,3700222006,,Grant payable by the Exchequer,GU31 4EX,"109,078.00",Yes
"Housing, Communities & Local Government",DLUHC,07/07/2023,Current (non AEF) Grants to Local Authorities,Levelling Up,East Lothian Council,,,,,3700222142,,Grant payable by the Exchequer,EH41 3HA,"693,313.00",Yes
"Housing, Communities & Local Government",DLUHC,07/07/2023,Current (non AEF) Grants to Local Authorities,Levelling Up,East Lothian Council,,,,,3700222157,,Grant payable by the Exchequer,EH41 3HA,"245,091.00",Yes
"Housing, Communities & Local Government",DLUHC,07/07/2023,Current (non AEF) Grants to Local Authorities,Levelling Up,EAST STAFFORDSHIRE BC,,,,226778033,3700221995,,Grant payable by the Exchequer,DE14 2EB,"709,486.00",Yes
"Housing, Communities & Local Government",DLUHC,07/07/2023,Current (non AEF) Grants to Local Authorities,Levelling Up,EAST SUFFOLK COUNCIL,,,,,3700222139,,Grant payable by the Exchequer,IP12 1RT,"481,248.00",Yes
"Housing, Communities & Local Government",DLUHC,07/07/2023,Current (non AEF) Grants to Local Authorities,Levelling Up,EASTBOURNE BC,,,,229896428,3700221981,,Grant payable by the Exchequer,BN21 4TW,"133,930.00",Yes
"Housing, Communities & Local Government",DLUHC,07/07/2023,Current (non AEF) Grants to Local Authorities,Levelling Up,EPPING FOREST DC,,,,775876360,3700222028,,Grant payable by the Exchequer,CM16 4BZ,"120,138.00",Yes
"Housing, Communities & Local Government",DLUHC,07/07/2023,Current (non AEF) Grants to Local Authorities,Levelling Up,EPSOM & EWELL BC,,,,225423094,3700222037,,Grant payable by the Exchequer,KT18 5BY,"93,511.00",Yes
"Housing, Communities & Local Government",DLUHC,07/07/2023,Current (non AEF) Grants to Local Authorities,Levelling Up,EREWASH BC,,,,211209762,3700221980,,Grant payable by the Exchequer,DE7 5RP,"510,250.00",Yes
"Housing, Communities & Local Government",DLUHC,07/07/2023,Current (non AEF) Grants to Local Authorities,Levelling Up,EXETER CITY COUNCIL,,,,,3700222051,,Grant payable by the Exchequer,EX1 1JW,"277,207.00",Yes
"Housing, Communities & Local Government",DLUHC,07/07/2023,Current (non AEF) Grants to Local Authorities,Levelling Up,Falkirk Council,,,,,3700222070,,Grant payable by the Exchequer,FK1 5RS,"1,086,479.00",Yes
"Housing, Communities & Local Government",DLUHC,07/07/2023,Current (non AEF) Grants to Local Authorities,Levelling Up,Falkirk Council,,,,,3700222155,,Grant payable by the Exchequer,FK1 5RS,"372,507.00",Yes
"Housing, Communities & Local Government",DLUHC,07/07/2023,Current (non AEF) Grants to Local Authorities,Levelling Up,Fife Council,,,,,3700221999,,Grant payable by the Exchequer,KY7 5LT,"2,213,164.00",Yes
"Housing, Communities & Local Government",DLUHC,07/07/2023,Current (non AEF) Grants to Local Authorities,Levelling Up,Fife Council,,,,,3700222165,,Grant payable by the Exchequer,KY7 5LT,"808,904.00",Yes
"Housing, Communities & Local Government",DLUHC,07/07/2023,Current (non AEF) Grants to Local Authorities,Levelling Up,FOREST OF DEAN DC,,,,211278890,3700222046,,Grant payable by the Exchequer,GL16 8HG,"207,375.00",Yes
"Housing, Communities & Local Government",DLUHC,07/07/2023,Current (non AEF) Grants to Local Authorities,Levelling Up,GATESHEAD MBC,,,,216116041,3700222121,,Grant payable by the Exchequer,NE8 1HH,"2,214,908.00",Yes
"Housing, Communities & Local Government",DLUHC,07/07/2023,Current (non AEF) Grants to Local Authorities,Levelling Up,GEDLING BC,,,,236180337,3700221930,,Grant payable by the Exchequer,NG5 6LU,"570,066.00",Yes
"Housing, Communities & Local Government",DLUHC,07/07/2023,Current (non AEF) Grants to Local Authorities,Levelling Up,GREAT YARMOUTH BC,,,,292697372,3700222111,,Grant payable by the Exchequer,NR30 2QG,"266,103.00",Yes
"Housing, Communities & Local Government",DLUHC,07/07/2023,Current (non AEF) Grants to Local Authorities,Levelling Up,GREATER LONDON AUTHORITY,,,,,3700222057,,Grant payable by the Exchequer,SE10 1AJ,"30,501,729.00",Yes
"Housing, Communities & Local Government",DLUHC,07/07/2023,Current (non AEF) Grants to Local Authorities,Levelling Up,GUILDFORD BC,,,,236663720,3700221874,,Grant payable by the Exchequer,GU2 5BB,"121,587.00",Yes
"Housing, Communities & Local Government",DLUHC,07/07/2023,Current (non AEF) Grants to Local Authorities,Levelling Up,HARLOW DC,,Large,,239999055,3700222047,,Grant payable by the Exchequer,CM20 1WG,"129,262.00",Yes
"Housing, Communities & Local Government",DLUHC,07/07/2023,Current (non AEF) Grants to Local Authorities,Levelling Up,HAVANT BC,,,,211047543,3700221974,,Grant payable by the Exchequer,PO9 2AX,"123,588.00",Yes
"Housing, Communities & Local Government",DLUHC,07/07/2023,Current (non AEF) Grants to Local Authorities,Levelling Up,HERTSMERE BC,,,,237549253,3700222101,,Grant payable by the Exchequer,WD6 1WA,"235,523.00",Yes
"Housing, Communities & Local Government",DLUHC,07/07/2023,Current (non AEF) Grants to Local Authorities,Levelling Up,HIGH PEAK BC,,,,239967771,3700221861,,Grant payable by the Exchequer,SK17 6EL,"331,838.00",Yes
"Housing, Communities & Local Government",DLUHC,07/07/2023,Current (non AEF) Grants to Local Authorities,Levelling Up,Highland Council,,,,,3700222007,,Grant payable by the Exchequer,IV3 5NX,"1,386,690.00",Yes
"Housing, Communities & Local Government",DLUHC,07/07/2023,Current (non AEF) Grants to Local Authorities,Levelling Up,Highland Council,,,,,3700222169,,Grant payable by the Exchequer,IV3 5NX,"569,007.00",Yes
"Housing, Communities & Local Government",DLUHC,07/07/2023,Current (non AEF) Grants to Local Authorities,Levelling Up,HINCKLEY & BOSWORTH BC,,,,211176144,3700222115,,Grant payable by the Exchequer,LE10 1BZ,"506,071.00",Yes
"Housing, Communities & Local Government",DLUHC,07/07/2023,Current (non AEF) Grants to Local Authorities,Levelling Up,HORSHAM DC,,,,229776588,3700222069,,Grant payable by the Exchequer,RH12 1RL,"50,000.00",Yes
"Housing, Communities & Local Government",DLUHC,07/07/2023,Current (non AEF) Grants to Local Authorities,Levelling Up,HULL CITY CNCL,,,,217460984,3700221986,,Grant payable by the Exchequer,HU1 3DT,"1,841,358.00",Yes
"Housing, Communities & Local Government",DLUHC,07/07/2023,Current (non AEF) Grants to Local Authorities,Levelling Up,HYNDBURN BC,,,,,3700221866,,Grant payable by the Exchequer,BB5 1EZ,"521,585.00",Yes
"Housing, Communities & Local Government",DLUHC,07/07/2023,Current (non AEF) Grants to Local Authorities,Levelling Up,ISLE OF WIGHT CNCL,,,,236431730,3700222073,,Grant payable by the Exchequer,PO30 1UD,"224,603.00",Yes
"Housing, Communities & Local Government",DLUHC,07/07/2023,Current (non AEF) Grants to Local Authorities,Levelling Up,LANCASTER CITY COUNCIL,,,,228669990,3700222036,,Grant payable by the Exchequer,LA1 1PJ,"826,152.00",Yes
"Housing, Communities & Local Government",DLUHC,07/07/2023,Current (non AEF) Grants to Local Authorities,Levelling Up,LEICESTER CITY CNCL,,,,228219960,3700222061,,Grant payable by the Exchequer,LE1 1FZ,"1,941,257.00",Yes
"Housing, Communities & Local Government",DLUHC,07/07/2023,Current (non AEF) Grants to Local Authorities,Levelling Up,LICHFIELD DC,,,,236780086,3700221919,,Grant payable by the Exchequer,WS13 6YX,"247,405.00",Yes
"Housing, Communities & Local Government",DLUHC,07/07/2023,Current (non AEF) Grants to Local Authorities,Levelling Up,LIVERPOOL CITY REGION COMB AUT,,Large,,,3700221955,,Grant payable by the Exchequer,L3 1BP,"9,346,919.00",Yes
"Housing, Communities & Local Government",DLUHC,07/07/2023,Current (non AEF) Grants to Local Authorities,Levelling Up,LUTON BC,,,,365112155,3700222002,,Grant payable by the Exchequer,LU1 2BQ,"319,273.00",Yes
"Housing, Communities & Local Government",DLUHC,07/07/2023,Current (non AEF) Grants to Local Authorities,Levelling Up,MALVERN HILLS DC,,,,227470424,3700222072,,Grant payable by the Exchequer,WR14 3AF,"509,720.00",Yes
"Housing, Communities & Local Government",DLUHC,07/07/2023,Current (non AEF) Grants to Local Authorities,Levelling Up,MANSFIELD DC,,,,237922968,3700222015,,Grant payable by the Exchequer,NG19 7BH,"533,439.00",Yes
"Housing, Communities & Local Government",DLUHC,07/07/2023,Current (non AEF) Grants to Local Authorities,Levelling Up,MELTON BC,,,,346268340,3700222018,,Grant payable by the Exchequer,LE13 0UL,"232,947.00",Yes
"Housing, Communities & Local Government",DLUHC,07/07/2023,Current (non AEF) Grants to Local Authorities,Levelling Up,MID DEVON DC,,,,213241137,3700222151,,Grant payable by the Exchequer,EX16 6PP,"182,772.00",Yes
"Housing, Communities & Local Government",DLUHC,07/07/2023,Current (non AEF) Grants to Local Authorities,Levelling Up,MID SUFFOLK DC,,,,232618405,3700222148,,Grant payable by the Exchequer,IP1 2BX,"211,209.00",Yes
"Housing, Communities & Local Government",DLUHC,07/07/2023,Current (non AEF) Grants to Local Authorities,Levelling Up,MID SUFFOLK DC,,,,223387239,3700222094,,Grant payable by the Exchequer,IP1 2BX,"245,020.00",Yes
"Housing, Communities & Local Government",DLUHC,07/07/2023,Current (non AEF) Grants to Local Authorities,Levelling Up,MID SUSSEX DC,,,,236675989,3700221978,,Grant payable by the Exchequer,RH16 1SS,"60,000.00",Yes
"Housing, Communities & Local Government",DLUHC,07/07/2023,Current (non AEF) Grants to Local Authorities,Levelling Up,MILTON KEYNES BC,,,,,3700222106,,Grant payable by the Exchequer,MK9 3WJ,"496,600.00",Yes
"Housing, Communities & Local Government",DLUHC,07/07/2023,Current (non AEF) Grants to Local Authorities,Levelling Up,MOLE VALLEY DC,,,,225385772,3700222154,,Grant payable by the Exchequer,RH4 1SJ,"88,458.00",Yes
"Housing, Communities & Local Government",DLUHC,07/07/2023,Current (non AEF) Grants to Local Authorities,Levelling Up,Moray Council,,,,,3700221928,,Grant payable by the Exchequer,IV30 1BX,"758,216.00",Yes
"Housing, Communities & Local Government",DLUHC,07/07/2023,Current (non AEF) Grants to Local Authorities,Levelling Up,Moray Council,,,,,3700222163,,Grant payable by the Exchequer,IV30 1BX,"259,960.00",Yes
"Housing, Communities & Local Government",DLUHC,07/07/2023,Current (non AEF) Grants to Local Authorities,Levelling Up,NEW FOREST DC,,Public Bodies,,,3700222099,,Grant payable by the Exchequer,SO43 7PA,"138,617.00",Yes
"Housing, Communities & Local Government",DLUHC,07/07/2023,Current (non AEF) Grants to Local Authorities,Levelling Up,NEWARK & SHERWOOD DC,,,,236186755,3700221992,,Grant payable by the Exchequer,NG23 5QX,"648,656.00",Yes
"Housing, Communities & Local Government",DLUHC,07/07/2023,Current (non AEF) Grants to Local Authorities,Levelling Up,NEWCASTLE UNDER LYME BC,,,,229894373,3700222105,,Grant payable by the Exchequer,ST5 2AG,"839,889.00",Yes
"Housing, Communities & Local Government",DLUHC,07/07/2023,Current (non AEF) Grants to Local Authorities,Levelling Up,North Ayrshire Council,,,,,3700222042,,Grant payable by the Exchequer,KA12 8EE,"1,042,780.00",Yes
"Housing, Communities & Local Government",DLUHC,07/07/2023,Current (non AEF) Grants to Local Authorities,Levelling Up,North Ayrshire Council,,,,,3700222159,,Grant payable by the Exchequer,KA12 8EE,"373,533.00",Yes
"Housing, Communities & Local Government",DLUHC,07/07/2023,Current (non AEF) Grants to Local Authorities,Levelling Up,NORTH DEVON DC,,,,,3700222080,,Grant payable by the Exchequer,EX32 2GR,"253,425.00",Yes
"Housing, Communities & Local Government",DLUHC,07/07/2023,Current (non AEF) Grants to Local Authorities,Levelling Up,NORTH EAST DERBYSHIRE DC,,,,238879308,3700221870,,Grant payable by the Exchequer,S42 6NG,"331,864.00",Yes
"Housing, Communities & Local Government",DLUHC,07/07/2023,Current (non AEF) Grants to Local Authorities,Levelling Up,NORTH HERTS DC (HOUSING),,,,233593917,3700222000,,Grant payable by the Exchequer,SG6 3JF,"243,962.00",Yes
"Housing, Communities & Local Government",DLUHC,07/07/2023,Current (non AEF) Grants to Local Authorities,Levelling Up,North Northamptonshire UA,,,,,3700221903,,Grant payable by the Exchequer,NN16 8TL,"983,624.00",Yes
"Housing, Communities & Local Government",DLUHC,07/07/2023,Current (non AEF) Grants to Local Authorities,Levelling Up,NORTH SOMERSET COUNCIL,,Large,,,3700222009,,Grant payable by the Exchequer,BS23 1UJ,"531,471.00",Yes
"Housing, Communities & Local Government",DLUHC,07/07/2023,Current (non AEF) Grants to Local Authorities,Levelling Up,NORTH WARWICKSHIRE BC,,Large,,,3700221925,,Grant payable by the Exchequer,CV9 1DE,"289,587.00",Yes
"Housing, Communities & Local Government",DLUHC,07/07/2023,Current (non AEF) Grants to Local Authorities,Levelling Up,NORTH WEST LEICESTERSHIRE DC,,,,232605782,3700221936,,Grant payable by the Exchequer,LE67 9SH,"496,121.00",Yes
"Housing, Communities & Local Government",DLUHC,07/07/2023,Current (non AEF) Grants to Local Authorities,Levelling Up,NORWICH CITY CNCL,,,,235981297,3700222122,,Grant payable by the Exchequer,NR2 1NH,"335,025.00",Yes
"Housing, Communities & Local Government",DLUHC,07/07/2023,Current (non AEF) Grants to Local Authorities,Levelling Up,NOTTINGHAM CITY COUNCIL,,,,214495447,3700222064,,Grant payable by the Exchequer,NG2 3NG,"1,816,473.00",Yes
"Housing, Communities & Local Government",DLUHC,07/07/2023,Current (non AEF) Grants to Local Authorities,Levelling Up,OADBY & WIGSTON BC,,,,239831878,3700222118,,Grant payable by the Exchequer,LE8 2DR,"283,231.00",Yes
"Housing, Communities & Local Government",DLUHC,07/07/2023,Current (non AEF) Grants to Local Authorities,Levelling Up,OXFORD CITY COUNCIL,,,,212437417,3700222114,,Grant payable by the Exchequer,OX1 1DS,"64,662.00",Yes
"Housing, Communities & Local Government",DLUHC,07/07/2023,Current (non AEF) Grants to Local Authorities,Levelling Up,PENDLE BC,,,,548605328,3700222075,,Grant payable by the Exchequer,BB9 7LG,"718,952.00",Yes
"Housing, Communities & Local Government",DLUHC,07/07/2023,Current (non AEF) Grants to Local Authorities,Levelling Up,PORTSMOUTH CITY COUNCIL,,Large,,211183082,3700222027,,Grant payable by the Exchequer,PO1 2AR,"287,893.00",Yes
"Housing, Communities & Local Government",DLUHC,07/07/2023,Current (non AEF) Grants to Local Authorities,Levelling Up,PRESTON BC,,,,232604124,3700222063,,Grant payable by the Exchequer,PR1 2RL,"1,071,618.00",Yes
"Housing, Communities & Local Government",DLUHC,07/07/2023,Current (non AEF) Grants to Local Authorities,Levelling Up,REDDITCH BC,,,,231421491,3700222117,,Grant payable by the Exchequer,B98 8AH,"308,744.00",Yes
"Housing, Communities & Local Government",DLUHC,07/07/2023,Current (non AEF) Grants to Local Authorities,Levelling Up,REIGATE & BANSTEAD BC,,,,211313515,3700222103,,Grant payable by the Exchequer,RH2 0SH,"134,596.00",Yes
"Housing, Communities & Local Government",DLUHC,07/07/2023,Current (non AEF) Grants to Local Authorities,Levelling Up,RIBBLE VALLEY BC,,,,232617894,3700222065,,Grant payable by the Exchequer,BB7 2RA,"116,610.00",Yes
"Housing, Communities & Local Government",DLUHC,07/07/2023,Current (non AEF) Grants to Local Authorities,Levelling Up,ROCHFORD DISTRICT COUNCIL,,,,387828767,3700222054,,Grant payable by the Exchequer,SS4 1BW,"131,282.00",Yes
"Housing, Communities & Local Government",DLUHC,07/07/2023,Current (non AEF) Grants to Local Authorities,Levelling Up,ROSSENDALE BC,,,,237654020,3700221968,,Grant payable by the Exchequer,OL13 0BB,"556,715.00",Yes
"Housing, Communities & Local Government",DLUHC,07/07/2023,Current (non AEF) Grants to Local Authorities,Levelling Up,ROTHER DC,,,,,3700221993,,Grant payable by the Exchequer,TN39 3JX,"153,951.00",Yes
"Housing, Communities & Local Government",DLUHC,07/07/2023,Current (non AEF) Grants to Local Authorities,Levelling Up,RUNNYMEDE BOROUGH COUNCIL,,,,232225722,3700222152,,Grant payable by the Exchequer,KT15 2AH,"45,876.00",Yes
"Housing, Communities & Local Government",DLUHC,07/07/2023,Current (non AEF) Grants to Local Authorities,Levelling Up,RUSHCLIFFE BOROUGH COUNCIL,,,,,3700222120,,Grant payable by the Exchequer,NG2 5FE,"430,000.00",Yes
"Housing, Communities & Local Government",DLUHC,07/07/2023,Current (non AEF) Grants to Local Authorities,Levelling Up,RUSHMOOR BC,,,,232607606,3700221900,,Grant payable by the Exchequer,GU14 7JU,"58,528.00",Yes
"Housing, Communities & Local Government",DLUHC,07/07/2023,Current (non AEF) Grants to Local Authorities,Levelling Up,RUTLAND CC,,,,,3700222012,,Grant payable by the Exchequer,LE15 6HP,"102,089.00",Yes
"Housing, Communities & Local Government",DLUHC,07/07/2023,Current (non AEF) Grants to Local Authorities,Levelling Up,Scottish Borders Council,,,,,3700221881,,Grant payable by the Exchequer,TD6 0SA,"916,562.00",Yes
"Housing, Communities & Local Government",DLUHC,07/07/2023,Current (non AEF) Grants to Local Authorities,Levelling Up,Scottish Borders Council,,,,,3700222162,,Grant payable by the Exchequer,TD6 0SA,"323,492.00",Yes
"Housing, Communities & Local Government",DLUHC,07/07/2023,Current (non AEF) Grants to Local Authorities,Levelling Up,SHROPSHIRE UNITARY AUTHORITY,,,,217036490,3700222110,,Grant payable by the Exchequer,SY2 6ND,"2,279,616.00",Yes
"Housing, Communities & Local Government",DLUHC,07/07/2023,Current (non AEF) Grants to Local Authorities,Levelling Up,SLOUGH BOROUGH COUNCIL,,,,211027123,3700221923,,Grant payable by the Exchequer,SL1 3UF,"166,290.00",Yes
"Housing, Communities & Local Government",DLUHC,07/07/2023,Current (non AEF) Grants to Local Authorities,Levelling Up,Somerset Council (UA),,,,,3700222067,,Grant payable by the Exchequer,TA1 4DY,"1,533,849.00",Yes
"Housing, Communities & Local Government",DLUHC,07/07/2023,Current (non AEF) Grants to Local Authorities,Levelling Up,SOUTH OXFORDSHIRE DC,,,,212296766,3700222107,,Grant payable by the Exchequer,OX14 3JE,"102,632.00",Yes
"Housing, Communities & Local Government",DLUHC,07/07/2023,Current (non AEF) Grants to Local Authorities,Levelling Up,SOUTH TYNESIDE MBC,,,,345736438,3700222085,,Grant payable by the Exchequer,NE33 2RL,"1,872,747.00",Yes
"Housing, Communities & Local Government",DLUHC,07/07/2023,Current (non AEF) Grants to Local Authorities,Levelling Up,SOUTHEND ON SEA BC,,,,217067263,3700222014,,Grant payable by the Exchequer,SS2 6EP,"282,698.00",Yes
"Housing, Communities & Local Government",DLUHC,07/07/2023,Current (non AEF) Grants to Local Authorities,Levelling Up,SPELTHORNE BOROUGH COUNCIL,,,,211177332,3700222127,,Grant payable by the Exchequer,TW18 1XB,"58,071.00",Yes
"Housing, Communities & Local Government",DLUHC,07/07/2023,Current (non AEF) Grants to Local Authorities,Levelling Up,ST ALBANS CITY COUNCIL,,,,218692510,3700221944,,Grant payable by the Exchequer,AL1 3JE,"223,038.00",Yes
"Housing, Communities & Local Government",DLUHC,07/07/2023,Current (non AEF) Grants to Local Authorities,Levelling Up,STAFFORD BC,,,,227476934,3700222024,,Grant payable by the Exchequer,ST16 3AQ,"508,757.00",Yes
"Housing, Communities & Local Government",DLUHC,07/07/2023,Current (non AEF) Grants to Local Authorities,Levelling Up,STAFFORDSHIRE MOORLANDS DC,,,,232749775,3700222078,,Grant payable by the Exchequer,ST13 6HQ,"416,717.00",Yes
"Housing, Communities & Local Government",DLUHC,07/07/2023,Current (non AEF) Grants to Local Authorities,Levelling Up,STEVENAGE BC,,,,236440186,3700221912,,Grant payable by the Exchequer,SG1 1HN,"199,190.00",Yes
"Housing, Communities & Local Government",DLUHC,07/07/2023,Current (non AEF) Grants to Local Authorities,Levelling Up,Stirling Council,,,,,3700222059,,Grant payable by the Exchequer,FK8 2ET,"753,312.00",Yes
"Housing, Communities & Local Government",DLUHC,07/07/2023,Current (non AEF) Grants to Local Authorities,Levelling Up,Stirling Council,,,,,3700222161,,Grant payable by the Exchequer,FK8 2ET,"259,451.00",Yes
"Housing, Communities & Local Government",DLUHC,07/07/2023,Current (non AEF) Grants to Local Authorities,Levelling Up,STOKE ON TRENT CITY COUNCIL,,,,216037890,3700221868,,Grant payable by the Exchequer,ST4 1HH,"1,995,049.00",Yes
"Housing, Communities & Local Government",DLUHC,07/07/2023,Current (non AEF) Grants to Local Authorities,Levelling Up,SURREY HEATH BC,,,,236445441,3700221977,,Grant payable by the Exchequer,GU15 3HD,"65,646.00",Yes
"Housing, Communities & Local Government",DLUHC,07/07/2023,Current (non AEF) Grants to Local Authorities,Levelling Up,SWALE BC,,,,239842768,3700222049,,Grant payable by the Exchequer,ME10 3HT,"223,858.00",Yes
"Housing, Communities & Local Government",DLUHC,07/07/2023,Current (non AEF) Grants to Local Authorities,Levelling Up,TAMWORTH BOROUGH COUNCIL,,,,232612457,3700221915,,Grant payable by the Exchequer,B79 7BZ,"491,644.00",Yes
"Housing, Communities & Local Government",DLUHC,07/07/2023,Current (non AEF) Grants to Local Authorities,Levelling Up,TEES VALLEY COMBINED AUTHORITY,,,,,3700222045,,Grant payable by the Exchequer,TS17 6QY,"9,022,169.00",Yes
"Housing, Communities & Local Government",DLUHC,07/07/2023,Current (non AEF) Grants to Local Authorities,Levelling Up,TENDRING DC,,,,,3700221908,,Grant payable by the Exchequer,CO15 1SE,"248,406.00",Yes
"Housing, Communities & Local Government",DLUHC,07/07/2023,Current (non AEF) Grants to Local Authorities,Levelling Up,THANET DC,,,,232309369,3700221937,,Grant payable by the Exchequer,CT8 1XZ,"229,969.00",Yes
"Housing, Communities & Local Government",DLUHC,07/07/2023,Current (non AEF) Grants to Local Authorities,Levelling Up,THREE RIVERS DC,,,,,3700222050,,Grant payable by the Exchequer,WD3 1RL,"158,054.00",Yes
"Housing, Communities & Local Government",DLUHC,07/07/2023,Current (non AEF) Grants to Local Authorities,Levelling Up,THURROCK BC,,,,,3700222137,,Grant payable by the Exchequer,RM17 6SL,"260,032.00",Yes
"Housing, Communities & Local Government",DLUHC,07/07/2023,Current (non AEF) Grants to Local Authorities,Levelling Up,TONBRIDGE & MALLING BC,,,,,3700222144,,Grant payable by the Exchequer,ME19 6LZ,"107,462.00",Yes
"Housing, Communities & Local Government",DLUHC,07/07/2023,Current (non AEF) Grants to Local Authorities,Levelling Up,TORRIDGE DC,,,,,3700222082,,Grant payable by the Exchequer,EX39 2QG,"191,510.00",Yes
"Housing, Communities & Local Government",DLUHC,07/07/2023,Current (non AEF) Grants to Local Authorities,Levelling Up,TUNBRIDGE WELLS BC,,,,775221013,3700221858,,Grant payable by the Exchequer,TN1 1RS,"147,774.00",Yes
"Housing, Communities & Local Government",DLUHC,07/07/2023,Current (non AEF) Grants to Local Authorities,Levelling Up,UTTLESFORD DC,,,,424423242,3700222016,,Grant payable by the Exchequer,CB11 4ER,"160,617.00",Yes
"Housing, Communities & Local Government",DLUHC,07/07/2023,Current (non AEF) Grants to Local Authorities,Levelling Up,VALE OF WHITE HORSE DC,,,,,3700221938,,Grant payable by the Exchequer,OX14 3JE,"88,515.00",Yes
"Housing, Communities & Local Government",DLUHC,07/07/2023,Current (non AEF) Grants to Local Authorities,Levelling Up,WARRINGTON BC,,,,,3700221856,,Grant payable by the Exchequer,WA1 1BN,"1,368,644.00",Yes
"Housing, Communities & Local Government",DLUHC,07/07/2023,Current (non AEF) Grants to Local Authorities,Levelling Up,WARWICK,,,,,3700221916,,Grant payable by the Exchequer,CV32 4NW,"580,002.00",Yes
"Housing, Communities & Local Government",DLUHC,07/07/2023,Current (non AEF) Grants to Local Authorities,Levelling Up,WAVERLEY BC V177,,,,,3700221973,,Grant payable by the Exchequer,GU7 1HR,"106,000.00",Yes
"Housing, Communities & Local Government",DLUHC,07/07/2023,Current (non AEF) Grants to Local Authorities,Levelling Up,WEALDEN DC,,,,232688697,3700221926,,Grant payable by the Exchequer,BN22 9LN,"184,497.00",Yes
"Housing, Communities & Local Government",DLUHC,07/07/2023,Current (non AEF) Grants to Local Authorities,Levelling Up,WEST BERKSHIRE COUNCIL,,,,364809181,3700222021,,Grant payable by the Exchequer,RG14 5LD,"103,464.00",Yes
"Housing, Communities & Local Government",DLUHC,07/07/2023,Current (non AEF) Grants to Local Authorities,Levelling Up,WEST LINDSEY DC,,,,227471026,3700221887,,Grant payable by the Exchequer,DN21 2NA,"560,851.00",Yes
"Housing, Communities & Local Government",DLUHC,07/07/2023,Current (non AEF) Grants to Local Authorities,Levelling Up,WEST NORTHAMPTONSHIRE COUNCIL,,,,,3700222019,,Grant payable by the Exchequer,NN1 1ED,"1,107,580.00",Yes
"Housing, Communities & Local Government",DLUHC,07/07/2023,Current (non AEF) Grants to Local Authorities,Levelling Up,WEST OF ENGLAND COMBINED AUTHORITY,,,,,3700222056,,Grant payable by the Exchequer,BS1 6EW,"2,114,207.00",Yes
"Housing, Communities & Local Government",DLUHC,07/07/2023,Current (non AEF) Grants to Local Authorities,Levelling Up,WEST SUFFOLK DC,,,,,3700222133,,Grant payable by the Exchequer,IP33 3YU,"394,505.00",Yes
"Housing, Communities & Local Government",DLUHC,07/07/2023,Current (non AEF) Grants to Local Authorities,Levelling Up,Westmorland & Furness Council,,,,,3700221889,,Grant payable by the Exchequer,LA9 4UF,"1,436,739.00",Yes
"Housing, Communities & Local Government",DLUHC,07/07/2023,Current (non AEF) Grants to Local Authorities,Levelling Up,WINCHESTER CITY CNCL,,,,228838280,3700221954,,Grant payable by the Exchequer,SO23 9LJ,"89,709.00",Yes
"Housing, Communities & Local Government",DLUHC,07/07/2023,Current (non AEF) Grants to Local Authorities,Levelling Up,WORTHING BC,,,,236429734,3700222129,,Grant payable by the Exchequer,BN11 1HA,"97,628.00",Yes
"Housing, Communities & Local Government",DLUHC,07/07/2023,Current (non AEF) Grants to Local Authorities,Levelling Up,WYCHAVON DISTRICT COUNCIL,,,,232257139,3700222008,,Grant payable by the Exchequer,WR10 1PT,"587,445.00",Yes
"Housing, Communities & Local Government",DLUHC,07/07/2023,Current (non AEF) Grants to Local Authorities,Levelling Up,YORK CITY CNCL,,,,,3700221890,,Grant payable by the Exchequer,YO1 0EG,"1,078,527.00",Yes
"Housing, Communities & Local Government",DLUHC,07/07/2023,Current (non AEF) Grants to Local Authorities,Regeneration,LB SUTTON,,,,,2100327236,,Grant payment to London Borough of Sutton Pension Authority,SM1 1EA,"3,478.89",Yes
"Housing, Communities & Local Government",DLUHC,07/07/2023,Current Grants to Non Profit Bodies,Levelling Up,Black Horse Community Group Ltd,,Micro,,,2100327238,,COF 22 11 Revenue payment,LE14 3BZ,"13,645.00",Yes
"Housing, Communities & Local Government",DLUHC,07/07/2023,Current Grants to Non Profit Bodies,Levelling Up,Heart of Newhaven Community SCIO,Yes,Micro,,,2100327185,,COF 22 16 Heart of Newhaven Revenue claim,EH6 4HY,"2,181.69",Yes
"Housing, Communities & Local Government",DLUHC,07/07/2023,Current Grants to Non Profit Bodies,Resettlements,Barnardos,Yes,Large,,,2100327229,,To support the integration of HK British Nationals,IG6 1QG,"300,000.00",Yes
"Housing, Communities & Local Government",DLUHC,07/07/2023,Current Grants to Non Profit Bodies,Resettlements,Groundwork South Trust Limited,Yes,Large,,296557242,2100327232,,To support the integration of HK British Nationals,UB9 5PG,"40,000.00",Yes
"Housing, Communities & Local Government",DLUHC,07/07/2023,Current Grants to Non Profit Bodies,Resettlements,Path Yorkshire (Ltd),,Small,,,2100327233,,To support the integration of HK British Nationals,LS7 3PD,"19,937.00",Yes
"Housing, Communities & Local Government",DLUHC,07/07/2023,Current Grants to Non Profit Bodies,Resettlements,ST FRANCIS EMPLOYABILITY CIO,Yes,,,,2100327230,,To support the integration of HK British Nationals,CV6 3DQ,"39,723.00",Yes
"Housing, Communities & Local Government",DLUHC,07/07/2023,Current Grants to Non Profit Bodies,Resettlements,Strings of Life,Yes,Micro,,,2100327234,,To support the integration of HK British Nationals,LS7 1BA,"40,000.00",Yes
"Housing, Communities & Local Government",DLUHC,07/07/2023,Current Grants to Non Profit Bodies,Resettlements,Trafford Hongkongers CIC,,,,,2100327231,,To support the integration of HK British Nationals,WC1N 3AX,"40,000.00",Yes
"Housing, Communities & Local Government",DLUHC,07/07/2023,ERDF Work in Progress � Resource,Regeneration,EAST LONDON UNIVERSITY,,,,,7700014030,,ERDF grant payment,E16 2RD,"28,799.54",Yes
"Housing, Communities & Local Government",DLUHC,07/07/2023,ERDF Work in Progress � Resource,Regeneration,EAST LONDON UNIVERSITY,,,,,7700014031,,ERDF grant payment,E16 2RD,"29,467.13",Yes
"Housing, Communities & Local Government",DLUHC,07/07/2023,ERDF Work in Progress � Resource,Regeneration,EAST LONDON UNIVERSITY,,,,,7700014033,,ERDF grant offset,E16 2RD,"-2,274.85",Yes
"Housing, Communities & Local Government",DLUHC,07/07/2023,ERDF Work in Progress � Resource,Regeneration,UNIVERSITY OF BIRMINGHAM,,Large,,,7700014032,,ERDF grant payment,B15 2TT,"149,362.90",Yes
"Housing, Communities & Local Government",DLUHC,07/07/2023,IT - Service Contracts,CFO and Corporate,ALEXANDER MANN SOLUTIONS LTD,,Large,,,5106298978,,Agency Staff,EC2N 3AQ,"5,338.08",
"Housing, Communities & Local Government",DLUHC,07/07/2023,IT - Service Contracts,CFO and Corporate,ALEXANDER MANN SOLUTIONS LTD,,Large,,,5106298990,,Agency Staff,EC2N 3AQ,"8,212.40",
"Housing, Communities & Local Government",DLUHC,07/07/2023,IT - Service Contracts,CFO and Corporate,ALEXANDER MANN SOLUTIONS LTD,,Large,,,5106299009,,Agency Staff,EC2N 3AQ,"6,672.60",
"Housing, Communities & Local Government",DLUHC,07/07/2023,IT - Service Contracts,CFO and Corporate,ALEXANDER MANN SOLUTIONS LTD,,Large,,,5106299011,,Agency Staff,EC2N 3AQ,"9,714.87",
"Housing, Communities & Local Government",DLUHC,07/07/2023,IT - Service Contracts,CFO and Corporate,"Amazon Web Services Emea Sarl, Uk B",,Large,,222893290,5106298969,,Data Collection as a Service,EC2A 2FA,352.57,
"Housing, Communities & Local Government",DLUHC,07/07/2023,IT - Service Contracts,CFO and Corporate,"Amazon Web Services Emea Sarl, Uk B",,Large,,222893290,5106298971,,Data Collection as a Service,EC2A 2FA,"41,915.70",
"Housing, Communities & Local Government",DLUHC,07/07/2023,IT - Service Contracts,CFO and Corporate,"Amazon Web Services Emea Sarl, Uk B",,Large,,222893290,5106298972,,Amazon Web Services 2023-Mar 2024,EC2A 2FA,"3,391.43",
"Housing, Communities & Local Government",DLUHC,07/07/2023,IT - Service Contracts,CFO and Corporate,"Amazon Web Services Emea Sarl, Uk B",,Large,,222893290,5106298972,,Data Collection as a Service,EC2A 2FA,"10,817.23",
"Housing, Communities & Local Government",DLUHC,07/07/2023,IT - Service Contracts,CFO and Corporate,"Amazon Web Services Emea Sarl, Uk B",,Large,,222893290,5106298972,,Funding Service Design AWS costs 2023/24,EC2A 2FA,286.28,
"Housing, Communities & Local Government",DLUHC,07/07/2023,IT - Service Contracts,CFO and Corporate,ARCUS CLOUD SERVICES LTD,,Medium,,,5106298988,,Digital IT Services,NG24 2AG,"82,243.38",
"Housing, Communities & Local Government",DLUHC,07/07/2023,IT - Service Contracts,CFO and Corporate,DAISY CORPORATE SERVICES TRADING LT,,Large,,,5106298960,,Telephony 3 year Service costs,BB9 5SR,"1,301.75",
"Housing, Communities & Local Government",DLUHC,07/07/2023,IT - Service Contracts,CFO and Corporate,RISUAL LIMITED,,Medium,,,5106298786,,IT Services,ST18 0WP,"44,160.00",
"Housing, Communities & Local Government",DLUHC,07/07/2023,IT - Service Contracts,CFO and Corporate,X M A LTD,,Large,,298484148,5106298952,,6 month extension Hardware Support Servi,NG11 7EP,325,
"Housing, Communities & Local Government",DLUHC,07/07/2023,IT - Service Contracts,CFO and Corporate,X M A LTD,,Large,,298484148,5106298962,,Hardware 2023-2026,NG11 7EP,"43,962.00",
"Housing, Communities & Local Government",DLUHC,07/07/2023,IT - Service Contracts,Regeneration,"Amazon Web Services Emea Sarl, Uk B",,Large,,222893290,5106298972,,Digital Planning Costs - June 2023,EC2A 2FA,"3,563.86",
"Housing, Communities & Local Government",DLUHC,07/07/2023,IT - Service Contracts,Safer and Greener Buildings,"Amazon Web Services Emea Sarl, Uk B",,Large,,222893290,5106298972,,Energy Performance AWS costs 2023/24,EC2A 2FA,"5,887.22",
"Housing, Communities & Local Government",DLUHC,07/07/2023,IT Consultancy,CFO and Corporate,Version 1 Solutions Ltd,,Large,,536340334,5106298961,,FSD development costs for April - Novemb,B97 4DL,"103,892.92",
"Housing, Communities & Local Government",DLUHC,07/07/2023,IT Consultancy,CFO and Corporate,Version 1 Solutions Ltd,,Large,,536340334,5106298966,,FSD development costs for April - Novemb,B97 4DL,"162,757.30",
"Housing, Communities & Local Government",DLUHC,07/07/2023,IT SUPPORT,"Union, Elections and Places",DEPARTMENT FOR WORK & PENSIONS,,Public Bodies,,218124765,5106298936,,Verification of applications for RTV,FY5 3TA,"7,686.00",
"Housing, Communities & Local Government",DLUHC,07/07/2023,IT SUPPORT,"Union, Elections and Places",DEPARTMENT FOR WORK & PENSIONS,,Public Bodies,,218124765,5106298937,,Verification of applications for RTV,FY5 3TA,"7,686.00",
"Housing, Communities & Local Government",DLUHC,07/07/2023,Legal Fees,Regeneration,Temple Garden Chambers,,Medium,,,5106298939,,Legal Advice,EC4Y 9DA,"2,220.00",
"Housing, Communities & Local Government",DLUHC,07/07/2023,Printing,"Union, Elections and Places",HH Associates Limited,,Large,,770639193,5106298946,,Voter Card Print Contract,KT22 9DF,381.92,
"Housing, Communities & Local Government",DLUHC,07/07/2023,Professional services,Levelling Up,Telefonica UK Ltd,,Large,,,5106298902,,Anonymised mobility data for the UK,SL1 4DX,"396,000.00",
"Housing, Communities & Local Government",DLUHC,07/07/2023,Professional services,Regeneration,CEL GROUP,,Medium,,394794614,5106298938,,HIA fund extension,WA2 0YL,"88,000.00",
"Housing, Communities & Local Government",DLUHC,07/07/2023,Professional services,Regeneration,VALUATION OFFICE AGENCY,,Public Bodies,,215253886,5106298965,, Right to Buy Determination ,W1D 5BU,"164,472.11",
"Housing, Communities & Local Government",DLUHC,07/07/2023,Publishing,Local Govnmnt Resilience and Communities,HH Associates Limited,,Large,,770639193,5106298661,,DLUHC Command and House Paper Contract,KT22 9DF,866.4,
"Housing, Communities & Local Government",DLUHC,07/07/2023,Publishing,Local Govnmnt Resilience and Communities,HH Associates Limited,,Large,,770639193,5106298949,,DLUHC Command and House Paper Contract,KT22 9DF,281.07,
"Housing, Communities & Local Government",DLUHC,07/07/2023,Recruitment,CFO and Corporate,ALEXANDER MANN SOLUTIONS LTD,,Large,,,5106298992,,Agency Staff,EC2N 3AQ,"3,582.79",
"Housing, Communities & Local Government",DLUHC,07/07/2023,Software Licences,CFO and Corporate,PHOENIX SOFTWARE LTD,,Large,,,5106298954,,Migration Services,YO42 1NS,"7,286.40",
"Housing, Communities & Local Government",DLUHC,07/07/2023,Training,CFO and Corporate,KPMG LLP (CSL),,Large,,,5106298935,,Civil Service Training,E14 5GL,"1,153.00",
"Housing, Communities & Local Government",DLUHC,07/07/2023,Training,CFO and Corporate,LSR TRAINING AND DEVELOPMENT LTD,,Micro,,,5106298950,,Civil Service Training,YO42 4RE,745,
"Housing, Communities & Local Government",DLUHC,07/07/2023,Training,CFO and Corporate,LSR TRAINING AND DEVELOPMENT LTD,,Micro,,,5106298951,,Civil Service Training,YO42 4RE,745,
"Housing, Communities & Local Government",DLUHC,07/07/2023,Training,CFO and Corporate,LSR TRAINING AND DEVELOPMENT LTD,,Micro,,,5106298956,,Civil Service Training,YO42 4RE,350,
"Housing, Communities & Local Government",DLUHC,07/07/2023,Training,CFO and Corporate,LSR TRAINING AND DEVELOPMENT LTD,,Micro,,,5106298958,,Civil Service Training,YO42 4RE,350,
"Housing, Communities & Local Government",DLUHC,07/07/2023,Training,CFO and Corporate,Zaizi Limited,,Micro,,,5106299024,,Civil Service Training,W6 7JP,"30,250.88",
"Housing, Communities & Local Government",DLUHC,07/07/2023,Vehicle hire,Levelling Up,GOVERNMENT CAR & DESPATCH AGENCY,,Public Bodies,,,5106299021,,Min Car (LT206) Add hours (2021-24),SW8 5AX,"1,428.05",
"Housing, Communities & Local Government",DLUHC,07/07/2023,Vehicle hire,Levelling Up,GOVERNMENT CAR & DESPATCH AGENCY,,Public Bodies,,,5106299021,,Min Car (LT206) CORE (2021-24),SW8 5AX,"10,710.93",
"Housing, Communities & Local Government",DLUHC,07/07/2023,Vehicle hire,Levelling Up,GOVERNMENT CAR & DESPATCH AGENCY,,Public Bodies,,,5106299021,,Min Car (LT206) Con Chg (2021-24),SW8 5AX,300,
"Housing, Communities & Local Government",DLUHC,10/07/2023,Capital Grants to Private Sect Non Profit,Levelling Up,Aberporth Village Hall&Recreation G,,Micro,,,2100327310,,COF22 01 Heart of Aberporth Community Capital fund,SA43 2EU,"66,000.00",Yes
"Housing, Communities & Local Government",DLUHC,10/07/2023,Capital Grants to Private Sect Non Profit,Levelling Up,Moor Pool Heritage Trust,Yes,Micro,,,2100327264,,COF 22 10 Capital payment,B17 9DY,"80,000.00",Yes
"Housing, Communities & Local Government",DLUHC,10/07/2023,Conferences and Meeting Facilities,CFO and Corporate,Political Engagement Limited,,Medium,,,5106299043,,Exhibition Fees,SW1P 4QP,"4,860.00",
"Housing, Communities & Local Government",DLUHC,10/07/2023,Conferences and Meeting Facilities,Local Govnmnt Resilience and Communities,LOCAL GOVERNMENT ASSOCIATION,,Public Bodies,,232563929,5106299029,,Venue Hire for COVID-19 Inquiry Unit Awa,SW1P 3HZ,870,
"Housing, Communities & Local Government",DLUHC,10/07/2023,Courier Services,CFO and Corporate,POSTURITE LTD,,Medium,,216832621,5106299055,,Delivery & Set Up,BN26 6SZ,61.14,
"Housing, Communities & Local Government",DLUHC,10/07/2023,Current Grants to Non Profit Bodies,Levelling Up,Moor Pool Heritage Trust,Yes,Micro,,,2100327265,,COF 22 10 Revenue payment,B17 9DY,"16,000.00",Yes
"Housing, Communities & Local Government",DLUHC,10/07/2023,Current Grants to Non Profit Bodies,Resettlements,ACTION WEST LONDON,Yes,Small,,236524356,2100327317,,To support the integration of HK British Nationals,W3 ORF,"37,499.00",Yes
"Housing, Communities & Local Government",DLUHC,10/07/2023,Current Grants to Non Profit Bodies,Resettlements,"CHESHIRE,HALTON&WARRINGTON RACE&EQU",,Micro,,238928084,2100327257,,To support the integration of HK British Nationals,CH4 7HP,"39,971.00",Yes
"Housing, Communities & Local Government",DLUHC,10/07/2023,Current Grants to Non Profit Bodies,Resettlements,Citizens Advice in North& West Kent,,,,,2100327259,,To support the integration of HK British Nationals,TN9 1BG,"37,099.30",Yes
"Housing, Communities & Local Government",DLUHC,10/07/2023,Current Grants to Non Profit Bodies,Resettlements,Dacorum Council For Voluntary Servi,Yes,Small,,,2100327315,,To support the integration of HK British Nationals,HP1 3AF,"19,880.00",Yes
"Housing, Communities & Local Government",DLUHC,10/07/2023,Current Grants to Non Profit Bodies,Resettlements,East Midlands Christian Fellowships,,,,,2100327312,,To support the integration of HK British Nationals,DE24 8HY,"22,840.00",Yes
"Housing, Communities & Local Government",DLUHC,10/07/2023,Current Grants to Non Profit Bodies,Resettlements,GOOD NEIGHBOUR CHURCH ENGLAND,Yes,Micro,,,2100327256,,To support the integration of HK British Nationals,B1 2HF,"150,000.00",Yes
"Housing, Communities & Local Government",DLUHC,10/07/2023,Current Grants to Non Profit Bodies,Resettlements,GROUNDWORK LONDON,,Large,,,2100327311,,To support the integration of HK British Nationals,SE1 7QZ,"40,000.00",Yes
"Housing, Communities & Local Government",DLUHC,10/07/2023,Current Grants to Non Profit Bodies,Resettlements,GROUNDWORK WEST MIDLANDS,,,,,2100327322,,To support the integration of HK British Nationals,DY4 8QL,"36,068.00",Yes
"Housing, Communities & Local Government",DLUHC,10/07/2023,Current Grants to Non Profit Bodies,Resettlements,Growth Company,,Large,,46481300,2100327313,,To support the integration of HK British Nationals,M1 5JW,"40,000.00",Yes
"Housing, Communities & Local Government",DLUHC,10/07/2023,Current Grants to Non Profit Bodies,Resettlements,Guildford Hongkongers,,,,,2100327320,,To support the integration of HK British Nationals,GU1 9GU,"40,000.00",Yes
"Housing, Communities & Local Government",DLUHC,10/07/2023,Current Grants to Non Profit Bodies,Resettlements,Hong Kong Cultural Community C.I.C.,Yes,Micro,,,2100327258,,To support the integration of HK British Nationals,M1 2JQ,"26,120.00",Yes
"Housing, Communities & Local Government",DLUHC,10/07/2023,Current Grants to Non Profit Bodies,Resettlements,Hong Kong Nursing Association Uk (H,Yes,Micro,,,2100327261,,To support the integration of HK British Nationals,ME16 9JQ,"40,000.00",Yes
"Housing, Communities & Local Government",DLUHC,10/07/2023,Current Grants to Non Profit Bodies,Resettlements,INVESTING IN PEOPLE & CULTURE,Yes,Micro,,,2100327316,,To support the integration of HK British Nationals,NE4 7RW,"39,854.00",Yes
"Housing, Communities & Local Government",DLUHC,10/07/2023,Current Grants to Non Profit Bodies,Resettlements,Islington Chinese Association,Yes,Micro,,,2100327318,,To support the integration of HK British Nationals,N19 4NG,"38,900.00",Yes
"Housing, Communities & Local Government",DLUHC,10/07/2023,Current Grants to Non Profit Bodies,Resettlements,Options Wellbeing Trust,Yes,Micro,,,2100327262,,To support the integration of HK British Nationals,SO15 3FH,"33,247.00",Yes
"Housing, Communities & Local Government",DLUHC,10/07/2023,Current Grants to Non Profit Bodies,Resettlements,Options Wellbeing Trust,Yes,Micro,,,2100327263,,To support the integration of HK British Nationals,SO15 3FH,"32,747.00",Yes
"Housing, Communities & Local Government",DLUHC,10/07/2023,Current Grants to Non Profit Bodies,Resettlements,Oxfordshire Hongkongers CIC,,Micro,,,2100327321,,To support the integration of HK British Nationals,W1W 7LT,"40,000.00",Yes
"Housing, Communities & Local Government",DLUHC,10/07/2023,Current Grants to Non Profit Bodies,Resettlements,REFUGEE & MIGRANT CENTRE LTD,Yes,Medium,,,2100327323,,To support the integration of HK British Nationals,WV1 4NB,"39,644.00",Yes
"Housing, Communities & Local Government",DLUHC,10/07/2023,Current Grants to Non Profit Bodies,Resettlements,Renaisi Limited,Yes,Medium,,235340358,2100327314,,To support the integration of HK British Nationals,E8 1HE,"39,996.00",Yes
"Housing, Communities & Local Government",DLUHC,10/07/2023,Current Grants to Non Profit Bodies,Resettlements,St Sidwell's Centre,Yes,,,,2100327260,,To support the integration of HK British Nationals,EX4 6NN,"27,250.00",Yes
"Housing, Communities & Local Government",DLUHC,10/07/2023,Current Grants to Non Profit Bodies,Resettlements,VAUXHALL COMM LAW&INFORMATION CENTR,Yes,Small,,,2100327319,,To support the integration of HK British Nationals,L5 8UX,"30,000.00",Yes
"Housing, Communities & Local Government",DLUHC,10/07/2023,ERDF Work in Progress � Capital,Regeneration,BIRMINGHAM CITY COUNCIL,,,,,7700014039,,ERDF grant payment,B2 2AJ,"205,048.84",Yes
"Housing, Communities & Local Government",DLUHC,10/07/2023,ERDF Work in Progress � Capital,Regeneration,"DEPT FOR BUS,ENERGY&IND STRATEGY",,Large,,,7700014043,,ERDF grant payment,SW1H 0ET,"30,000,000.00",Yes
"Housing, Communities & Local Government",DLUHC,10/07/2023,ERDF Work in Progress � Capital,Regeneration,LEEDS CITY COUNCIL,,Large,,,7700014035,,ERDF grant payment,LS2 8HD,0.01,Yes
"Housing, Communities & Local Government",DLUHC,10/07/2023,ERDF Work in Progress � Capital,Regeneration,NEWCASTLE CITY COUNCIL,,,,,7700014041,,ERDF grant payment,NE1 8QH,"12,472.77",Yes
"Housing, Communities & Local Government",DLUHC,10/07/2023,ERDF Work in Progress � Resource,Regeneration,BIRMINGHAM CITY COUNCIL,,,,,7700014039,,ERDF grant payment,B2 2AJ,"10,411.27",Yes
"Housing, Communities & Local Government",DLUHC,10/07/2023,ERDF Work in Progress � Resource,Regeneration,BIRMINGHAM CITY UNIVERSITY,,Large,,,7700014036,,ERDF grant payment,B5 5JU,"51,277.29",Yes
"Housing, Communities & Local Government",DLUHC,10/07/2023,ERDF Work in Progress � Resource,Regeneration,DURHAM UNIVERSITY,,Large,,,7700014037,,ERDF grant payment,DH1 3LE,"82,265.59",Yes
"Housing, Communities & Local Government",DLUHC,10/07/2023,ERDF Work in Progress � Resource,Regeneration,DURHAM UNIVERSITY,,Large,,,7700014038,,ERDF grant payment,DH1 3LE,"92,209.69",Yes
"Housing, Communities & Local Government",DLUHC,10/07/2023,ERDF Work in Progress � Resource,Regeneration,DURHAM UNIVERSITY,,Large,,,7700014042,,ERDF grant payment,DH1 3LE,"3,834.49",Yes
"Housing, Communities & Local Government",DLUHC,10/07/2023,ERDF Work in Progress � Resource,Regeneration,LEEDS CITY COUNCIL,,Large,,,7700014035,,ERDF grant payment,LS2 8HD,"4,411.76",Yes
"Housing, Communities & Local Government",DLUHC,10/07/2023,ERDF Work in Progress � Resource,Regeneration,NEWCASTLE CITY COUNCIL,,,,,7700014041,,ERDF grant payment,NE1 8QH,"102,897.65",Yes
"Housing, Communities & Local Government",DLUHC,10/07/2023,EXP � PURCHASE OF GOODS /SERVICES R & D,Regeneration,Ipsos (market research) Ltd,,Large,,227257185,5106299035,,The e-requisition is for : Evaluation of,E1W 1YW,"205,465.00",
"Housing, Communities & Local Government",DLUHC,10/07/2023,EXP � PURCHASE OF GOODS /SERVICES R & D,"Union, Elections and Places",MADE TECH LTD,,Medium,,,5106299058,,EIP October Delivery (Beta),EC2A 4NE,"11,265.00",
"Housing, Communities & Local Government",DLUHC,10/07/2023,"Furniture, Fittings and carpets",CFO and Corporate,POSTURITE LTD,,Medium,,216832621,5106299055,,Ergonomic Chair,BN26 6SZ,836.12,
"Housing, Communities & Local Government",DLUHC,10/07/2023,Heads of Profession Training,CFO and Corporate,ALLNET LAW LIMITED,,Micro,,,5106299056,,CIPP course,EC1V 2NX,583.33,
"Housing, Communities & Local Government",DLUHC,10/07/2023,Heads of Profession Training,CFO and Corporate,ALLNET LAW LIMITED,,Micro,,,5106299056,,IAPP membership and CIPP/E exam,EC1V 2NX,650,
"Housing, Communities & Local Government",DLUHC,10/07/2023,IT - Service Contracts,CFO and Corporate,ARCUS CLOUD SERVICES LTD,,Medium,,,5106299053,,Hosting and support for Datamart 2023,NG24 2AG,"117,328.42",
"Housing, Communities & Local Government",DLUHC,10/07/2023,IT - Service Contracts,CFO and Corporate,ARCUS CLOUD SERVICES LTD,,Medium,,,5106299057,,Hosting and support for Datamart 2023,NG24 2AG,"5,305.13",
"Housing, Communities & Local Government",DLUHC,10/07/2023,IT - Service Contracts,CFO and Corporate,ARCUS CLOUD SERVICES LTD,,Medium,,,5106299059,,Digital IT Services,NG24 2AG,"10,006.66",
"Housing, Communities & Local Government",DLUHC,10/07/2023,IT - Service Contracts,CFO and Corporate,ARCUS CLOUD SERVICES LTD,,Medium,,,5106299061,,Digital IT Services,NG24 2AG,"12,075.00",
"Housing, Communities & Local Government",DLUHC,10/07/2023,IT - Service Contracts,CFO and Corporate,Zaizi Limited,,Micro,,,5106299051,,Front Door Automation Team,W6 7JP,"69,389.41",
"Housing, Communities & Local Government",DLUHC,10/07/2023,IT - Service Contracts,Safer and Greener Buildings,BUILDING RESEARCH ESTABLISHMENT,,Large,,896495033,5106298799,,Issue spreadsheet report,WD25 9XX,"6,300.00",
"Housing, Communities & Local Government",DLUHC,10/07/2023,IT SUPPORT,"Union, Elections and Places",DEPARTMENT FOR WORK & PENSIONS,,Public Bodies,,218124765,5106299060,,Verification of applications for RTV,FY5 3TA,"7,686.00",
"Housing, Communities & Local Government",DLUHC,10/07/2023,Professional services,Regeneration,KANTAR PUBLIC UK LTD,Yes,Large,,228340905,5106299032,,Research Consultancy,SW1P 3JA,"35,654.52",
"Housing, Communities & Local Government",DLUHC,10/07/2023,Subscriptions,CFO and Corporate,Building Cost Information Service L,,Medium,,,5106299054,,Building & Infrastructure Cost Data,EC2V 8AU,"1,996.80",
"Housing, Communities & Local Government",DLUHC,10/07/2023,Training,CFO and Corporate,KPMG LLP (CSL),,Large,,,5106299041,,Civil Service Training,E14 5GL,"11,421.21",
"Housing, Communities & Local Government",DLUHC,10/07/2023,Training,CFO and Corporate,KPMG LLP (CSL),,Large,,,5106299042,,Civil Service Training,E14 5GL,"11,421.21",
"Housing, Communities & Local Government",DLUHC,10/07/2023,Training,Safer and Greener Buildings,WALKER MORRIS LLP,,Large,,211317885,5106299027,,Civil Service Training,LS1 4DL,"1,500.00",
"Housing, Communities & Local Government",DLUHC,10/07/2023,Travel and Subsistence Account,Safer and Greener Buildings,ADDISON LEE PLC,,,,,5106299065,,Official Travel & Subsistence,NW1 3ER,334.6,
"Housing, Communities & Local Government",DLUHC,10/07/2023,Vehicle hire,CFO and Corporate,EDENRED (UK GROUP) LTD,,Large,,210186342,5106299052,,Cycle to Work 23/24,SW1V 2RS,"1,675.00",
"Housing, Communities & Local Government",DLUHC,10/07/2023,Vehicle hire,Levelling Up,GOVERNMENT CAR & DESPATCH AGENCY,,Public Bodies,,,5106299048,Vehicle Hire and Lease,Min Car (LT118) Con chg (2021-24),SW8 5AX,480,
"Housing, Communities & Local Government",DLUHC,10/07/2023,Vehicle hire,Levelling Up,GOVERNMENT CAR & DESPATCH AGENCY,,Public Bodies,,,5106299048,,Min Car (LT118) Add hours (2021-24),SW8 5AX,"2,828.58",
"Housing, Communities & Local Government",DLUHC,10/07/2023,Vehicle hire,Levelling Up,GOVERNMENT CAR & DESPATCH AGENCY,,Public Bodies,,,5106299048,,Min Car (LT118) CORE (2021-24),SW8 5AX,"10,323.78",
"Housing, Communities & Local Government",DLUHC,11/07/2023,Advertising,CFO and Corporate,MANNING GOTTLIEB OMD,,,,,5106299106,,Ukraine media campaign 2022 - cost of OM,SE1 0SW,597.33,
"Housing, Communities & Local Government",DLUHC,11/07/2023,Capital Grants to Private Sect Non Profit,Levelling Up,Limpley Stoke Community Benefit Soc,,Micro,,,2100327379,,Revenue funding for COF project COF 22 03,BA2 7FR,"250,000.00",Yes
"Housing, Communities & Local Government",DLUHC,11/07/2023,Current (non AEF) Grants to Local Authorities,Levelling Up,SQW LTD,,Medium,,289652133,5106298838,,"Evaluation of City,Growth&Devolution deals",CB4 9ZR,"68,887.00",Yes
"Housing, Communities & Local Government",DLUHC,11/07/2023,Current Grants to Non Profit Bodies,Levelling Up,Kilcoo Regeneration Group Limited,,Micro,,,2100327378,,Revenue funding for COF project COF 22 32,BT34 5JU,"30,000.00",Yes
"Housing, Communities & Local Government",DLUHC,11/07/2023,Current Grants to Non Profit Bodies,Levelling Up,Limpley Stoke Community Benefit Soc,,Micro,,,2100327380,,Revenue funding for COF project COF 22 03,BA2 7FR,"27,077.52",Yes
"Housing, Communities & Local Government",DLUHC,11/07/2023,Electronic Data Storage,CFO and Corporate,RESTORE PLC,,Large,,,5106299104,,Digital Storage 2022 - 2027,RH1 3DY,"4,717.00",
"Housing, Communities & Local Government",DLUHC,11/07/2023,ERDF Work in Progress � Capital,Regeneration,Environment Agency,,Large,,,7700014047,,ERDF grant payment,BS1 5AH,"104,365.80",Yes
"Housing, Communities & Local Government",DLUHC,11/07/2023,ERDF Work in Progress � Resource,Regeneration,BIORENEWABLES DEVELOPMENT CENTRE LT,,,,,7700014045,,ERDF grant payment,YO19 5NY,"48,462.04",Yes
"Housing, Communities & Local Government",DLUHC,11/07/2023,ERDF Work in Progress � Resource,Regeneration,CHESTER UNIVERSITY,,Large,,,7700014046,,ERDF grant payment,CH1 4BJ,"50,565.16",Yes
"Housing, Communities & Local Government",DLUHC,11/07/2023,ERDF Work in Progress � Resource,Regeneration,MANCHESTER METROPOLITAN UNIVERSITY,,,,,7700014044,,ERDF grant payment,M15 6BH,"203,706.60",Yes
"Housing, Communities & Local Government",DLUHC,11/07/2023,Grant in Aid to NDPBs (non budget),Local Govnmnt Resilience and Communities,VALUATION TRIBUNAL SERVICE,,,,211218366,2100327377,,GIA to VTS,E1 8EU,"415,000.00",Yes
"Housing, Communities & Local Government",DLUHC,11/07/2023,IT - Service Contracts,CFO and Corporate,AirWalk Consulting Reply Ltd,,,,,5106299095,,Core Tech Support,EH2 3ES,"19,296.00",
"Housing, Communities & Local Government",DLUHC,11/07/2023,IT - Service Contracts,CFO and Corporate,DAISY CORPORATE SERVICES TRADING LT,,Large,,,5106299099,,Telephony 3 year Service costs,BB9 5SR,"39,945.32",
"Housing, Communities & Local Government",DLUHC,11/07/2023,IT Consultancy,CFO and Corporate,AirWalk Consulting Reply Ltd,,,,,5106299100,,Cyber security resource,EH2 3ES,"98,088.00",
"Housing, Communities & Local Government",DLUHC,11/07/2023,IT SUPPORT,Resettlements,Zaizi Limited,,Micro,,,5106299105,,Gov.uk Form Update & Supporting Req s,W6 7JP,"40,113.88",
"Housing, Communities & Local Government",DLUHC,11/07/2023,Physical Storage,CFO and Corporate,RESTORE PLC,,Large,,,5106299094,,Physical Storage 2022/23,RH1 3DY,"1,608.18",
"Housing, Communities & Local Government",DLUHC,11/07/2023,Physical Storage,CFO and Corporate,RESTORE PLC,,Large,,,5106299096,,Physical Storage 2022/23,RH1 3DY,"4,143.72",
"Housing, Communities & Local Government",DLUHC,11/07/2023,Physical Storage,CFO and Corporate,RESTORE PLC,,Large,,,5106299103,,Physical Storage 2022/23,RH1 3DY,903.26,
"Housing, Communities & Local Government",DLUHC,11/07/2023,Physical Storage,CFO and Corporate,RESTORE PLC,,Large,,,5106299104,,Physical Storage 2022/23,RH1 3DY,"20,349.44",
"Housing, Communities & Local Government",DLUHC,11/07/2023,Professional services,Regeneration,DAVID JARVIS ASSOCIATES LTD,,Small,,,5106299091,,Secretariat Support - East of England Aggregates Working Party ,SN1 5DT,"1,764.00",
"Housing, Communities & Local Government",DLUHC,11/07/2023,Professional services,Safer and Greener Buildings,KROLL ASSOCIATES UK LTD,,Large,,,5106299083,,Analytical service,SE1 9SG,"30,609.40",
"Housing, Communities & Local Government",DLUHC,11/07/2023,Publishing,Safer and Greener Buildings,Silent Art,,Micro,,,5106299089,,GTMC event 10th July.,W11 2DL,500,
"Housing, Communities & Local Government",DLUHC,11/07/2023,Services provided by other Govt Orgs,Regeneration,VALUATION OFFICE AGENCY,,Public Bodies,,215253886,2100327182,Financial,Valuation Office Agency Fair Rent Officer Service fees,W1D 5BU,"497,997.50",Yes
"Housing, Communities & Local Government",DLUHC,11/07/2023,Steady State Service Provision,Safer and Greener Buildings,Heads Resourcing Group Ltd,,Small,,218026480,5106299098,,Procurement Lead,SO50 9PD,"3,398.40",
"Housing, Communities & Local Government",DLUHC,11/07/2023,Training,CFO and Corporate,KPMG LLP (CSL),,Large,,,5106299092,,Civil Service Training,E14 5GL,"6,325.00",
"Housing, Communities & Local Government",DLUHC,12/07/2023,Cap Grants to Local Authorities (DEL),Regeneration,TORBAY BC,,,,,2300003573,,Local Authority Housing Fund,TQ1 3DR,"-396,615.00",Yes
"Housing, Communities & Local Government",DLUHC,12/07/2023,Cap Grants to Private Sector Companies,Safer and Greener Buildings,Cladding Consulting Limited,,Micro,,,3700179071,,Surplus on account payable to the Exchequer,WC2B 5NE,"-321,281.00",Yes
"Housing, Communities & Local Government",DLUHC,12/07/2023,Cap Grants to Private Sector Companies,Safer and Greener Buildings,Rendall and Rittner,,,,,3700222694,,Grant payable by the Exchequer,SW8 2LE,"160,161.00",Yes
"Housing, Communities & Local Government",DLUHC,12/07/2023,Capital Grants to Private Sect Non Profit,Levelling Up,ST DAVID'S BRASS BAND SCIO,,,,,2100327410,,COF21 032 Capital Funds Vogrie Hall,EH22 3LU,"117,251.00",Yes
"Housing, Communities & Local Government",DLUHC,12/07/2023,Current Grants to Non Profit Bodies,Levelling Up,ST DAVID'S BRASS BAND SCIO,,,,,2100327411,,COF21 032 Revenue Funds Vogrie Hall,EH22 3LU,"10,000.00",Yes
"Housing, Communities & Local Government",DLUHC,12/07/2023,Current Grants to Non Profit Bodies,Resettlements,"CHESHIRE,HALTON&WARRINGTON RACE&EQU",,Micro,,238928084,2100327400,,To support the integration of HK British Nationals,CH4 7HP,"39,971.00",Yes
"Housing, Communities & Local Government",DLUHC,12/07/2023,Current Grants to Non Profit Bodies,Resettlements,Citizens Advice in North& West Kent,,,,,2100327402,,To support the integration of HK British Nationals,TN9 1BG,"37,099.30",Yes
"Housing, Communities & Local Government",DLUHC,12/07/2023,Current Grants to Non Profit Bodies,Resettlements,GOOD NEIGHBOUR CHURCH ENGLAND,Yes,Micro,,,2100327399,,To support the integration of HK British Nationals,B1 2HF,"150,000.00",Yes
"Housing, Communities & Local Government",DLUHC,12/07/2023,Current Grants to Non Profit Bodies,Resettlements,Harbour Sports Club Cic,Yes,Micro,,,2100327405,,To support the integration of HK British Nationals,GL20 5NX,"31,000.00",Yes
"Housing, Communities & Local Government",DLUHC,12/07/2023,Current Grants to Non Profit Bodies,Resettlements,Harbour Sports Club Cic,Yes,Micro,,,2100327406,,To support the integration of HK British Nationals,GL20 5NX,"40,000.00",Yes
"Housing, Communities & Local Government",DLUHC,12/07/2023,Current Grants to Non Profit Bodies,Resettlements,Hong Kong Cultural Community C.I.C.,Yes,Micro,,,2100327401,,To support the integration of HK British Nationals,M1 2JQ,"26,120.00",Yes
"Housing, Communities & Local Government",DLUHC,12/07/2023,Current Grants to Non Profit Bodies,Resettlements,Hong Kong Nursing Association Uk (H,Yes,Micro,,,2100327407,,To support the integration of HK British Nationals,ME16 9JQ,"40,000.00",Yes
"Housing, Communities & Local Government",DLUHC,12/07/2023,Current Grants to Non Profit Bodies,Resettlements,Options Wellbeing Trust,Yes,Micro,,,2100327408,,To support the integration of HK British Nationals,SO15 3FH,"33,247.00",Yes
"Housing, Communities & Local Government",DLUHC,12/07/2023,Current Grants to Non Profit Bodies,Resettlements,Options Wellbeing Trust,Yes,Micro,,,2100327409,,To support the integration of HK British Nationals,SO15 3FH,"32,747.00",Yes
"Housing, Communities & Local Government",DLUHC,12/07/2023,Current Grants to Non Profit Bodies,Resettlements,POSITIVE YOUTH FOUNDATION,,Small,,,2100327404,,To support the integration of HK British Nationals,CV1 2TT,"38,537.00",Yes
"Housing, Communities & Local Government",DLUHC,12/07/2023,Current Grants to Non Profit Bodies,Resettlements,St Sidwell's Centre,Yes,,,,2100327403,,To support the integration of HK British Nationals,EX4 6NN,"27,250.00",Yes
"Housing, Communities & Local Government",DLUHC,12/07/2023,Elections - Head E1 Returning Officers Services,"Union, Elections and Places",Blackley and Broughton - North West,,,,,2100326887,,CAB80073 GE19 Final Settlement,,"3,445.00",
"Housing, Communities & Local Government",DLUHC,12/07/2023,Elections - Head E1 Returning Officers Services,"Union, Elections and Places",Chesterfield - East Midlands,,,,,2100326884,,Chesterfield PCC21 Final Settlement,,"4,098.00",
"Housing, Communities & Local Government",DLUHC,12/07/2023,Elections - Head E1 Returning Officers Services,"Union, Elections and Places",Hitchin and Harpenden - Eastern,,,,,2100326889,,CAB80387 GE19 Final Settlement,,"3,651.00",
"Housing, Communities & Local Government",DLUHC,12/07/2023,Elections - Head E1 Returning Officers Services,"Union, Elections and Places",Manchester Central - North West,,,,,2100326890,,CAB80479 GE19 Final Settlement,,"4,360.00",
"Housing, Communities & Local Government",DLUHC,12/07/2023,Elections - Head E1 Returning Officers Services,"Union, Elections and Places","Manchester, Gorton - North West",,,,,2100326891,,CAB80480 GE19 Final Settlement,,"3,624.00",
"Housing, Communities & Local Government",DLUHC,12/07/2023,Elections - Head E1 Returning Officers Services,"Union, Elections and Places","Manchester, Withington - North West",,,,,2100326892,,CAB80481 GE19 Final Settlement,,"3,590.00",
"Housing, Communities & Local Government",DLUHC,12/07/2023,Elections - Head E1 Returning Officers Services,"Union, Elections and Places",Pendle - North West,,,,,2100326883,,Pendle PCC21 Final Settlement,,"3,307.00",
"Housing, Communities & Local Government",DLUHC,12/07/2023,Elections - Head E1 Returning Officers Services,"Union, Elections and Places",St Albans - Eastern,,,,,2100326893,,CAB80750 GE19 Final Settlement,,"3,501.00",
"Housing, Communities & Local Government",DLUHC,12/07/2023,Elections - Head E1 Returning Officers Services,"Union, Elections and Places",Wythenshawe & Sale East - NW,,,,,2100326888,,CAB80915 GE19 Final Settlement,,"3,672.00",
"Housing, Communities & Local Government",DLUHC,12/07/2023,Elections - Head E2 Superannuation Costs - ROs,"Union, Elections and Places",Hitchin and Harpenden - Eastern,,,,,2100326889,,CAB80387 GE19 Final Settlement,,"1,007.68",
"Housing, Communities & Local Government",DLUHC,12/07/2023,Elections - Head E2 Superannuation Costs - ROs,"Union, Elections and Places",St Albans - Eastern,,,,,2100326893,,CAB80750 GE19 Final Settlement,,966.28,
"Housing, Communities & Local Government",DLUHC,12/07/2023,Elections - Head F1 Presiding Officers Pay,"Union, Elections and Places",Blackley and Broughton - North West,,,,,2100326887,,CAB80073 GE19 Final Settlement,,"11,136.00",
"Housing, Communities & Local Government",DLUHC,12/07/2023,Elections - Head F1 Presiding Officers Pay,"Union, Elections and Places",Chesterfield - East Midlands,,,,,2100326884,,Chesterfield PCC21 Final Settlement,,"7,737.60",
"Housing, Communities & Local Government",DLUHC,12/07/2023,Elections - Head F1 Presiding Officers Pay,"Union, Elections and Places",Hitchin and Harpenden - Eastern,,,,,2100326889,,CAB80387 GE19 Final Settlement,,"13,500.00",
"Housing, Communities & Local Government",DLUHC,12/07/2023,Elections - Head F1 Presiding Officers Pay,"Union, Elections and Places",Manchester Central - North West,,,,,2100326890,,CAB80479 GE19 Final Settlement,,"12,000.00",
"Housing, Communities & Local Government",DLUHC,12/07/2023,Elections - Head F1 Presiding Officers Pay,"Union, Elections and Places","Manchester, Gorton - North West",,,,,2100326891,,CAB80480 GE19 Final Settlement,,"9,800.00",
"Housing, Communities & Local Government",DLUHC,12/07/2023,Elections - Head F1 Presiding Officers Pay,"Union, Elections and Places","Manchester, Withington - North West",,,,,2100326892,,CAB80481 GE19 Final Settlement,,"10,400.00",
"Housing, Communities & Local Government",DLUHC,12/07/2023,Elections - Head F1 Presiding Officers Pay,"Union, Elections and Places",Pendle - North West,,,,,2100326883,,Pendle PCC21 Final Settlement,,"4,860.00",
"Housing, Communities & Local Government",DLUHC,12/07/2023,Elections - Head F1 Presiding Officers Pay,"Union, Elections and Places",St Albans - Eastern,,,,,2100326893,,CAB80750 GE19 Final Settlement,,"12,240.00",
"Housing, Communities & Local Government",DLUHC,12/07/2023,Elections - Head F1 Presiding Officers Pay,"Union, Elections and Places",Wythenshawe & Sale East - NW,,,,,2100326888,,CAB80915 GE19 Final Settlement,,"9,320.00",
"Housing, Communities & Local Government",DLUHC,12/07/2023,Elections - Head F10 Equipment Costs,"Union, Elections and Places",Blackley and Broughton - North West,,,,,2100326887,,CAB80073 GE19 Final Settlement,,"3,430.18",
"Housing, Communities & Local Government",DLUHC,12/07/2023,Elections - Head F10 Equipment Costs,"Union, Elections and Places",Chesterfield - East Midlands,,,,,2100326884,,Chesterfield PCC21 Final Settlement,,"13,953.70",
"Housing, Communities & Local Government",DLUHC,12/07/2023,Elections - Head F10 Equipment Costs,"Union, Elections and Places",Hitchin and Harpenden - Eastern,,,,,2100326889,,CAB80387 GE19 Final Settlement,,"2,673.23",
"Housing, Communities & Local Government",DLUHC,12/07/2023,Elections - Head F10 Equipment Costs,"Union, Elections and Places",Manchester Central - North West,,,,,2100326890,,CAB80479 GE19 Final Settlement,,"3,434.71",
"Housing, Communities & Local Government",DLUHC,12/07/2023,Elections - Head F10 Equipment Costs,"Union, Elections and Places","Manchester, Gorton - North West",,,,,2100326891,,CAB80480 GE19 Final Settlement,,"3,416.74",
"Housing, Communities & Local Government",DLUHC,12/07/2023,Elections - Head F10 Equipment Costs,"Union, Elections and Places","Manchester, Withington - North West",,,,,2100326892,,CAB80481 GE19 Final Settlement,,"3,458.74",
"Housing, Communities & Local Government",DLUHC,12/07/2023,Elections - Head F10 Equipment Costs,"Union, Elections and Places",Pendle - North West,,,,,2100326883,,Pendle PCC21 Final Settlement,,660.35,
"Housing, Communities & Local Government",DLUHC,12/07/2023,Elections - Head F10 Equipment Costs,"Union, Elections and Places",St Albans - Eastern,,,,,2100326893,,CAB80750 GE19 Final Settlement,,"2,860.72",
"Housing, Communities & Local Government",DLUHC,12/07/2023,Elections - Head F10 Equipment Costs,"Union, Elections and Places",Wythenshawe & Sale East - NW,,,,,2100326888,,CAB80915 GE19 Final Settlement,,"3,529.71",
"Housing, Communities & Local Government",DLUHC,12/07/2023,Elections - Head F11 Cost of Printing Ballot Paper,"Union, Elections and Places",Blackley and Broughton - North West,,,,,2100326887,,CAB80073 GE19 Final Settlement,,"5,977.39",
"Housing, Communities & Local Government",DLUHC,12/07/2023,Elections - Head F11 Cost of Printing Ballot Paper,"Union, Elections and Places",Chesterfield - East Midlands,,,,,2100326884,,Chesterfield PCC21 Final Settlement,,"3,255.23",
"Housing, Communities & Local Government",DLUHC,12/07/2023,Elections - Head F11 Cost of Printing Ballot Paper,"Union, Elections and Places",Hitchin and Harpenden - Eastern,,,,,2100326889,,CAB80387 GE19 Final Settlement,,"6,695.77",
"Housing, Communities & Local Government",DLUHC,12/07/2023,Elections - Head F11 Cost of Printing Ballot Paper,"Union, Elections and Places",Manchester Central - North West,,,,,2100326890,,CAB80479 GE19 Final Settlement,,"7,626.62",
"Housing, Communities & Local Government",DLUHC,12/07/2023,Elections - Head F11 Cost of Printing Ballot Paper,"Union, Elections and Places","Manchester, Gorton - North West",,,,,2100326891,,CAB80480 GE19 Final Settlement,,"6,218.13",
"Housing, Communities & Local Government",DLUHC,12/07/2023,Elections - Head F11 Cost of Printing Ballot Paper,"Union, Elections and Places","Manchester, Withington - North West",,,,,2100326892,,CAB80481 GE19 Final Settlement,,"6,226.35",
"Housing, Communities & Local Government",DLUHC,12/07/2023,Elections - Head F11 Cost of Printing Ballot Paper,"Union, Elections and Places",Pendle - North West,,,,,2100326883,,Pendle PCC21 Final Settlement,,"3,302.87",
"Housing, Communities & Local Government",DLUHC,12/07/2023,Elections - Head F11 Cost of Printing Ballot Paper,"Union, Elections and Places",St Albans - Eastern,,,,,2100326893,,CAB80750 GE19 Final Settlement,,"6,467.65",
"Housing, Communities & Local Government",DLUHC,12/07/2023,Elections - Head F11 Cost of Printing Ballot Paper,"Union, Elections and Places",Wythenshawe & Sale East - NW,,,,,2100326888,,CAB80915 GE19 Final Settlement,,"6,209.60",
"Housing, Communities & Local Government",DLUHC,12/07/2023,Elections - Head F2 Poll Clerks Pay,"Union, Elections and Places",Blackley and Broughton - North West,,,,,2100326887,,CAB80073 GE19 Final Settlement,,"16,510.00",
"Housing, Communities & Local Government",DLUHC,12/07/2023,Elections - Head F2 Poll Clerks Pay,"Union, Elections and Places",Chesterfield - East Midlands,,,,,2100326884,,Chesterfield PCC21 Final Settlement,,"8,371.20",
"Housing, Communities & Local Government",DLUHC,12/07/2023,Elections - Head F2 Poll Clerks Pay,"Union, Elections and Places",Hitchin and Harpenden - Eastern,,,,,2100326889,,CAB80387 GE19 Final Settlement,,"12,240.00",
"Housing, Communities & Local Government",DLUHC,12/07/2023,Elections - Head F2 Poll Clerks Pay,"Union, Elections and Places",Manchester Central - North West,,,,,2100326890,,CAB80479 GE19 Final Settlement,,"18,860.00",
"Housing, Communities & Local Government",DLUHC,12/07/2023,Elections - Head F2 Poll Clerks Pay,"Union, Elections and Places","Manchester, Gorton - North West",,,,,2100326891,,CAB80480 GE19 Final Settlement,,"16,560.00",
"Housing, Communities & Local Government",DLUHC,12/07/2023,Elections - Head F2 Poll Clerks Pay,"Union, Elections and Places","Manchester, Withington - North West",,,,,2100326892,,CAB80481 GE19 Final Settlement,,"18,400.00",
"Housing, Communities & Local Government",DLUHC,12/07/2023,Elections - Head F2 Poll Clerks Pay,"Union, Elections and Places",Pendle - North West,,,,,2100326883,,Pendle PCC21 Final Settlement,,"5,956.00",
"Housing, Communities & Local Government",DLUHC,12/07/2023,Elections - Head F2 Poll Clerks Pay,"Union, Elections and Places",St Albans - Eastern,,,,,2100326893,,CAB80750 GE19 Final Settlement,,"12,120.00",
"Housing, Communities & Local Government",DLUHC,12/07/2023,Elections - Head F2 Poll Clerks Pay,"Union, Elections and Places",Wythenshawe & Sale East - NW,,,,,2100326888,,CAB80915 GE19 Final Settlement,,"13,110.00",
"Housing, Communities & Local Government",DLUHC,12/07/2023,Elections - Head F3 Supervising Officers Pay,"Union, Elections and Places",Blackley and Broughton - North West,,,,,2100326887,,CAB80073 GE19 Final Settlement,,"2,500.00",
"Housing, Communities & Local Government",DLUHC,12/07/2023,Elections - Head F3 Supervising Officers Pay,"Union, Elections and Places",Chesterfield - East Midlands,,,,,2100326884,,Chesterfield PCC21 Final Settlement,,"1,557.48",
"Housing, Communities & Local Government",DLUHC,12/07/2023,Elections - Head F3 Supervising Officers Pay,"Union, Elections and Places",Hitchin and Harpenden - Eastern,,,,,2100326889,,CAB80387 GE19 Final Settlement,,"1,680.00",
"Housing, Communities & Local Government",DLUHC,12/07/2023,Elections - Head F3 Supervising Officers Pay,"Union, Elections and Places",Manchester Central - North West,,,,,2100326890,,CAB80479 GE19 Final Settlement,,"2,750.00",
"Housing, Communities & Local Government",DLUHC,12/07/2023,Elections - Head F3 Supervising Officers Pay,"Union, Elections and Places","Manchester, Gorton - North West",,,,,2100326891,,CAB80480 GE19 Final Settlement,,"2,000.00",
"Housing, Communities & Local Government",DLUHC,12/07/2023,Elections - Head F3 Supervising Officers Pay,"Union, Elections and Places","Manchester, Withington - North West",,,,,2100326892,,CAB80481 GE19 Final Settlement,,"2,250.00",
"Housing, Communities & Local Government",DLUHC,12/07/2023,Elections - Head F3 Supervising Officers Pay,"Union, Elections and Places",Pendle - North West,,,,,2100326883,,Pendle PCC21 Final Settlement,,600,
"Housing, Communities & Local Government",DLUHC,12/07/2023,Elections - Head F3 Supervising Officers Pay,"Union, Elections and Places",St Albans - Eastern,,,,,2100326893,,CAB80750 GE19 Final Settlement,,"1,440.00",
"Housing, Communities & Local Government",DLUHC,12/07/2023,Elections - Head F3 Supervising Officers Pay,"Union, Elections and Places",Wythenshawe & Sale East - NW,,,,,2100326888,,CAB80915 GE19 Final Settlement,,"2,285.00",
"Housing, Communities & Local Government",DLUHC,12/07/2023,Elections - Head F5 Travel and Subsistence,"Union, Elections and Places",Blackley and Broughton - North West,,,,,2100326887,,CAB80073 GE19 Final Settlement,,778.8,
"Housing, Communities & Local Government",DLUHC,12/07/2023,Elections - Head F5 Travel and Subsistence,"Union, Elections and Places",Chesterfield - East Midlands,,,,,2100326884,,Chesterfield PCC21 Final Settlement,,847.52,
"Housing, Communities & Local Government",DLUHC,12/07/2023,Elections - Head F5 Travel and Subsistence,"Union, Elections and Places",Hitchin and Harpenden - Eastern,,,,,2100326889,,CAB80387 GE19 Final Settlement,,"1,550.48",
"Housing, Communities & Local Government",DLUHC,12/07/2023,Elections - Head F5 Travel and Subsistence,"Union, Elections and Places",Manchester Central - North West,,,,,2100326890,,CAB80479 GE19 Final Settlement,,732.6,
"Housing, Communities & Local Government",DLUHC,12/07/2023,Elections - Head F5 Travel and Subsistence,"Union, Elections and Places","Manchester, Gorton - North West",,,,,2100326891,,CAB80480 GE19 Final Settlement,,640.6,
"Housing, Communities & Local Government",DLUHC,12/07/2023,Elections - Head F5 Travel and Subsistence,"Union, Elections and Places","Manchester, Withington - North West",,,,,2100326892,,CAB80481 GE19 Final Settlement,,599.2,
"Housing, Communities & Local Government",DLUHC,12/07/2023,Elections - Head F5 Travel and Subsistence,"Union, Elections and Places",St Albans - Eastern,,,,,2100326893,,CAB80750 GE19 Final Settlement,,"1,645.00",
"Housing, Communities & Local Government",DLUHC,12/07/2023,Elections - Head F5 Travel and Subsistence,"Union, Elections and Places",Wythenshawe & Sale East - NW,,,,,2100326888,,CAB80915 GE19 Final Settlement,,684.3,
"Housing, Communities & Local Government",DLUHC,12/07/2023,Elections - Head F6 Training,"Union, Elections and Places",Blackley and Broughton - North West,,,,,2100326887,,CAB80073 GE19 Final Settlement,,"10,110.00",
"Housing, Communities & Local Government",DLUHC,12/07/2023,Elections - Head F6 Training,"Union, Elections and Places",Chesterfield - East Midlands,,,,,2100326884,,Chesterfield PCC21 Final Settlement,,"4,525.00",
"Housing, Communities & Local Government",DLUHC,12/07/2023,Elections - Head F6 Training,"Union, Elections and Places",Hitchin and Harpenden - Eastern,,,,,2100326889,,CAB80387 GE19 Final Settlement,,"6,400.00",
"Housing, Communities & Local Government",DLUHC,12/07/2023,Elections - Head F6 Training,"Union, Elections and Places",Manchester Central - North West,,,,,2100326890,,CAB80479 GE19 Final Settlement,,"10,260.00",
"Housing, Communities & Local Government",DLUHC,12/07/2023,Elections - Head F6 Training,"Union, Elections and Places","Manchester, Gorton - North West",,,,,2100326891,,CAB80480 GE19 Final Settlement,,"9,660.00",
"Housing, Communities & Local Government",DLUHC,12/07/2023,Elections - Head F6 Training,"Union, Elections and Places","Manchester, Withington - North West",,,,,2100326892,,CAB80481 GE19 Final Settlement,,"11,260.00",
"Housing, Communities & Local Government",DLUHC,12/07/2023,Elections - Head F6 Training,"Union, Elections and Places",Pendle - North West,,,,,2100326883,,Pendle PCC21 Final Settlement,,652,
"Housing, Communities & Local Government",DLUHC,12/07/2023,Elections - Head F6 Training,"Union, Elections and Places",St Albans - Eastern,,,,,2100326893,,CAB80750 GE19 Final Settlement,,"6,320.00",
"Housing, Communities & Local Government",DLUHC,12/07/2023,Elections - Head F6 Training,"Union, Elections and Places",Wythenshawe & Sale East - NW,,,,,2100326888,,CAB80915 GE19 Final Settlement,,"8,750.00",
"Housing, Communities & Local Government",DLUHC,12/07/2023,Elections - Head F7 Accom Costs - Perm Polling,"Union, Elections and Places",Blackley and Broughton - North West,,,,,2100326887,,CAB80073 GE19 Final Settlement,,"8,905.00",
"Housing, Communities & Local Government",DLUHC,12/07/2023,Elections - Head F7 Accom Costs - Perm Polling,"Union, Elections and Places",Chesterfield - East Midlands,,,,,2100326884,,Chesterfield PCC21 Final Settlement,,"4,887.48",
"Housing, Communities & Local Government",DLUHC,12/07/2023,Elections - Head F7 Accom Costs - Perm Polling,"Union, Elections and Places",Hitchin and Harpenden - Eastern,,,,,2100326889,,CAB80387 GE19 Final Settlement,,"10,761.51",
"Housing, Communities & Local Government",DLUHC,12/07/2023,Elections - Head F7 Accom Costs - Perm Polling,"Union, Elections and Places",Manchester Central - North West,,,,,2100326890,,CAB80479 GE19 Final Settlement,,"12,189.32",
"Housing, Communities & Local Government",DLUHC,12/07/2023,Elections - Head F7 Accom Costs - Perm Polling,"Union, Elections and Places","Manchester, Gorton - North West",,,,,2100326891,,CAB80480 GE19 Final Settlement,,"7,020.00",
"Housing, Communities & Local Government",DLUHC,12/07/2023,Elections - Head F7 Accom Costs - Perm Polling,"Union, Elections and Places","Manchester, Withington - North West",,,,,2100326892,,CAB80481 GE19 Final Settlement,,"12,117.90",
"Housing, Communities & Local Government",DLUHC,12/07/2023,Elections - Head F7 Accom Costs - Perm Polling,"Union, Elections and Places",Pendle - North West,,,,,2100326883,,Pendle PCC21 Final Settlement,,"2,258.80",
"Housing, Communities & Local Government",DLUHC,12/07/2023,Elections - Head F7 Accom Costs - Perm Polling,"Union, Elections and Places",St Albans - Eastern,,,,,2100326893,,CAB80750 GE19 Final Settlement,,"9,352.76",
"Housing, Communities & Local Government",DLUHC,12/07/2023,Elections - Head F7 Accom Costs - Perm Polling,"Union, Elections and Places",Wythenshawe & Sale East - NW,,,,,2100326888,,CAB80915 GE19 Final Settlement,,"12,437.75",
"Housing, Communities & Local Government",DLUHC,12/07/2023,Elections - Head F8 Accom Costs - Temp Polling,"Union, Elections and Places",Blackley and Broughton - North West,,,,,2100326887,,CAB80073 GE19 Final Settlement,,"31,921.03",
"Housing, Communities & Local Government",DLUHC,12/07/2023,Elections - Head F8 Accom Costs - Temp Polling,"Union, Elections and Places",Chesterfield - East Midlands,,,,,2100326884,,Chesterfield PCC21 Final Settlement,,"2,508.00",
"Housing, Communities & Local Government",DLUHC,12/07/2023,Elections - Head F8 Accom Costs - Temp Polling,"Union, Elections and Places",Hitchin and Harpenden - Eastern,,,,,2100326889,,CAB80387 GE19 Final Settlement,,"2,001.00",
"Housing, Communities & Local Government",DLUHC,12/07/2023,Elections - Head F8 Accom Costs - Temp Polling,"Union, Elections and Places",Manchester Central - North West,,,,,2100326890,,CAB80479 GE19 Final Settlement,,"7,780.46",
"Housing, Communities & Local Government",DLUHC,12/07/2023,Elections - Head F8 Accom Costs - Temp Polling,"Union, Elections and Places","Manchester, Gorton - North West",,,,,2100326891,,CAB80480 GE19 Final Settlement,,-266.4,
"Housing, Communities & Local Government",DLUHC,12/07/2023,Elections - Head F8 Accom Costs - Temp Polling,"Union, Elections and Places","Manchester, Withington - North West",,,,,2100326892,,CAB80481 GE19 Final Settlement,,"7,880.46",
"Housing, Communities & Local Government",DLUHC,12/07/2023,Elections - Head F8 Accom Costs - Temp Polling,"Union, Elections and Places",St Albans - Eastern,,,,,2100326893,,CAB80750 GE19 Final Settlement,,"4,674.83",
"Housing, Communities & Local Government",DLUHC,12/07/2023,Elections - Head F8 Accom Costs - Temp Polling,"Union, Elections and Places",Wythenshawe & Sale East - NW,,,,,2100326888,,CAB80915 GE19 Final Settlement,,"7,780.46",
"Housing, Communities & Local Government",DLUHC,12/07/2023,Elections - Head F9 Preparation & Transport Costs,"Union, Elections and Places",Blackley and Broughton - North West,,,,,2100326887,,CAB80073 GE19 Final Settlement,,"5,172.99",
"Housing, Communities & Local Government",DLUHC,12/07/2023,Elections - Head F9 Preparation & Transport Costs,"Union, Elections and Places",Chesterfield - East Midlands,,,,,2100326884,,Chesterfield PCC21 Final Settlement,,690,
"Housing, Communities & Local Government",DLUHC,12/07/2023,Elections - Head F9 Preparation & Transport Costs,"Union, Elections and Places",Hitchin and Harpenden - Eastern,,,,,2100326889,,CAB80387 GE19 Final Settlement,,"6,556.69",
"Housing, Communities & Local Government",DLUHC,12/07/2023,Elections - Head F9 Preparation & Transport Costs,"Union, Elections and Places",Manchester Central - North West,,,,,2100326890,,CAB80479 GE19 Final Settlement,,"5,332.99",
"Housing, Communities & Local Government",DLUHC,12/07/2023,Elections - Head F9 Preparation & Transport Costs,"Union, Elections and Places","Manchester, Gorton - North West",,,,,2100326891,,CAB80480 GE19 Final Settlement,,"5,172.99",
"Housing, Communities & Local Government",DLUHC,12/07/2023,Elections - Head F9 Preparation & Transport Costs,"Union, Elections and Places","Manchester, Withington - North West",,,,,2100326892,,CAB80481 GE19 Final Settlement,,"5,172.99",
"Housing, Communities & Local Government",DLUHC,12/07/2023,Elections - Head F9 Preparation & Transport Costs,"Union, Elections and Places",Pendle - North West,,,,,2100326883,,Pendle PCC21 Final Settlement,,"1,784.00",
"Housing, Communities & Local Government",DLUHC,12/07/2023,Elections - Head F9 Preparation & Transport Costs,"Union, Elections and Places",St Albans - Eastern,,,,,2100326893,,CAB80750 GE19 Final Settlement,,"4,031.89",
"Housing, Communities & Local Government",DLUHC,12/07/2023,Elections - Head F9 Preparation & Transport Costs,"Union, Elections and Places",Wythenshawe & Sale East - NW,,,,,2100326888,,CAB80915 GE19 Final Settlement,,"5,172.99",
"Housing, Communities & Local Government",DLUHC,12/07/2023,Elections - Head G1 Staff Costs - Prep & Issue,"Union, Elections and Places",Blackley and Broughton - North West,,,,,2100326887,,CAB80073 GE19 Final Settlement,,"1,255.45",
"Housing, Communities & Local Government",DLUHC,12/07/2023,Elections - Head G1 Staff Costs - Prep & Issue,"Union, Elections and Places",Chesterfield - East Midlands,,,,,2100326884,,Chesterfield PCC21 Final Settlement,,"1,640.75",
"Housing, Communities & Local Government",DLUHC,12/07/2023,Elections - Head G1 Staff Costs - Prep & Issue,"Union, Elections and Places",Hitchin and Harpenden - Eastern,,,,,2100326889,,CAB80387 GE19 Final Settlement,,440.95,
"Housing, Communities & Local Government",DLUHC,12/07/2023,Elections - Head G1 Staff Costs - Prep & Issue,"Union, Elections and Places",Manchester Central - North West,,,,,2100326890,,CAB80479 GE19 Final Settlement,,"1,255.45",
"Housing, Communities & Local Government",DLUHC,12/07/2023,Elections - Head G1 Staff Costs - Prep & Issue,"Union, Elections and Places","Manchester, Gorton - North West",,,,,2100326891,,CAB80480 GE19 Final Settlement,,"1,255.45",
"Housing, Communities & Local Government",DLUHC,12/07/2023,Elections - Head G1 Staff Costs - Prep & Issue,"Union, Elections and Places","Manchester, Withington - North West",,,,,2100326892,,CAB80481 GE19 Final Settlement,,"1,255.45",
"Housing, Communities & Local Government",DLUHC,12/07/2023,Elections - Head G1 Staff Costs - Prep & Issue,"Union, Elections and Places",Pendle - North West,,,,,2100326883,,Pendle PCC21 Final Settlement,,40,
"Housing, Communities & Local Government",DLUHC,12/07/2023,Elections - Head G1 Staff Costs - Prep & Issue,"Union, Elections and Places",St Albans - Eastern,,,,,2100326893,,CAB80750 GE19 Final Settlement,,440.95,
"Housing, Communities & Local Government",DLUHC,12/07/2023,Elections - Head G1 Staff Costs - Prep & Issue,"Union, Elections and Places",Wythenshawe & Sale East - NW,,,,,2100326888,,CAB80915 GE19 Final Settlement,,"1,255.45",
"Housing, Communities & Local Government",DLUHC,12/07/2023,Elections - Head G2 Staff Costs - Opening and,"Union, Elections and Places",Blackley and Broughton - North West,,,,,2100326887,,CAB80073 GE19 Final Settlement,,"4,443.66",
"Housing, Communities & Local Government",DLUHC,12/07/2023,Elections - Head G2 Staff Costs - Opening and,"Union, Elections and Places",Hitchin and Harpenden - Eastern,,,,,2100326889,,CAB80387 GE19 Final Settlement,,"6,534.04",
"Housing, Communities & Local Government",DLUHC,12/07/2023,Elections - Head G2 Staff Costs - Opening and,"Union, Elections and Places",Manchester Central - North West,,,,,2100326890,,CAB80479 GE19 Final Settlement,,"4,443.66",
"Housing, Communities & Local Government",DLUHC,12/07/2023,Elections - Head G2 Staff Costs - Opening and,"Union, Elections and Places","Manchester, Gorton - North West",,,,,2100326891,,CAB80480 GE19 Final Settlement,,"4,443.66",
"Housing, Communities & Local Government",DLUHC,12/07/2023,Elections - Head G2 Staff Costs - Opening and,"Union, Elections and Places","Manchester, Withington - North West",,,,,2100326892,,CAB80481 GE19 Final Settlement,,"4,443.66",
"Housing, Communities & Local Government",DLUHC,12/07/2023,Elections - Head G2 Staff Costs - Opening and,"Union, Elections and Places",Pendle - North West,,,,,2100326883,,Pendle PCC21 Final Settlement,,"2,577.50",
"Housing, Communities & Local Government",DLUHC,12/07/2023,Elections - Head G2 Staff Costs - Opening and,"Union, Elections and Places",St Albans - Eastern,,,,,2100326893,,CAB80750 GE19 Final Settlement,,"5,804.82",
"Housing, Communities & Local Government",DLUHC,12/07/2023,Elections - Head G2 Staff Costs - Opening and,"Union, Elections and Places",Wythenshawe & Sale East - NW,,,,,2100326888,,CAB80915 GE19 Final Settlement,,"4,443.66",
"Housing, Communities & Local Government",DLUHC,12/07/2023,Elections - Head G4 Cost of Printing & Stationery,"Union, Elections and Places",Blackley and Broughton - North West,,,,,2100326887,,CAB80073 GE19 Final Settlement,,"12,209.54",
"Housing, Communities & Local Government",DLUHC,12/07/2023,Elections - Head G4 Cost of Printing & Stationery,"Union, Elections and Places",Chesterfield - East Midlands,,,,,2100326884,,Chesterfield PCC21 Final Settlement,,"5,474.86",
"Housing, Communities & Local Government",DLUHC,12/07/2023,Elections - Head G4 Cost of Printing & Stationery,"Union, Elections and Places",Hitchin and Harpenden - Eastern,,,,,2100326889,,CAB80387 GE19 Final Settlement,,"17,032.52",
"Housing, Communities & Local Government",DLUHC,12/07/2023,Elections - Head G4 Cost of Printing & Stationery,"Union, Elections and Places",Manchester Central - North West,,,,,2100326890,,CAB80479 GE19 Final Settlement,,"11,902.17",
"Housing, Communities & Local Government",DLUHC,12/07/2023,Elections - Head G4 Cost of Printing & Stationery,"Union, Elections and Places","Manchester, Gorton - North West",,,,,2100326891,,CAB80480 GE19 Final Settlement,,"9,315.60",
"Housing, Communities & Local Government",DLUHC,12/07/2023,Elections - Head G4 Cost of Printing & Stationery,"Union, Elections and Places","Manchester, Withington - North West",,,,,2100326892,,CAB80481 GE19 Final Settlement,,"10,829.63",
"Housing, Communities & Local Government",DLUHC,12/07/2023,Elections - Head G4 Cost of Printing & Stationery,"Union, Elections and Places",Pendle - North West,,,,,2100326883,,Pendle PCC21 Final Settlement,,"3,358.53",
"Housing, Communities & Local Government",DLUHC,12/07/2023,Elections - Head G4 Cost of Printing & Stationery,"Union, Elections and Places",St Albans - Eastern,,,,,2100326893,,CAB80750 GE19 Final Settlement,,"11,212.83",
"Housing, Communities & Local Government",DLUHC,12/07/2023,Elections - Head G4 Cost of Printing & Stationery,"Union, Elections and Places",Wythenshawe & Sale East - NW,,,,,2100326888,,CAB80915 GE19 Final Settlement,,"14,393.74",
"Housing, Communities & Local Government",DLUHC,12/07/2023,Elections - Head G5 Postage - Outward,"Union, Elections and Places",Blackley and Broughton - North West,,,,,2100326887,,CAB80073 GE19 Final Settlement,,"8,268.17",
"Housing, Communities & Local Government",DLUHC,12/07/2023,Elections - Head G5 Postage - Outward,"Union, Elections and Places",Chesterfield - East Midlands,,,,,2100326884,,Chesterfield PCC21 Final Settlement,,"7,355.05",
"Housing, Communities & Local Government",DLUHC,12/07/2023,Elections - Head G5 Postage - Outward,"Union, Elections and Places",Hitchin and Harpenden - Eastern,,,,,2100326889,,CAB80387 GE19 Final Settlement,,"11,992.26",
"Housing, Communities & Local Government",DLUHC,12/07/2023,Elections - Head G5 Postage - Outward,"Union, Elections and Places",Manchester Central - North West,,,,,2100326890,,CAB80479 GE19 Final Settlement,,"8,690.48",
"Housing, Communities & Local Government",DLUHC,12/07/2023,Elections - Head G5 Postage - Outward,"Union, Elections and Places","Manchester, Gorton - North West",,,,,2100326891,,CAB80480 GE19 Final Settlement,,"6,803.60",
"Housing, Communities & Local Government",DLUHC,12/07/2023,Elections - Head G5 Postage - Outward,"Union, Elections and Places","Manchester, Withington - North West",,,,,2100326892,,CAB80481 GE19 Final Settlement,,"7,908.08",
"Housing, Communities & Local Government",DLUHC,12/07/2023,Elections - Head G5 Postage - Outward,"Union, Elections and Places",Pendle - North West,,,,,2100326883,,Pendle PCC21 Final Settlement,,"3,886.92",
"Housing, Communities & Local Government",DLUHC,12/07/2023,Elections - Head G5 Postage - Outward,"Union, Elections and Places",St Albans - Eastern,,,,,2100326893,,CAB80750 GE19 Final Settlement,,"6,544.93",
"Housing, Communities & Local Government",DLUHC,12/07/2023,Elections - Head G5 Postage - Outward,"Union, Elections and Places",Wythenshawe & Sale East - NW,,,,,2100326888,,CAB80915 GE19 Final Settlement,,"9,400.30",
"Housing, Communities & Local Government",DLUHC,12/07/2023,Elections - Head G6 Postage - Inward,"Union, Elections and Places",Blackley and Broughton - North West,,,,,2100326887,,CAB80073 GE19 Final Settlement,,"6,136.80",
"Housing, Communities & Local Government",DLUHC,12/07/2023,Elections - Head G6 Postage - Inward,"Union, Elections and Places",Chesterfield - East Midlands,,,,,2100326884,,Chesterfield PCC21 Final Settlement,,"5,077.74",
"Housing, Communities & Local Government",DLUHC,12/07/2023,Elections - Head G6 Postage - Inward,"Union, Elections and Places",Hitchin and Harpenden - Eastern,,,,,2100326889,,CAB80387 GE19 Final Settlement,,"9,094.92",
"Housing, Communities & Local Government",DLUHC,12/07/2023,Elections - Head G6 Postage - Inward,"Union, Elections and Places",Manchester Central - North West,,,,,2100326890,,CAB80479 GE19 Final Settlement,,"6,497.38",
"Housing, Communities & Local Government",DLUHC,12/07/2023,Elections - Head G6 Postage - Inward,"Union, Elections and Places","Manchester, Gorton - North West",,,,,2100326891,,CAB80480 GE19 Final Settlement,,"5,114.80",
"Housing, Communities & Local Government",DLUHC,12/07/2023,Elections - Head G6 Postage - Inward,"Union, Elections and Places","Manchester, Withington - North West",,,,,2100326892,,CAB80481 GE19 Final Settlement,,"6,450.20",
"Housing, Communities & Local Government",DLUHC,12/07/2023,Elections - Head G6 Postage - Inward,"Union, Elections and Places",Pendle - North West,,,,,2100326883,,Pendle PCC21 Final Settlement,,"2,966.08",
"Housing, Communities & Local Government",DLUHC,12/07/2023,Elections - Head G6 Postage - Inward,"Union, Elections and Places",St Albans - Eastern,,,,,2100326893,,CAB80750 GE19 Final Settlement,,"7,858.21",
"Housing, Communities & Local Government",DLUHC,12/07/2023,Elections - Head G6 Postage - Inward,"Union, Elections and Places",Wythenshawe & Sale East - NW,,,,,2100326888,,CAB80915 GE19 Final Settlement,,"7,512.03",
"Housing, Communities & Local Government",DLUHC,12/07/2023,Elections - Head G7 Accommodation Costs,"Union, Elections and Places",Blackley and Broughton - North West,,,,,2100326887,,CAB80073 GE19 Final Settlement,,"6,428.06",
"Housing, Communities & Local Government",DLUHC,12/07/2023,Elections - Head G7 Accommodation Costs,"Union, Elections and Places",Chesterfield - East Midlands,,,,,2100326884,,Chesterfield PCC21 Final Settlement,,"1,954.80",
"Housing, Communities & Local Government",DLUHC,12/07/2023,Elections - Head G7 Accommodation Costs,"Union, Elections and Places",Hitchin and Harpenden - Eastern,,,,,2100326889,,CAB80387 GE19 Final Settlement,,"4,000.00",
"Housing, Communities & Local Government",DLUHC,12/07/2023,Elections - Head G7 Accommodation Costs,"Union, Elections and Places",Manchester Central - North West,,,,,2100326890,,CAB80479 GE19 Final Settlement,,"6,756.70",
"Housing, Communities & Local Government",DLUHC,12/07/2023,Elections - Head G7 Accommodation Costs,"Union, Elections and Places","Manchester, Gorton - North West",,,,,2100326891,,CAB80480 GE19 Final Settlement,,"5,288.34",
"Housing, Communities & Local Government",DLUHC,12/07/2023,Elections - Head G7 Accommodation Costs,"Union, Elections and Places","Manchester, Withington - North West",,,,,2100326892,,CAB80481 GE19 Final Settlement,,"6,147.84",
"Housing, Communities & Local Government",DLUHC,12/07/2023,Elections - Head G7 Accommodation Costs,"Union, Elections and Places",Pendle - North West,,,,,2100326883,,Pendle PCC21 Final Settlement,,846.67,
"Housing, Communities & Local Government",DLUHC,12/07/2023,Elections - Head G7 Accommodation Costs,"Union, Elections and Places",St Albans - Eastern,,,,,2100326893,,CAB80750 GE19 Final Settlement,,"4,000.00",
"Housing, Communities & Local Government",DLUHC,12/07/2023,Elections - Head G7 Accommodation Costs,"Union, Elections and Places",Wythenshawe & Sale East - NW,,,,,2100326888,,CAB80915 GE19 Final Settlement,,"7,309.07",
"Housing, Communities & Local Government",DLUHC,12/07/2023,Elections - Head G8 Equipment Costs,"Union, Elections and Places",Blackley and Broughton - North West,,,,,2100326887,,CAB80073 GE19 Final Settlement,,34.75,
"Housing, Communities & Local Government",DLUHC,12/07/2023,Elections - Head G8 Equipment Costs,"Union, Elections and Places",Chesterfield - East Midlands,,,,,2100326884,,Chesterfield PCC21 Final Settlement,,"1,576.80",
"Housing, Communities & Local Government",DLUHC,12/07/2023,Elections - Head G8 Equipment Costs,"Union, Elections and Places",Hitchin and Harpenden - Eastern,,,,,2100326889,,CAB80387 GE19 Final Settlement,,430.13,
"Housing, Communities & Local Government",DLUHC,12/07/2023,Elections - Head G8 Equipment Costs,"Union, Elections and Places",Manchester Central - North West,,,,,2100326890,,CAB80479 GE19 Final Settlement,,34.75,
"Housing, Communities & Local Government",DLUHC,12/07/2023,Elections - Head G8 Equipment Costs,"Union, Elections and Places","Manchester, Gorton - North West",,,,,2100326891,,CAB80480 GE19 Final Settlement,,34.75,
"Housing, Communities & Local Government",DLUHC,12/07/2023,Elections - Head G8 Equipment Costs,"Union, Elections and Places","Manchester, Withington - North West",,,,,2100326892,,CAB80481 GE19 Final Settlement,,34.75,
"Housing, Communities & Local Government",DLUHC,12/07/2023,Elections - Head G8 Equipment Costs,"Union, Elections and Places",Pendle - North West,,,,,2100326883,,Pendle PCC21 Final Settlement,,"2,143.48",
"Housing, Communities & Local Government",DLUHC,12/07/2023,Elections - Head G8 Equipment Costs,"Union, Elections and Places",St Albans - Eastern,,,,,2100326893,,CAB80750 GE19 Final Settlement,,"1,047.30",
"Housing, Communities & Local Government",DLUHC,12/07/2023,Elections - Head G8 Equipment Costs,"Union, Elections and Places",Wythenshawe & Sale East - NW,,,,,2100326888,,CAB80915 GE19 Final Settlement,,34.75,
"Housing, Communities & Local Government",DLUHC,12/07/2023,Elections - Head H1 Staff Costs - Prep & Issue,"Union, Elections and Places",Blackley and Broughton - North West,,,,,2100326887,,CAB80073 GE19 Final Settlement,,"1,097.35",
"Housing, Communities & Local Government",DLUHC,12/07/2023,Elections - Head H1 Staff Costs - Prep & Issue,"Union, Elections and Places",Hitchin and Harpenden - Eastern,,,,,2100326889,,CAB80387 GE19 Final Settlement,,116.7,
"Housing, Communities & Local Government",DLUHC,12/07/2023,Elections - Head H1 Staff Costs - Prep & Issue,"Union, Elections and Places",Manchester Central - North West,,,,,2100326890,,CAB80479 GE19 Final Settlement,,"1,097.35",
"Housing, Communities & Local Government",DLUHC,12/07/2023,Elections - Head H1 Staff Costs - Prep & Issue,"Union, Elections and Places","Manchester, Gorton - North West",,,,,2100326891,,CAB80480 GE19 Final Settlement,,"1,097.35",
"Housing, Communities & Local Government",DLUHC,12/07/2023,Elections - Head H1 Staff Costs - Prep & Issue,"Union, Elections and Places","Manchester, Withington - North West",,,,,2100326892,,CAB80481 GE19 Final Settlement,,"1,097.35",
"Housing, Communities & Local Government",DLUHC,12/07/2023,Elections - Head H1 Staff Costs - Prep & Issue,"Union, Elections and Places",Pendle - North West,,,,,2100326883,,Pendle PCC21 Final Settlement,,10,
"Housing, Communities & Local Government",DLUHC,12/07/2023,Elections - Head H1 Staff Costs - Prep & Issue,"Union, Elections and Places",St Albans - Eastern,,,,,2100326893,,CAB80750 GE19 Final Settlement,,116.7,
"Housing, Communities & Local Government",DLUHC,12/07/2023,Elections - Head H1 Staff Costs - Prep & Issue,"Union, Elections and Places",Wythenshawe & Sale East - NW,,,,,2100326888,,CAB80915 GE19 Final Settlement,,"1,097.35",
"Housing, Communities & Local Government",DLUHC,12/07/2023,Elections - Head H3 Costs of Printing & Stationery,"Union, Elections and Places",Blackley and Broughton - North West,,,,,2100326887,,CAB80073 GE19 Final Settlement,,"3,474.24",
"Housing, Communities & Local Government",DLUHC,12/07/2023,Elections - Head H3 Costs of Printing & Stationery,"Union, Elections and Places",Chesterfield - East Midlands,,,,,2100326884,,Chesterfield PCC21 Final Settlement,,"1,244.73",
"Housing, Communities & Local Government",DLUHC,12/07/2023,Elections - Head H3 Costs of Printing & Stationery,"Union, Elections and Places",Hitchin and Harpenden - Eastern,,,,,2100326889,,CAB80387 GE19 Final Settlement,,"3,116.70",
"Housing, Communities & Local Government",DLUHC,12/07/2023,Elections - Head H3 Costs of Printing & Stationery,"Union, Elections and Places",Manchester Central - North West,,,,,2100326890,,CAB80479 GE19 Final Settlement,,"3,819.57",
"Housing, Communities & Local Government",DLUHC,12/07/2023,Elections - Head H3 Costs of Printing & Stationery,"Union, Elections and Places","Manchester, Gorton - North West",,,,,2100326891,,CAB80480 GE19 Final Settlement,,"3,124.57",
"Housing, Communities & Local Government",DLUHC,12/07/2023,Elections - Head H3 Costs of Printing & Stationery,"Union, Elections and Places","Manchester, Withington - North West",,,,,2100326892,,CAB80481 GE19 Final Settlement,,"3,128.70",
"Housing, Communities & Local Government",DLUHC,12/07/2023,Elections - Head H3 Costs of Printing & Stationery,"Union, Elections and Places",Pendle - North West,,,,,2100326883,,Pendle PCC21 Final Settlement,,820.24,
"Housing, Communities & Local Government",DLUHC,12/07/2023,Elections - Head H3 Costs of Printing & Stationery,"Union, Elections and Places",St Albans - Eastern,,,,,2100326893,,CAB80750 GE19 Final Settlement,,"3,270.15",
"Housing, Communities & Local Government",DLUHC,12/07/2023,Elections - Head H3 Costs of Printing & Stationery,"Union, Elections and Places",Wythenshawe & Sale East - NW,,,,,2100326888,,CAB80915 GE19 Final Settlement,,"3,980.52",
"Housing, Communities & Local Government",DLUHC,12/07/2023,Elections - Head H4 Postage or Delivery,"Union, Elections and Places",Blackley and Broughton - North West,,,,,2100326887,,CAB80073 GE19 Final Settlement,,"23,716.72",
"Housing, Communities & Local Government",DLUHC,12/07/2023,Elections - Head H4 Postage or Delivery,"Union, Elections and Places",Chesterfield - East Midlands,,,,,2100326884,,Chesterfield PCC21 Final Settlement,,"14,857.36",
"Housing, Communities & Local Government",DLUHC,12/07/2023,Elections - Head H4 Postage or Delivery,"Union, Elections and Places",Hitchin and Harpenden - Eastern,,,,,2100326889,,CAB80387 GE19 Final Settlement,,"23,738.48",
"Housing, Communities & Local Government",DLUHC,12/07/2023,Elections - Head H4 Postage or Delivery,"Union, Elections and Places",Manchester Central - North West,,,,,2100326890,,CAB80479 GE19 Final Settlement,,"29,485.99",
"Housing, Communities & Local Government",DLUHC,12/07/2023,Elections - Head H4 Postage or Delivery,"Union, Elections and Places","Manchester, Gorton - North West",,,,,2100326891,,CAB80480 GE19 Final Settlement,,"23,943.88",
"Housing, Communities & Local Government",DLUHC,12/07/2023,Elections - Head H4 Postage or Delivery,"Union, Elections and Places","Manchester, Withington - North West",,,,,2100326892,,CAB80481 GE19 Final Settlement,,"23,916.33",
"Housing, Communities & Local Government",DLUHC,12/07/2023,Elections - Head H4 Postage or Delivery,"Union, Elections and Places",Pendle - North West,,,,,2100326883,,Pendle PCC21 Final Settlement,,"9,934.63",
"Housing, Communities & Local Government",DLUHC,12/07/2023,Elections - Head H4 Postage or Delivery,"Union, Elections and Places",St Albans - Eastern,,,,,2100326893,,CAB80750 GE19 Final Settlement,,"23,334.28",
"Housing, Communities & Local Government",DLUHC,12/07/2023,Elections - Head H4 Postage or Delivery,"Union, Elections and Places",Wythenshawe & Sale East - NW,,,,,2100326888,,CAB80915 GE19 Final Settlement,,"23,870.97",
